﻿Department Family,Entity,Date,Expense Type,Expense Area,Supplier,Transaction Number,Amount,Item Description
BEIS,UKRI - AHRC,01/03/2023,T&S UK - Subsistence,SMT,Unspecified,99905001,50.00,T&S UK - Subsistence
BEIS,UKRI - AHRC,02/03/2023,Non-staff travel and subsistance,Executive Office,Unspecified,99906049,48.54,Non-staff travel and subsistance
BEIS,UKRI - AHRC,02/03/2023,Hospitality,Executive Office,Calder Conference Ltd,99906215,295.56,Hospitality
BEIS,UKRI - AHRC,02/03/2023,T&S UK - Mileage,AHRC - Creative Industries,Unspecified,99906265,46.55,T&S UK - Mileage
BEIS,UKRI - AHRC,02/03/2023,T&S UK - Parking Tolls Congestion Charges,AHRC - Creative Industries,Unspecified,99906265,10.00,T&S UK - Parking Tolls Congestion Charges
BEIS,UKRI - AHRC,02/03/2023,T&S UK - Public Transport,AHRC - Creative Industries,Unspecified,99906265,4.40,T&S UK - Public Transport
BEIS,UKRI - AHRC,02/03/2023,T&S UK - Subsistence,AHRC - Creative Industries,Unspecified,99906265,3.40,T&S UK - Subsistence
BEIS,UKRI - AHRC,02/03/2023,T&S UK - Subsistence,AHRC - Creative Industries,Unspecified,99906265,3.45,T&S UK - Subsistence
BEIS,UKRI - AHRC,02/03/2023,T&S UK - Subsistence,AHRC - Creative Industries,Unspecified,99906265,30.00,T&S UK - Subsistence
BEIS,UKRI - AHRC,02/03/2023,T&S UK - Public Transport,Strategy and Evidence,Unspecified,99906266,14.40,T&S UK - Public Transport
BEIS,UKRI - AHRC,02/03/2023,T&S UK - Subsistence,Strategy and Evidence,Unspecified,99906266,9.47,T&S UK - Subsistence
BEIS,UKRI - AHRC,03/03/2023,Health & Safety (inc. Medicals & Opticians),Operations,Unspecified,99884363,15.00,Health & Safety (inc. Medicals & Opticians)
BEIS,UKRI - AHRC,03/03/2023,T&S UK - Other Charges,SMT,Unspecified,99907374,10.45,T&S UK - Other Charges
BEIS,UKRI - AHRC,03/03/2023,T&S UK - Public Transport,SMT,Unspecified,99907374,69.20,T&S UK - Public Transport
BEIS,UKRI - AHRC,03/03/2023,T&S UK - Subsistence,SMT,Unspecified,99907374,65.10,T&S UK - Subsistence
BEIS,UKRI - AHRC,03/03/2023,T&S UK - Subsistence,SMT,Unspecified,99907374,18.57,T&S UK - Subsistence
BEIS,UKRI - AHRC,03/03/2023,Unspecified,SMT,Unspecified,99907977,54.00,Legal & Professional Services
BEIS,UKRI - AHRC,03/03/2023,Non-staff travel and subsistance,Cultural Value EDI,Unspecified,99908022,41.40,Non-staff travel and subsistance
BEIS,UKRI - AHRC,03/03/2023,Fees (Including College Members),Cultural Value EDI,Unspecified,99908023,500.00,Fees (Including College Members)
BEIS,UKRI - AHRC,06/03/2023,Unspecified,SMT,University of St Andrews,99906192,20197.10,Secondments
BEIS,UKRI - AHRC,06/03/2023,T&S Overseas - Accommodation,"Heritage, Culture & Creative Arts (HCCA)",Corporate Travel Management (North) Ltd,99912062,0.80,T&S Overseas - Accommodation
BEIS,UKRI - AHRC,06/03/2023,T&S Overseas - Accommodation,"Heritage, Culture & Creative Arts (HCCA)",Corporate Travel Management (North) Ltd,99912062,335.03,T&S Overseas - Accommodation
BEIS,UKRI - AHRC,06/03/2023,T&S Overseas - Accommodation,"Heritage, Culture & Creative Arts (HCCA)",Corporate Travel Management (North) Ltd,99912062,366.44,T&S Overseas - Accommodation
BEIS,UKRI - AHRC,06/03/2023,T&S Overseas - Accommodation,"Heritage, Culture & Creative Arts (HCCA)",Corporate Travel Management (North) Ltd,99912062,0.16,T&S Overseas - Accommodation
BEIS,UKRI - AHRC,06/03/2023,T&S Overseas - Accommodation,Infrastruture Roadmap,Corporate Travel Management (North) Ltd,99912062,1.17,T&S Overseas - Accommodation
BEIS,UKRI - AHRC,06/03/2023,T&S Overseas - Accommodation,Infrastruture Roadmap,Corporate Travel Management (North) Ltd,99912062,0.80,T&S Overseas - Accommodation
BEIS,UKRI - AHRC,06/03/2023,T&S Overseas - Accommodation,Infrastruture Roadmap,Corporate Travel Management (North) Ltd,99912062,119.00,T&S Overseas - Accommodation
BEIS,UKRI - AHRC,06/03/2023,T&S Overseas - Accommodation,Infrastruture Roadmap,Corporate Travel Management (North) Ltd,99912062,0.39,T&S Overseas - Accommodation
BEIS,UKRI - AHRC,06/03/2023,T&S Overseas - Accommodation,International Partnership and Engagement,Corporate Travel Management (North) Ltd,99912062,2.00,T&S Overseas - Accommodation
BEIS,UKRI - AHRC,06/03/2023,T&S Overseas - Accommodation,International Partnership and Engagement,Corporate Travel Management (North) Ltd,99912062,167.73,T&S Overseas - Accommodation
BEIS,UKRI - AHRC,06/03/2023,T&S Overseas - Accommodation,International Partnership and Engagement,Corporate Travel Management (North) Ltd,99912062,2.00,T&S Overseas - Accommodation
BEIS,UKRI - AHRC,06/03/2023,T&S Overseas - Accommodation,International Partnership and Engagement,Corporate Travel Management (North) Ltd,99912062,167.73,T&S Overseas - Accommodation
BEIS,UKRI - AHRC,06/03/2023,T&S Overseas - Accommodation,International Partnership and Engagement,Corporate Travel Management (North) Ltd,99912062,0.80,T&S Overseas - Accommodation
BEIS,UKRI - AHRC,06/03/2023,T&S Overseas - Flights,Executive Office,Corporate Travel Management (North) Ltd,99912062,1.25,T&S Overseas - Flights
BEIS,UKRI - AHRC,06/03/2023,T&S Overseas - Flights,Executive Office,Corporate Travel Management (North) Ltd,99912062,147.02,T&S Overseas - Flights
BEIS,UKRI - AHRC,06/03/2023,T&S Overseas - Flights,Executive Office,Corporate Travel Management (North) Ltd,99912062,1.25,T&S Overseas - Flights
BEIS,UKRI - AHRC,06/03/2023,T&S Overseas - Flights,Executive Office,Corporate Travel Management (North) Ltd,99912062,147.02,T&S Overseas - Flights
BEIS,UKRI - AHRC,06/03/2023,T&S Overseas - Flights,"Heritage, Culture & Creative Arts (HCCA)",Corporate Travel Management (North) Ltd,99912062,7.00,T&S Overseas - Flights
BEIS,UKRI - AHRC,06/03/2023,T&S Overseas - Flights,"Heritage, Culture & Creative Arts (HCCA)",Corporate Travel Management (North) Ltd,99912062,186.05,T&S Overseas - Flights
BEIS,UKRI - AHRC,06/03/2023,T&S Overseas - Flights,International Partnership and Engagement,Corporate Travel Management (North) Ltd,99912062,2.50,T&S Overseas - Flights
BEIS,UKRI - AHRC,06/03/2023,T&S Overseas - Flights,International Partnership and Engagement,Corporate Travel Management (North) Ltd,99912062,355.18,T&S Overseas - Flights
BEIS,UKRI - AHRC,06/03/2023,T&S Overseas - Flights,International Partnership and Engagement,Corporate Travel Management (North) Ltd,99912062,2.50,T&S Overseas - Flights
BEIS,UKRI - AHRC,06/03/2023,T&S Overseas - Flights,International Partnership and Engagement,Corporate Travel Management (North) Ltd,99912062,139.30,T&S Overseas - Flights
BEIS,UKRI - AHRC,06/03/2023,T&S UK - Accommodation,AHRC - Creative Industries,Corporate Travel Management (North) Ltd,99912062,0.80,T&S UK - Accommodation
BEIS,UKRI - AHRC,06/03/2023,T&S UK - Accommodation,AHRC - Creative Industries,Corporate Travel Management (North) Ltd,99912062,75.00,T&S UK - Accommodation
BEIS,UKRI - AHRC,06/03/2023,T&S UK - Accommodation,AHRC - Creative Industries,Corporate Travel Management (North) Ltd,99912062,0.80,T&S UK - Accommodation
BEIS,UKRI - AHRC,06/03/2023,T&S UK - Accommodation,AHRC - Creative Industries,Corporate Travel Management (North) Ltd,99912062,113.00,T&S UK - Accommodation
BEIS,UKRI - AHRC,06/03/2023,T&S UK - Accommodation,AHRC - Creative Industries,Corporate Travel Management (North) Ltd,99912062,0.80,T&S UK - Accommodation
BEIS,UKRI - AHRC,06/03/2023,T&S UK - Accommodation,AHRC - Creative Industries,Corporate Travel Management (North) Ltd,99912062,124.00,T&S UK - Accommodation
BEIS,UKRI - AHRC,06/03/2023,T&S UK - Accommodation,AHRC - Creative Industries,Corporate Travel Management (North) Ltd,99912062,0.80,T&S UK - Accommodation
BEIS,UKRI - AHRC,06/03/2023,T&S UK - Accommodation,AHRC - Creative Industries,Corporate Travel Management (North) Ltd,99912062,93.00,T&S UK - Accommodation
BEIS,UKRI - AHRC,06/03/2023,T&S UK - Accommodation,AHRC - Creative Industries,Corporate Travel Management (North) Ltd,99912062,0.80,T&S UK - Accommodation
BEIS,UKRI - AHRC,06/03/2023,T&S UK - Accommodation,AHRC - Creative Industries,Corporate Travel Management (North) Ltd,99912062,119.00,T&S UK - Accommodation
BEIS,UKRI - AHRC,06/03/2023,T&S UK - Accommodation,AHRC - Creative Industries,Corporate Travel Management (North) Ltd,99912062,0.80,T&S UK - Accommodation
BEIS,UKRI - AHRC,06/03/2023,T&S UK - Accommodation,AHRC - Creative Industries,Corporate Travel Management (North) Ltd,99912062,235.05,T&S UK - Accommodation
BEIS,UKRI - AHRC,06/03/2023,T&S UK - Accommodation,AHRC - Creative Industries,Corporate Travel Management (North) Ltd,99912062,0.96,T&S UK - Accommodation
BEIS,UKRI - AHRC,06/03/2023,T&S UK - Accommodation,Executive Office,Corporate Travel Management (North) Ltd,99912062,0.80,T&S UK - Accommodation
BEIS,UKRI - AHRC,06/03/2023,T&S UK - Accommodation,Executive Office,Corporate Travel Management (North) Ltd,99912062,0.80,T&S UK - Accommodation
BEIS,UKRI - AHRC,06/03/2023,T&S UK - Accommodation,Executive Office,Corporate Travel Management (North) Ltd,99912062,132.40,T&S UK - Accommodation
BEIS,UKRI - AHRC,06/03/2023,T&S UK - Accommodation,Executive Office,Corporate Travel Management (North) Ltd,99912062,0.32,T&S UK - Accommodation
BEIS,UKRI - AHRC,06/03/2023,T&S UK - Accommodation,Infrastruture Roadmap,Corporate Travel Management (North) Ltd,99912062,0.80,T&S UK - Accommodation
BEIS,UKRI - AHRC,06/03/2023,T&S UK - Accommodation,Infrastruture Roadmap,Corporate Travel Management (North) Ltd,99912062,51.10,T&S UK - Accommodation
BEIS,UKRI - AHRC,06/03/2023,T&S UK - Accommodation,Infrastruture Roadmap,Corporate Travel Management (North) Ltd,99912062,0.80,T&S UK - Accommodation
BEIS,UKRI - AHRC,06/03/2023,T&S UK - Accommodation,Infrastruture Roadmap,Corporate Travel Management (North) Ltd,99912062,51.10,T&S UK - Accommodation
BEIS,UKRI - AHRC,06/03/2023,T&S UK - Accommodation,Infrastruture Roadmap,Corporate Travel Management (North) Ltd,99912062,2.40,T&S UK - Accommodation
BEIS,UKRI - AHRC,06/03/2023,T&S UK - Accommodation,Infrastruture Roadmap,Corporate Travel Management (North) Ltd,99912062,152.00,T&S UK - Accommodation
BEIS,UKRI - AHRC,06/03/2023,T&S UK - Accommodation,Infrastruture Roadmap,Corporate Travel Management (North) Ltd,99912062,0.80,T&S UK - Accommodation
BEIS,UKRI - AHRC,06/03/2023,T&S UK - Accommodation,Infrastruture Roadmap,Corporate Travel Management (North) Ltd,99912062,152.00,T&S UK - Accommodation
BEIS,UKRI - AHRC,06/03/2023,T&S UK - Accommodation,Infrastruture Roadmap,Corporate Travel Management (North) Ltd,99912062,1.60,T&S UK - Accommodation
BEIS,UKRI - AHRC,06/03/2023,T&S UK - Accommodation,Infrastruture Roadmap,Corporate Travel Management (North) Ltd,99912062,0.80,T&S UK - Accommodation
BEIS,UKRI - AHRC,06/03/2023,T&S UK - Accommodation,Infrastruture Roadmap,Corporate Travel Management (North) Ltd,99912062,152.00,T&S UK - Accommodation
BEIS,UKRI - AHRC,06/03/2023,T&S UK - Accommodation,Infrastruture Roadmap,Corporate Travel Management (North) Ltd,99912062,0.80,T&S UK - Accommodation
BEIS,UKRI - AHRC,06/03/2023,T&S UK - Accommodation,Infrastruture Roadmap,Corporate Travel Management (North) Ltd,99912062,117.18,T&S UK - Accommodation
BEIS,UKRI - AHRC,06/03/2023,T&S UK - Accommodation,Infrastruture Roadmap,Corporate Travel Management (North) Ltd,99912062,1.60,T&S UK - Accommodation
BEIS,UKRI - AHRC,06/03/2023,T&S UK - Accommodation,International Partnership and Engagement,Corporate Travel Management (North) Ltd,99912062,0.80,T&S UK - Accommodation
BEIS,UKRI - AHRC,06/03/2023,T&S UK - Accommodation,International Partnership and Engagement,Corporate Travel Management (North) Ltd,99912062,63.00,T&S UK - Accommodation
BEIS,UKRI - AHRC,06/03/2023,T&S UK - Accommodation,International Partnership and Engagement,Corporate Travel Management (North) Ltd,99912062,0.16,T&S UK - Accommodation
BEIS,UKRI - AHRC,06/03/2023,T&S UK - Accommodation,SMT,Corporate Travel Management (North) Ltd,99912062,0.80,T&S UK - Accommodation
BEIS,UKRI - AHRC,06/03/2023,T&S UK - Accommodation,SMT,Corporate Travel Management (North) Ltd,99912062,64.49,T&S UK - Accommodation
BEIS,UKRI - AHRC,06/03/2023,T&S UK - Accommodation,SMT,Corporate Travel Management (North) Ltd,99912062,0.80,T&S UK - Accommodation
BEIS,UKRI - AHRC,06/03/2023,T&S UK - Accommodation,SMT,Corporate Travel Management (North) Ltd,99912062,119.00,T&S UK - Accommodation
BEIS,UKRI - AHRC,06/03/2023,T&S UK - Accommodation,SMT,Corporate Travel Management (North) Ltd,99912062,0.80,T&S UK - Accommodation
BEIS,UKRI - AHRC,06/03/2023,T&S UK - Accommodation,SMT,Corporate Travel Management (North) Ltd,99912062,85.00,T&S UK - Accommodation
BEIS,UKRI - AHRC,06/03/2023,T&S UK - Accommodation,SMT,Corporate Travel Management (North) Ltd,99912062,0.80,T&S UK - Accommodation
BEIS,UKRI - AHRC,06/03/2023,T&S UK - Accommodation,SMT,Corporate Travel Management (North) Ltd,99912062,85.00,T&S UK - Accommodation
BEIS,UKRI - AHRC,06/03/2023,T&S UK - Accommodation,SMT,Corporate Travel Management (North) Ltd,99912062,0.64,T&S UK - Accommodation
BEIS,UKRI - AHRC,06/03/2023,T&S UK - Flights,AHRC - Creative Industries,Corporate Travel Management (North) Ltd,99912062,2.50,T&S UK - Flights
BEIS,UKRI - AHRC,06/03/2023,T&S UK - Flights,AHRC - Creative Industries,Corporate Travel Management (North) Ltd,99912062,81.40,T&S UK - Flights
BEIS,UKRI - AHRC,06/03/2023,T&S UK - Flights,Executive Office,Corporate Travel Management (North) Ltd,99912062,2.50,T&S UK - Flights
BEIS,UKRI - AHRC,06/03/2023,T&S UK - Flights,Executive Office,Corporate Travel Management (North) Ltd,99912062,91.46,T&S UK - Flights
BEIS,UKRI - AHRC,06/03/2023,T&S UK - Flights,Executive Office,Corporate Travel Management (North) Ltd,99912062,2.50,T&S UK - Flights
BEIS,UKRI - AHRC,06/03/2023,T&S UK - Flights,Executive Office,Corporate Travel Management (North) Ltd,99912062,145.84,T&S UK - Flights
BEIS,UKRI - AHRC,06/03/2023,T&S UK - Flights,International Partnership and Engagement,Corporate Travel Management (North) Ltd,99912062,0.83,T&S UK - Flights
BEIS,UKRI - AHRC,06/03/2023,T&S UK - Flights,International Partnership and Engagement,Corporate Travel Management (North) Ltd,99912062,70.20,T&S UK - Flights
BEIS,UKRI - AHRC,06/03/2023,T&S UK - Flights,International Partnership and Engagement,Corporate Travel Management (North) Ltd,99912062,0.83,T&S UK - Flights
BEIS,UKRI - AHRC,06/03/2023,T&S UK - Flights,International Partnership and Engagement,Corporate Travel Management (North) Ltd,99912062,70.20,T&S UK - Flights
BEIS,UKRI - AHRC,06/03/2023,T&S UK - Flights,International Partnership and Engagement,Corporate Travel Management (North) Ltd,99912062,0.83,T&S UK - Flights
BEIS,UKRI - AHRC,06/03/2023,T&S UK - Flights,International Partnership and Engagement,Corporate Travel Management (North) Ltd,99912062,70.20,T&S UK - Flights
BEIS,UKRI - AHRC,06/03/2023,T&S UK - Flights,International Partnership and Engagement,Corporate Travel Management (North) Ltd,99912062,2.50,T&S UK - Flights
BEIS,UKRI - AHRC,06/03/2023,T&S UK - Flights,International Partnership and Engagement,Corporate Travel Management (North) Ltd,99912062,180.55,T&S UK - Flights
BEIS,UKRI - AHRC,06/03/2023,T&S UK - Flights,SMT,Corporate Travel Management (North) Ltd,99912062,2.50,T&S UK - Flights
BEIS,UKRI - AHRC,06/03/2023,T&S UK - Flights,SMT,Corporate Travel Management (North) Ltd,99912062,217.44,T&S UK - Flights
BEIS,UKRI - AHRC,06/03/2023,T&S UK - Flights,SMT,Corporate Travel Management (North) Ltd,99912062,2.50,T&S UK - Flights
BEIS,UKRI - AHRC,06/03/2023,T&S UK - Flights,SMT,Corporate Travel Management (North) Ltd,99912062,191.30,T&S UK - Flights
BEIS,UKRI - AHRC,06/03/2023,T&S UK - Flights,SMT,Corporate Travel Management (North) Ltd,99912062,2.50,T&S UK - Flights
BEIS,UKRI - AHRC,06/03/2023,T&S UK - Flights,SMT,Corporate Travel Management (North) Ltd,99912062,244.02,T&S UK - Flights
BEIS,UKRI - AHRC,06/03/2023,T&S UK - Flights,SMT,Corporate Travel Management (North) Ltd,99912062,2.50,T&S UK - Flights
BEIS,UKRI - AHRC,06/03/2023,T&S UK - Flights,SMT,Corporate Travel Management (North) Ltd,99912062,89.96,T&S UK - Flights
BEIS,UKRI - AHRC,06/03/2023,T&S UK - Flights,SMT,Corporate Travel Management (North) Ltd,99912062,2.50,T&S UK - Flights
BEIS,UKRI - AHRC,06/03/2023,T&S UK - Flights,SMT,Corporate Travel Management (North) Ltd,99912062,91.46,T&S UK - Flights
BEIS,UKRI - AHRC,06/03/2023,T&S UK - Flights,SMT,Corporate Travel Management (North) Ltd,99912062,2.50,T&S UK - Flights
BEIS,UKRI - AHRC,06/03/2023,T&S UK - Flights,SMT,Corporate Travel Management (North) Ltd,99912062,145.84,T&S UK - Flights
BEIS,UKRI - AHRC,06/03/2023,T&S UK - Public Transport,AHRC - Creative Industries,Corporate Travel Management (North) Ltd,99912062,0.25,T&S UK - Public Transport
BEIS,UKRI - AHRC,06/03/2023,T&S UK - Public Transport,AHRC - Creative Industries,Corporate Travel Management (North) Ltd,99912062,17.15,T&S UK - Public Transport
BEIS,UKRI - AHRC,06/03/2023,T&S UK - Public Transport,AHRC - Creative Industries,Corporate Travel Management (North) Ltd,99912062,5.00,T&S UK - Public Transport
BEIS,UKRI - AHRC,06/03/2023,T&S UK - Public Transport,AHRC - Creative Industries,Corporate Travel Management (North) Ltd,99912062,-9.40,T&S UK - Public Transport
BEIS,UKRI - AHRC,06/03/2023,T&S UK - Public Transport,Board and Committee,Corporate Travel Management (North) Ltd,99912062,2.00,T&S UK - Public Transport
BEIS,UKRI - AHRC,06/03/2023,T&S UK - Public Transport,Board and Committee,Corporate Travel Management (North) Ltd,99912062,569.00,T&S UK - Public Transport
BEIS,UKRI - AHRC,06/03/2023,T&S UK - Public Transport,Board and Committee,Corporate Travel Management (North) Ltd,99912062,0.40,T&S UK - Public Transport
BEIS,UKRI - AHRC,06/03/2023,T&S UK - Public Transport,Executive Office,Corporate Travel Management (North) Ltd,99912062,0.25,T&S UK - Public Transport
BEIS,UKRI - AHRC,06/03/2023,T&S UK - Public Transport,Executive Office,Corporate Travel Management (North) Ltd,99912062,151.20,T&S UK - Public Transport
BEIS,UKRI - AHRC,06/03/2023,T&S UK - Public Transport,Executive Office,Corporate Travel Management (North) Ltd,99912062,0.25,T&S UK - Public Transport
BEIS,UKRI - AHRC,06/03/2023,T&S UK - Public Transport,Executive Office,Corporate Travel Management (North) Ltd,99912062,69.20,T&S UK - Public Transport
BEIS,UKRI - AHRC,06/03/2023,T&S UK - Public Transport,Executive Office,Corporate Travel Management (North) Ltd,99912062,0.25,T&S UK - Public Transport
BEIS,UKRI - AHRC,06/03/2023,T&S UK - Public Transport,Executive Office,Corporate Travel Management (North) Ltd,99912062,69.20,T&S UK - Public Transport
BEIS,UKRI - AHRC,06/03/2023,T&S UK - Public Transport,Executive Office,Corporate Travel Management (North) Ltd,99912062,0.25,T&S UK - Public Transport
BEIS,UKRI - AHRC,06/03/2023,T&S UK - Public Transport,Executive Office,Corporate Travel Management (North) Ltd,99912062,157.20,T&S UK - Public Transport
BEIS,UKRI - AHRC,06/03/2023,T&S UK - Public Transport,Infrastruture Roadmap,Corporate Travel Management (North) Ltd,99912062,0.25,T&S UK - Public Transport
BEIS,UKRI - AHRC,06/03/2023,T&S UK - Public Transport,Infrastruture Roadmap,Corporate Travel Management (North) Ltd,99912062,129.00,T&S UK - Public Transport
BEIS,UKRI - AHRC,06/03/2023,T&S UK - Public Transport,Infrastruture Roadmap,Corporate Travel Management (North) Ltd,99912062,0.25,T&S UK - Public Transport
BEIS,UKRI - AHRC,06/03/2023,T&S UK - Public Transport,Infrastruture Roadmap,Corporate Travel Management (North) Ltd,99912062,129.00,T&S UK - Public Transport
BEIS,UKRI - AHRC,06/03/2023,T&S UK - Public Transport,Infrastruture Roadmap,Corporate Travel Management (North) Ltd,99912062,0.25,T&S UK - Public Transport
BEIS,UKRI - AHRC,06/03/2023,T&S UK - Public Transport,Infrastruture Roadmap,Corporate Travel Management (North) Ltd,99912062,129.00,T&S UK - Public Transport
BEIS,UKRI - AHRC,06/03/2023,T&S UK - Public Transport,Infrastruture Roadmap,Corporate Travel Management (North) Ltd,99912062,0.25,T&S UK - Public Transport
BEIS,UKRI - AHRC,06/03/2023,T&S UK - Public Transport,Infrastruture Roadmap,Corporate Travel Management (North) Ltd,99912062,10.30,T&S UK - Public Transport
BEIS,UKRI - AHRC,06/03/2023,T&S UK - Public Transport,Infrastruture Roadmap,Corporate Travel Management (North) Ltd,99912062,0.25,T&S UK - Public Transport
BEIS,UKRI - AHRC,06/03/2023,T&S UK - Public Transport,Infrastruture Roadmap,Corporate Travel Management (North) Ltd,99912062,10.30,T&S UK - Public Transport
BEIS,UKRI - AHRC,06/03/2023,T&S UK - Public Transport,Infrastruture Roadmap,Corporate Travel Management (North) Ltd,99912062,0.25,T&S UK - Public Transport
BEIS,UKRI - AHRC,06/03/2023,T&S UK - Public Transport,Infrastruture Roadmap,Corporate Travel Management (North) Ltd,99912062,10.30,T&S UK - Public Transport
BEIS,UKRI - AHRC,06/03/2023,T&S UK - Public Transport,Infrastruture Roadmap,Corporate Travel Management (North) Ltd,99912062,0.25,T&S UK - Public Transport
BEIS,UKRI - AHRC,06/03/2023,T&S UK - Public Transport,Infrastruture Roadmap,Corporate Travel Management (North) Ltd,99912062,89.50,T&S UK - Public Transport
BEIS,UKRI - AHRC,06/03/2023,T&S UK - Public Transport,Infrastruture Roadmap,Corporate Travel Management (North) Ltd,99912062,0.25,T&S UK - Public Transport
BEIS,UKRI - AHRC,06/03/2023,T&S UK - Public Transport,Infrastruture Roadmap,Corporate Travel Management (North) Ltd,99912062,103.00,T&S UK - Public Transport
BEIS,UKRI - AHRC,06/03/2023,T&S UK - Public Transport,Infrastruture Roadmap,Corporate Travel Management (North) Ltd,99912062,0.25,T&S UK - Public Transport
BEIS,UKRI - AHRC,06/03/2023,T&S UK - Public Transport,Infrastruture Roadmap,Corporate Travel Management (North) Ltd,99912062,89.50,T&S UK - Public Transport
BEIS,UKRI - AHRC,06/03/2023,T&S UK - Public Transport,Infrastruture Roadmap,Corporate Travel Management (North) Ltd,99912062,0.80,T&S UK - Public Transport
BEIS,UKRI - AHRC,06/03/2023,T&S UK - Public Transport,Infrastruture Roadmap,Corporate Travel Management (North) Ltd,99912062,149.00,T&S UK - Public Transport
BEIS,UKRI - AHRC,06/03/2023,T&S UK - Public Transport,Infrastruture Roadmap,Corporate Travel Management (North) Ltd,99912062,0.25,T&S UK - Public Transport
BEIS,UKRI - AHRC,06/03/2023,T&S UK - Public Transport,Infrastruture Roadmap,Corporate Travel Management (North) Ltd,99912062,151.20,T&S UK - Public Transport
BEIS,UKRI - AHRC,06/03/2023,T&S UK - Public Transport,Infrastruture Roadmap,Corporate Travel Management (North) Ltd,99912062,0.25,T&S UK - Public Transport
BEIS,UKRI - AHRC,06/03/2023,T&S UK - Public Transport,Infrastruture Roadmap,Corporate Travel Management (North) Ltd,99912062,50.00,T&S UK - Public Transport
BEIS,UKRI - AHRC,06/03/2023,T&S UK - Public Transport,Infrastruture Roadmap,Corporate Travel Management (North) Ltd,99912062,0.25,T&S UK - Public Transport
BEIS,UKRI - AHRC,06/03/2023,T&S UK - Public Transport,Infrastruture Roadmap,Corporate Travel Management (North) Ltd,99912062,151.20,T&S UK - Public Transport
BEIS,UKRI - AHRC,06/03/2023,T&S UK - Public Transport,Infrastruture Roadmap,Corporate Travel Management (North) Ltd,99912062,0.25,T&S UK - Public Transport
BEIS,UKRI - AHRC,06/03/2023,T&S UK - Public Transport,Infrastruture Roadmap,Corporate Travel Management (North) Ltd,99912062,66.90,T&S UK - Public Transport
BEIS,UKRI - AHRC,06/03/2023,T&S UK - Public Transport,Infrastruture Roadmap,Corporate Travel Management (North) Ltd,99912062,0.25,T&S UK - Public Transport
BEIS,UKRI - AHRC,06/03/2023,T&S UK - Public Transport,Infrastruture Roadmap,Corporate Travel Management (North) Ltd,99912062,157.20,T&S UK - Public Transport
BEIS,UKRI - AHRC,06/03/2023,T&S UK - Public Transport,Infrastruture Roadmap,Corporate Travel Management (North) Ltd,99912062,0.25,T&S UK - Public Transport
BEIS,UKRI - AHRC,06/03/2023,T&S UK - Public Transport,Infrastruture Roadmap,Corporate Travel Management (North) Ltd,99912062,158.70,T&S UK - Public Transport
BEIS,UKRI - AHRC,06/03/2023,T&S UK - Public Transport,Infrastruture Roadmap,Corporate Travel Management (North) Ltd,99912062,0.25,T&S UK - Public Transport
BEIS,UKRI - AHRC,06/03/2023,T&S UK - Public Transport,Infrastruture Roadmap,Corporate Travel Management (North) Ltd,99912062,7.50,T&S UK - Public Transport
BEIS,UKRI - AHRC,06/03/2023,T&S UK - Public Transport,Infrastruture Roadmap,Corporate Travel Management (North) Ltd,99912062,0.16,T&S UK - Public Transport
BEIS,UKRI - AHRC,06/03/2023,T&S UK - Public Transport,International Partnership and Engagement,Corporate Travel Management (North) Ltd,99912062,0.25,T&S UK - Public Transport
BEIS,UKRI - AHRC,06/03/2023,T&S UK - Public Transport,International Partnership and Engagement,Corporate Travel Management (North) Ltd,99912062,15.15,T&S UK - Public Transport
BEIS,UKRI - AHRC,06/03/2023,T&S UK - Public Transport,International Partnership and Engagement,Corporate Travel Management (North) Ltd,99912062,0.25,T&S UK - Public Transport
BEIS,UKRI - AHRC,06/03/2023,T&S UK - Public Transport,International Partnership and Engagement,Corporate Travel Management (North) Ltd,99912062,51.65,T&S UK - Public Transport
BEIS,UKRI - AHRC,06/03/2023,T&S UK - Public Transport,International Partnership and Engagement,Corporate Travel Management (North) Ltd,99912062,0.25,T&S UK - Public Transport
BEIS,UKRI - AHRC,06/03/2023,T&S UK - Public Transport,International Partnership and Engagement,Corporate Travel Management (North) Ltd,99912062,35.35,T&S UK - Public Transport
BEIS,UKRI - AHRC,06/03/2023,T&S UK - Public Transport,International Partnership and Engagement,Corporate Travel Management (North) Ltd,99912062,0.25,T&S UK - Public Transport
BEIS,UKRI - AHRC,06/03/2023,T&S UK - Public Transport,International Partnership and Engagement,Corporate Travel Management (North) Ltd,99912062,88.75,T&S UK - Public Transport
BEIS,UKRI - AHRC,06/03/2023,T&S UK - Public Transport,International Partnership and Engagement,Corporate Travel Management (North) Ltd,99912062,0.25,T&S UK - Public Transport
BEIS,UKRI - AHRC,06/03/2023,T&S UK - Public Transport,International Partnership and Engagement,Corporate Travel Management (North) Ltd,99912062,60.70,T&S UK - Public Transport
BEIS,UKRI - AHRC,06/03/2023,T&S UK - Public Transport,International Partnership and Engagement,Corporate Travel Management (North) Ltd,99912062,0.25,T&S UK - Public Transport
BEIS,UKRI - AHRC,06/03/2023,T&S UK - Public Transport,International Partnership and Engagement,Corporate Travel Management (North) Ltd,99912062,113.40,T&S UK - Public Transport
BEIS,UKRI - AHRC,06/03/2023,T&S UK - Public Transport,International Partnership and Engagement,Corporate Travel Management (North) Ltd,99912062,0.25,T&S UK - Public Transport
BEIS,UKRI - AHRC,06/03/2023,T&S UK - Public Transport,International Partnership and Engagement,Corporate Travel Management (North) Ltd,99912062,141.40,T&S UK - Public Transport
BEIS,UKRI - AHRC,06/03/2023,T&S UK - Public Transport,International Partnership and Engagement,Corporate Travel Management (North) Ltd,99912062,0.25,T&S UK - Public Transport
BEIS,UKRI - AHRC,06/03/2023,T&S UK - Public Transport,International Partnership and Engagement,Corporate Travel Management (North) Ltd,99912062,119.50,T&S UK - Public Transport
BEIS,UKRI - AHRC,06/03/2023,T&S UK - Public Transport,Operations,Corporate Travel Management (North) Ltd,99912062,0.25,T&S UK - Public Transport
BEIS,UKRI - AHRC,06/03/2023,T&S UK - Public Transport,Operations,Corporate Travel Management (North) Ltd,99912062,26.00,T&S UK - Public Transport
BEIS,UKRI - AHRC,06/03/2023,T&S UK - Public Transport,Operations,Corporate Travel Management (North) Ltd,99912062,0.25,T&S UK - Public Transport
BEIS,UKRI - AHRC,06/03/2023,T&S UK - Public Transport,Operations,Corporate Travel Management (North) Ltd,99912062,31.50,T&S UK - Public Transport
BEIS,UKRI - AHRC,06/03/2023,T&S UK - Public Transport,Operations,Corporate Travel Management (North) Ltd,99912062,0.25,T&S UK - Public Transport
BEIS,UKRI - AHRC,06/03/2023,T&S UK - Public Transport,Operations,Corporate Travel Management (North) Ltd,99912062,44.70,T&S UK - Public Transport
BEIS,UKRI - AHRC,06/03/2023,T&S UK - Public Transport,SMT,Corporate Travel Management (North) Ltd,99912062,0.25,T&S UK - Public Transport
BEIS,UKRI - AHRC,06/03/2023,T&S UK - Public Transport,SMT,Corporate Travel Management (North) Ltd,99912062,90.90,T&S UK - Public Transport
BEIS,UKRI - AHRC,06/03/2023,T&S UK - Public Transport,SMT,Corporate Travel Management (North) Ltd,99912062,0.25,T&S UK - Public Transport
BEIS,UKRI - AHRC,06/03/2023,T&S UK - Public Transport,SMT,Corporate Travel Management (North) Ltd,99912062,118.80,T&S UK - Public Transport
BEIS,UKRI - AHRC,06/03/2023,T&S UK - Public Transport,SMT,Corporate Travel Management (North) Ltd,99912062,0.25,T&S UK - Public Transport
BEIS,UKRI - AHRC,06/03/2023,T&S UK - Public Transport,SMT,Corporate Travel Management (North) Ltd,99912062,88.20,T&S UK - Public Transport
BEIS,UKRI - AHRC,06/03/2023,T&S UK - Public Transport,SMT,Corporate Travel Management (North) Ltd,99912062,0.50,T&S UK - Public Transport
BEIS,UKRI - AHRC,06/03/2023,T&S UK - Public Transport,SMT,Corporate Travel Management (North) Ltd,99912062,74.60,T&S UK - Public Transport
BEIS,UKRI - AHRC,06/03/2023,T&S UK - Public Transport,SMT,Corporate Travel Management (North) Ltd,99912062,16.00,T&S UK - Public Transport
BEIS,UKRI - AHRC,06/03/2023,T&S UK - Public Transport,SMT,Corporate Travel Management (North) Ltd,99912062,0.25,T&S UK - Public Transport
BEIS,UKRI - AHRC,06/03/2023,T&S UK - Public Transport,SMT,Corporate Travel Management (North) Ltd,99912062,74.60,T&S UK - Public Transport
BEIS,UKRI - AHRC,06/03/2023,T&S UK - Public Transport,SMT,Corporate Travel Management (North) Ltd,99912062,0.25,T&S UK - Public Transport
BEIS,UKRI - AHRC,06/03/2023,T&S UK - Public Transport,SMT,Corporate Travel Management (North) Ltd,99912062,78.60,T&S UK - Public Transport
BEIS,UKRI - AHRC,06/03/2023,T&S UK - Public Transport,SMT,Corporate Travel Management (North) Ltd,99912062,0.25,T&S UK - Public Transport
BEIS,UKRI - AHRC,06/03/2023,T&S UK - Public Transport,SMT,Corporate Travel Management (North) Ltd,99912062,28.90,T&S UK - Public Transport
BEIS,UKRI - AHRC,06/03/2023,T&S UK - Public Transport,SMT,Corporate Travel Management (North) Ltd,99912062,0.25,T&S UK - Public Transport
BEIS,UKRI - AHRC,06/03/2023,T&S UK - Public Transport,SMT,Corporate Travel Management (North) Ltd,99912062,68.80,T&S UK - Public Transport
BEIS,UKRI - AHRC,06/03/2023,T&S UK - Public Transport,SMT,Corporate Travel Management (North) Ltd,99912062,0.25,T&S UK - Public Transport
BEIS,UKRI - AHRC,06/03/2023,T&S UK - Public Transport,SMT,Corporate Travel Management (North) Ltd,99912062,37.20,T&S UK - Public Transport
BEIS,UKRI - AHRC,06/03/2023,T&S UK - Public Transport,SMT,Corporate Travel Management (North) Ltd,99912062,0.25,T&S UK - Public Transport
BEIS,UKRI - AHRC,06/03/2023,T&S UK - Public Transport,SMT,Corporate Travel Management (North) Ltd,99912062,13.90,T&S UK - Public Transport
BEIS,UKRI - AHRC,06/03/2023,T&S UK - Public Transport,SMT,Corporate Travel Management (North) Ltd,99912062,0.25,T&S UK - Public Transport
BEIS,UKRI - AHRC,06/03/2023,T&S UK - Public Transport,SMT,Corporate Travel Management (North) Ltd,99912062,30.00,T&S UK - Public Transport
BEIS,UKRI - AHRC,06/03/2023,T&S UK - Public Transport,SMT,Corporate Travel Management (North) Ltd,99912062,0.25,T&S UK - Public Transport
BEIS,UKRI - AHRC,06/03/2023,T&S UK - Public Transport,SMT,Corporate Travel Management (North) Ltd,99912062,32.20,T&S UK - Public Transport
BEIS,UKRI - AHRC,06/03/2023,T&S UK - Public Transport,SMT,Corporate Travel Management (North) Ltd,99912062,0.25,T&S UK - Public Transport
BEIS,UKRI - AHRC,06/03/2023,T&S UK - Public Transport,SMT,Corporate Travel Management (North) Ltd,99912062,174.20,T&S UK - Public Transport
BEIS,UKRI - AHRC,06/03/2023,T&S UK - Public Transport,SMT,Corporate Travel Management (North) Ltd,99912062,0.25,T&S UK - Public Transport
BEIS,UKRI - AHRC,06/03/2023,T&S UK - Public Transport,SMT,Corporate Travel Management (North) Ltd,99912062,58.90,T&S UK - Public Transport
BEIS,UKRI - AHRC,06/03/2023,T&S UK - Public Transport,Strategy and Evidence,Corporate Travel Management (North) Ltd,99912062,0.25,T&S UK - Public Transport
BEIS,UKRI - AHRC,06/03/2023,T&S UK - Public Transport,Strategy and Evidence,Corporate Travel Management (North) Ltd,99912062,20.75,T&S UK - Public Transport
BEIS,UKRI - AHRC,06/03/2023,T&S UK - Public Transport,Strategy and Evidence,Corporate Travel Management (North) Ltd,99912062,0.75,T&S UK - Public Transport
BEIS,UKRI - AHRC,06/03/2023,T&S UK - Public Transport,Strategy and Evidence,Corporate Travel Management (North) Ltd,99912062,25.00,T&S UK - Public Transport
BEIS,UKRI - AHRC,06/03/2023,T&S UK - Public Transport,Strategy and Evidence,Corporate Travel Management (North) Ltd,99912062,37.70,T&S UK - Public Transport
BEIS,UKRI - AHRC,06/03/2023,T&S UK - Public Transport,Strategy and Evidence,Corporate Travel Management (North) Ltd,99912062,75.60,T&S UK - Public Transport
BEIS,UKRI - AHRC,07/03/2023,Other Programme Costs,Commissioned Research,UKRI - Engineering & Physical Sciences Research Council,99908724,3750.00,Other Programme Costs
BEIS,UKRI - AHRC,07/03/2023,Consultancy Services,ISCF Creative Clusters,FRONTIER ECONOMICS LTD,99909004,10000.00,Consultancy Services
BEIS,UKRI - AHRC,07/03/2023,VAT Input Tax Control (for UK VAT),Balance Sheet,FRONTIER ECONOMICS LTD,99909004,2000.00,VAT Input Tax Control (for UK VAT)
BEIS,UKRI - AHRC,07/03/2023,Non-staff travel and subsistance,Operations,Unspecified,99909105,48.54,Non-staff travel and subsistance
BEIS,UKRI - AHRC,07/03/2023,Fees (Including College Members),Operations,Unspecified,99909106,800.00,Fees (Including College Members)
BEIS,UKRI - AHRC,07/03/2023,Corporate Events,SMT,Calder Conference Ltd,99913265,3910.00,Corporate Events
BEIS,UKRI - AHRC,07/03/2023,Conferences & Seminars,Infrastruture Roadmap,Calder Conference Ltd,99913266,11562.00,Conferences & Seminars
BEIS,UKRI - AHRC,08/03/2023,Other Programme Costs,Future of UK Treescapes,UKRI - Natural Environment Research Council,99888924,650000.00,Other Programme Costs
BEIS,UKRI - AHRC,08/03/2023,T&S UK - Public Transport,Public and Stakeholder Engagement,Unspecified,99915897,7.00,T&S UK - Public Transport
BEIS,UKRI - AHRC,08/03/2023,T&S UK - Subsistence,Public and Stakeholder Engagement,Unspecified,99915897,7.00,T&S UK - Subsistence
BEIS,UKRI - AHRC,08/03/2023,T&S UK - Subsistence,Public and Stakeholder Engagement,Unspecified,99915897,12.40,T&S UK - Subsistence
BEIS,UKRI - AHRC,09/03/2023,Hospitality,Infrastruture Roadmap,Benugo Ltd,99913608,2277.18,Hospitality
BEIS,UKRI - AHRC,09/03/2023,Unspecified,Infrastructure Fund - CoSTAR,Audience Labs Ltd,99916361,10000.00,Legal & Professional Services
BEIS,UKRI - AHRC,09/03/2023,Fees (Including College Members),Operations,Unspecified,99916688,170.00,Fees (Including College Members)
BEIS,UKRI - AHRC,10/03/2023,Fees (Including College Members),Operations,Unspecified,99917804,170.00,Fees (Including College Members)
BEIS,UKRI - AHRC,10/03/2023,Fees (Including College Members),Operations,Unspecified,99917805,170.00,Fees (Including College Members)
BEIS,UKRI - AHRC,10/03/2023,T&S UK - Public Transport,AI&Design,Unspecified,99919140,2.80,T&S UK - Public Transport
BEIS,UKRI - AHRC,10/03/2023,T&S UK - Subsistence,AI&Design,Unspecified,99919140,17.88,T&S UK - Subsistence
BEIS,UKRI - AHRC,10/03/2023,T&S UK - Other Charges,Infrastruture Roadmap,Unspecified,99919141,27.60,T&S UK - Other Charges
BEIS,UKRI - AHRC,10/03/2023,T&S UK - Subsistence,Infrastruture Roadmap,Unspecified,99919141,46.50,T&S UK - Subsistence
BEIS,UKRI - AHRC,13/03/2023,Corporate Events,Board and Committee,Calder Conference Ltd,99918178,1986.24,Corporate Events
BEIS,UKRI - AHRC,13/03/2023,Unspecified,Infrastruture Roadmap,Alexander Mann Solutions Ltd,99921307,3465.30,Legal & Professional Services
BEIS,UKRI - AHRC,14/03/2023,Other Programme Costs,TSB Knowledge Transfer Partnerships,Technology Strategy Board (Innovate UK),99917884,63562.22,Other Programme Costs
BEIS,UKRI - AHRC,14/03/2023,Unspecified,Balance Sheet,HM Revenue & Customs,99917946,59740.20,NI Payable Salaries
BEIS,UKRI - AHRC,14/03/2023,Unspecified,Balance Sheet,HM Revenue & Customs,99917947,48503.26,PAYE Payable Salaries
BEIS,UKRI - AHRC,14/03/2023,Unspecified,Balance Sheet,HM Revenue & Customs,99917948,5046.00,Student Loans
BEIS,UKRI - AHRC,14/03/2023,Unspecified,Corporate Services,HM Revenue & Customs,99917949,1651.00,Apprenticeship Levy
BEIS,UKRI - AHRC,14/03/2023,Fees (Including College Members),Operations,Unspecified,99922645,170.00,Fees (Including College Members)
BEIS,UKRI - AHRC,14/03/2023,Fees (Including College Members),Operations,Unspecified,99922646,170.00,Fees (Including College Members)
BEIS,UKRI - AHRC,14/03/2023,T&S UK - Public Transport,SMT,Unspecified,99922725,45.80,T&S UK - Public Transport
BEIS,UKRI - AHRC,14/03/2023,T&S UK - Subsistence,SMT,Unspecified,99922725,25.00,T&S UK - Subsistence
BEIS,UKRI - AHRC,14/03/2023,T&S UK - Subsistence,SMT,Unspecified,99922725,19.32,T&S UK - Subsistence
BEIS,UKRI - AHRC,14/03/2023,T&S UK - Other Charges,AHRC - Creative Industries,Unspecified,99922727,37.60,T&S UK - Other Charges
BEIS,UKRI - AHRC,15/03/2023,T&S UK - Mileage,AI&Design,Unspecified,99904073,38.97,T&S UK - Mileage
BEIS,UKRI - AHRC,15/03/2023,T&S UK - Other Charges,AI&Design,Unspecified,99904073,5.70,T&S UK - Other Charges
BEIS,UKRI - AHRC,15/03/2023,T&S UK - Parking Tolls Congestion Charges,AI&Design,Unspecified,99904073,12.00,T&S UK - Parking Tolls Congestion Charges
BEIS,UKRI - AHRC,15/03/2023,Voluntary Deductions,Balance Sheet,Swindon Office Sports and Social Club,99917950,26.00,Voluntary Deductions
BEIS,UKRI - AHRC,15/03/2023,Union Deductions,Balance Sheet,PCS Union,99917951,59.84,Union Deductions
BEIS,UKRI - AHRC,15/03/2023,Unspecified,Balance Sheet,Unspecified,99917952,15783.08,Ees Pension Deductions - JSS
BEIS,UKRI - AHRC,15/03/2023,Unspecified,Balance Sheet,Unspecified,99917953,68925.90,Ers Pension Deductions - JSS
BEIS,UKRI - AHRC,15/03/2023,Unspecified,Balance Sheet,Scottish Widows,99917954,193.37,Partnership Pension Deductions
BEIS,UKRI - AHRC,15/03/2023,Unspecified,Balance Sheet,Cabinet Office RM Shared Services,99917955,12760.65,Ees Pension Deductions - MyCSP
BEIS,UKRI - AHRC,15/03/2023,Unspecified,Balance Sheet,Cabinet Office RM Shared Services,99917956,57472.71,Ers Pension Deductions - MyCSP
BEIS,UKRI - AHRC,15/03/2023,Unspecified,Balance Sheet,Unspecified,99917957,561.77,Ees Pension Deductions - MRC
BEIS,UKRI - AHRC,15/03/2023,Unspecified,Balance Sheet,Unspecified,99917958,1382.81,Ers Pension Deductions - MRC
BEIS,UKRI - AHRC,15/03/2023,Nursery Deductions,Balance Sheet,UKRI - Engineering & Physical Sciences Research Council,99917959,985.00,Nursery Deductions
BEIS,UKRI - AHRC,15/03/2023,Voluntary Deductions,Balance Sheet,Civil Service Benevolent Fund,99917960,5.00,Voluntary Deductions
BEIS,UKRI - AHRC,15/03/2023,Other Programme Costs,TSB Knowledge Transfer Partnerships,KNOWLEDGE TRANSFER NETWORK LTD,99922332,35153.00,Other Programme Costs
BEIS,UKRI - AHRC,15/03/2023,Other Programme Costs,TSB Knowledge Transfer Partnerships,KNOWLEDGE TRANSFER NETWORK LTD,99922332,6.00,Other Programme Costs
BEIS,UKRI - AHRC,15/03/2023,Fees (Including College Members),Operations,Unspecified,99922366,170.00,Fees (Including College Members)
BEIS,UKRI - AHRC,15/03/2023,Fees (Including College Members),Operations,Unspecified,99922367,230.00,Fees (Including College Members)
BEIS,UKRI - AHRC,15/03/2023,T&S UK - Public Transport,AI&Design,Unspecified,99922726,26.60,T&S UK - Public Transport
BEIS,UKRI - AHRC,15/03/2023,T&S UK - Subsistence,AI&Design,Unspecified,99922726,25.00,T&S UK - Subsistence
BEIS,UKRI - AHRC,15/03/2023,Fees (Including College Members),Public Engagement,Unspecified,99923208,255.00,Fees (Including College Members)
BEIS,UKRI - AHRC,15/03/2023,T&S Overseas - Other Charges,"Heritage, Culture & Creative Arts (HCCA)",Unspecified,99923255,5.12,T&S Overseas - Other Charges
BEIS,UKRI - AHRC,15/03/2023,T&S Overseas - Public Transport,"Heritage, Culture & Creative Arts (HCCA)",Unspecified,99923255,16.50,T&S Overseas - Public Transport
BEIS,UKRI - AHRC,15/03/2023,T&S Overseas - Public Transport,"Heritage, Culture & Creative Arts (HCCA)",Unspecified,99923255,111.73,T&S Overseas - Public Transport
BEIS,UKRI - AHRC,15/03/2023,T&S Overseas - Public Transport,"Heritage, Culture & Creative Arts (HCCA)",Unspecified,99923255,15.67,T&S Overseas - Public Transport
BEIS,UKRI - AHRC,15/03/2023,T&S Overseas - Subsistence,"Heritage, Culture & Creative Arts (HCCA)",Unspecified,99923255,20.00,T&S Overseas - Subsistence
BEIS,UKRI - AHRC,15/03/2023,T&S Overseas - Subsistence,"Heritage, Culture & Creative Arts (HCCA)",Unspecified,99923255,11.05,T&S Overseas - Subsistence
BEIS,UKRI - AHRC,15/03/2023,T&S Overseas - Subsistence,"Heritage, Culture & Creative Arts (HCCA)",Unspecified,99923255,51.37,T&S Overseas - Subsistence
BEIS,UKRI - AHRC,15/03/2023,T&S Overseas - Subsistence,"Heritage, Culture & Creative Arts (HCCA)",Unspecified,99923255,36.73,T&S Overseas - Subsistence
BEIS,UKRI - AHRC,15/03/2023,T&S UK - Other Charges,Executive Office,Unspecified,99923256,9.80,T&S UK - Other Charges
BEIS,UKRI - AHRC,15/03/2023,T&S UK - Public Transport,Executive Office,Unspecified,99923256,6.70,T&S UK - Public Transport
BEIS,UKRI - AHRC,15/03/2023,T&S UK - Subsistence,Executive Office,Unspecified,99923256,25.00,T&S UK - Subsistence
BEIS,UKRI - AHRC,15/03/2023,T&S UK - Subsistence,Executive Office,Unspecified,99923256,15.00,T&S UK - Subsistence
BEIS,UKRI - AHRC,15/03/2023,T&S UK - Public Transport,SMT,Unspecified,99923257,22.70,T&S UK - Public Transport
BEIS,UKRI - AHRC,15/03/2023,T&S UK - Subsistence,SMT,Unspecified,99923257,25.00,T&S UK - Subsistence
BEIS,UKRI - AHRC,15/03/2023,T&S UK - Subsistence,SMT,Unspecified,99923257,21.03,T&S UK - Subsistence
BEIS,UKRI - AHRC,15/03/2023,Health & Safety (inc. Medicals & Opticians),International Partnership and Engagement,Unspecified,99923258,45.00,Health & Safety (inc. Medicals & Opticians)
BEIS,UKRI - AHRC,16/03/2023,Other Programme Costs,Commissioned Research,UKRI - Engineering & Physical Sciences Research Council,99913575,-3750.00,Other Programme Costs
BEIS,UKRI - AHRC,16/03/2023,Research Grant Expenditure,Design Council,Design Council,99914176,150000.00,Research Grant Expenditure
BEIS,UKRI - AHRC,16/03/2023,Research Grant Expenditure,Design: Strategic Initiatives,Manchester Metropolitan University,99914177,7868.52,Research Grant Expenditure
BEIS,UKRI - AHRC,16/03/2023,Research Grant Expenditure,Design: Strategic Initiatives,London School of Economics and Political Science,99914178,12374.43,Research Grant Expenditure
BEIS,UKRI - AHRC,16/03/2023,Research Grant Expenditure,Design: Strategic Initiatives,Imperial College London,99914179,15252.35,Research Grant Expenditure
BEIS,UKRI - AHRC,16/03/2023,Research Grant Expenditure,Design: Strategic Initiatives,De Montfort University,99914180,16954.70,Research Grant Expenditure
BEIS,UKRI - AHRC,16/03/2023,Research Grant Expenditure,Design: Strategic Initiatives,University of the Highlands and Islands,99914181,11660.94,Research Grant Expenditure
BEIS,UKRI - AHRC,16/03/2023,Research Grant Expenditure,Design: Strategic Initiatives,Lancaster University,99914182,15919.24,Research Grant Expenditure
BEIS,UKRI - AHRC,16/03/2023,Research Grant Expenditure,Design: Strategic Initiatives,Royal College of Art,99914183,8057.36,Research Grant Expenditure
BEIS,UKRI - AHRC,16/03/2023,Research Grant Expenditure,Digital Transformations,The British Library,99914184,55942.00,Research Grant Expenditure
BEIS,UKRI - AHRC,16/03/2023,Research Grant Expenditure,World Class Labs (WCL),Falmouth University,99914185,851803.00,Research Grant Expenditure
BEIS,UKRI - AHRC,16/03/2023,Research Grant Expenditure,World Class Labs (WCL),Guildhall School of Music and Drama (City of London),99914186,901178.00,Research Grant Expenditure
BEIS,UKRI - AHRC,16/03/2023,Research Grant Expenditure,World Class Labs (WCL),University of Greenwich,99914187,998794.86,Research Grant Expenditure
BEIS,UKRI - AHRC,16/03/2023,Research Grant Expenditure,World Class Labs (WCL),University of Exeter,99914188,892776.09,Research Grant Expenditure
BEIS,UKRI - AHRC,16/03/2023,Research Grant Expenditure,World Class Labs (WCL),University for the Creative Arts,99914189,964850.00,Research Grant Expenditure
BEIS,UKRI - AHRC,16/03/2023,Research Grant Expenditure,World Class Labs (WCL),University of Leeds,99914190,969447.79,Research Grant Expenditure
BEIS,UKRI - AHRC,16/03/2023,Research Grant Expenditure,World Class Labs (WCL),University of the West of England,99914191,1146456.00,Research Grant Expenditure
BEIS,UKRI - AHRC,16/03/2023,Research Grant Expenditure,World Class Labs (WCL),National Portrait Gallery,99914192,165946.54,Research Grant Expenditure
BEIS,UKRI - AHRC,16/03/2023,Research Grant Expenditure,World Class Labs (WCL),University of the Arts London,99914193,1837200.00,Research Grant Expenditure
BEIS,UKRI - AHRC,16/03/2023,Research Grant Expenditure,World Class Labs (WCL),University of Liverpool,99914194,912976.10,Research Grant Expenditure
BEIS,UKRI - AHRC,16/03/2023,Research Grant Expenditure,World Class Labs (WCL),Historic Environment Scotland (GRANT),99914195,999998.07,Research Grant Expenditure
BEIS,UKRI - AHRC,16/03/2023,Research Grant Expenditure,World Class Labs (WCL),Royal College of Music,99914196,1040169.00,Research Grant Expenditure
BEIS,UKRI - AHRC,16/03/2023,Research Grant Expenditure,World Class Labs (WCL),British Film Institute,99914197,150789.41,Research Grant Expenditure
BEIS,UKRI - AHRC,16/03/2023,Research Grant Expenditure,World Class Labs (WCL),Anglia Ruskin University,99914198,970272.00,Research Grant Expenditure
BEIS,UKRI - AHRC,16/03/2023,Research Grant Expenditure,World Class Labs (WCL),Manchester Metropolitan University,99914199,2238335.38,Research Grant Expenditure
BEIS,UKRI - AHRC,16/03/2023,Research Grant Expenditure,World Class Labs (WCL),"City, University of London",99914200,327328.00,Research Grant Expenditure
BEIS,UKRI - AHRC,16/03/2023,Research Grant Expenditure,World Class Labs (WCL),National Museum of Wales,99914201,316604.00,Research Grant Expenditure
BEIS,UKRI - AHRC,16/03/2023,Research Grant Expenditure,World Class Labs (WCL),The Royal Central School of Speech and Drama,99914202,915319.90,Research Grant Expenditure
BEIS,UKRI - AHRC,16/03/2023,Research Grant Expenditure,World Class Labs (WCL),University of Nottingham,99914203,688037.54,Research Grant Expenditure
BEIS,UKRI - AHRC,16/03/2023,Research Grant Expenditure,World Class Labs (WCL),Coventry University,99914204,356967.78,Research Grant Expenditure
BEIS,UKRI - AHRC,16/03/2023,Research Grant Expenditure,World Class Labs (WCL),Norwich University of the Arts,99914205,781345.00,Research Grant Expenditure
BEIS,UKRI - AHRC,16/03/2023,Research Grant Expenditure,Networks & Workshops,Bournemouth University,99914206,25226.28,Research Grant Expenditure
BEIS,UKRI - AHRC,16/03/2023,Research Grant Expenditure,Networks & Workshops,University of Central Lancashire,99914207,12768.33,Research Grant Expenditure
BEIS,UKRI - AHRC,16/03/2023,Research Grant Expenditure,Networks & Workshops,University of Central Lancashire,99914208,16987.94,Research Grant Expenditure
BEIS,UKRI - AHRC,16/03/2023,Research Grant Expenditure,Networks & Workshops,University of Warwick,99914209,13350.94,Research Grant Expenditure
BEIS,UKRI - AHRC,16/03/2023,Research Grant Expenditure,Networks & Workshops,University of Warwick,99914210,17786.15,Research Grant Expenditure
BEIS,UKRI - AHRC,16/03/2023,Research Grant Expenditure,Networks & Workshops,London School of Hygiene & Tropical Medicine,99914211,12506.34,Research Grant Expenditure
BEIS,UKRI - AHRC,16/03/2023,Research Grant Expenditure,Networks & Workshops,De Montfort University,99914212,19707.80,Research Grant Expenditure
BEIS,UKRI - AHRC,16/03/2023,Research Grant Expenditure,Networks & Workshops,University of Leeds,99914213,18155.70,Research Grant Expenditure
BEIS,UKRI - AHRC,16/03/2023,Research Grant Expenditure,Networks & Workshops,University of Birmingham GRANT,99914214,27539.59,Research Grant Expenditure
BEIS,UKRI - AHRC,16/03/2023,Research Grant Expenditure,Networks & Workshops,London School of Hygiene & Tropical Medicine,99914215,16480.49,Research Grant Expenditure
BEIS,UKRI - AHRC,16/03/2023,Research Grant Expenditure,World Class Labs (WCL),National Trust,99914216,809121.00,Research Grant Expenditure
BEIS,UKRI - AHRC,16/03/2023,Research Grant Expenditure,Follow-on Fund,University of Brighton,99914217,16929.35,Research Grant Expenditure
BEIS,UKRI - AHRC,16/03/2023,Research Grant Expenditure,Indigenous Methods,Coventry University,99914218,159364.88,Research Grant Expenditure
BEIS,UKRI - AHRC,16/03/2023,Research Grant Expenditure,Indigenous Methods,University of Exeter,99914219,153510.65,Research Grant Expenditure
BEIS,UKRI - AHRC,16/03/2023,Research Grant Expenditure,Indigenous Methods,University of East London,99914220,155362.07,Research Grant Expenditure
BEIS,UKRI - AHRC,16/03/2023,Research Grant Expenditure,Indigenous Methods,University of Cambridge,99914221,157356.13,Research Grant Expenditure
BEIS,UKRI - AHRC,16/03/2023,Research Grant Expenditure,Indigenous Methods,University of Birmingham GRANT,99914222,156600.94,Research Grant Expenditure
BEIS,UKRI - AHRC,16/03/2023,Research Grant Expenditure,Indigenous Methods,University of Edinburgh,99914223,147582.83,Research Grant Expenditure
BEIS,UKRI - AHRC,16/03/2023,Research Grant Expenditure,Indigenous Methods,University of Kent,99914224,143865.19,Research Grant Expenditure
BEIS,UKRI - AHRC,16/03/2023,Research Grant Expenditure,Indigenous Methods,University of Greenwich,99914225,159255.45,Research Grant Expenditure
BEIS,UKRI - AHRC,16/03/2023,Research Grant Expenditure,Indigenous Methods,"SOAS, University of London",99914226,148476.94,Research Grant Expenditure
BEIS,UKRI - AHRC,16/03/2023,Research Grant Expenditure,DRI (Digital Research Infrastructure),University of Exeter,99914227,59624.81,Research Grant Expenditure
BEIS,UKRI - AHRC,16/03/2023,Research Grant Expenditure,DRI (Digital Research Infrastructure),University of Durham,99914228,50675.20,Research Grant Expenditure
BEIS,UKRI - AHRC,16/03/2023,Research Grant Expenditure,Artificial Intelligence,University of Edinburgh,99914229,870089.00,Research Grant Expenditure
BEIS,UKRI - AHRC,16/03/2023,Research Grant Expenditure,HERA Joint Research Programme,Museum of London Archaeology,99914230,44712.33,Research Grant Expenditure
BEIS,UKRI - AHRC,16/03/2023,Research Grant Expenditure,Indigenous Methods,University of Leicester,99914231,155501.27,Research Grant Expenditure
BEIS,UKRI - AHRC,16/03/2023,Research Grant Expenditure,AHRC - DCMS International Heritage Partnership,Nottingham Trent University,99914233,21616.94,Research Grant Expenditure
BEIS,UKRI - AHRC,16/03/2023,Research Grant Expenditure,AHRC - DCMS International Heritage Partnership,Queen Mary University of London,99914234,54170.11,Research Grant Expenditure
BEIS,UKRI - AHRC,16/03/2023,Research Grant Expenditure,AHRC - DCMS International Heritage Partnership,University of Durham,99914235,31048.25,Research Grant Expenditure
BEIS,UKRI - AHRC,16/03/2023,Research Grant Expenditure,ECR Fellowships in GLAM,Victoria and Albert Museum,99914236,18396.60,Research Grant Expenditure
BEIS,UKRI - AHRC,16/03/2023,Research Grant Expenditure,AHRC - DCMS International Heritage Partnership,University of Edinburgh,99914237,21625.60,Research Grant Expenditure
BEIS,UKRI - AHRC,16/03/2023,Research Grant Expenditure,HERA Joint Research Programme,University of Durham,99914238,27559.07,Research Grant Expenditure
BEIS,UKRI - AHRC,16/03/2023,Research Grant Expenditure,HERA Joint Research Programme,University of Plymouth,99914239,18708.31,Research Grant Expenditure
BEIS,UKRI - AHRC,16/03/2023,Research Grant Expenditure,Mobilising Cultural and Natural Assets,University of Southampton GRANT,99914240,73253.72,Research Grant Expenditure
BEIS,UKRI - AHRC,16/03/2023,Research Grant Expenditure,HERA Joint Research Programme,London School of Economics and Political Science,99914241,29170.16,Research Grant Expenditure
BEIS,UKRI - AHRC,16/03/2023,Research Grant Expenditure,Mobilising Cultural and Natural Assets,University of Huddersfield,99914242,68088.14,Research Grant Expenditure
BEIS,UKRI - AHRC,16/03/2023,Research Grant Expenditure,Mobilising Cultural and Natural Assets,"City, University of London",99914243,68880.28,Research Grant Expenditure
BEIS,UKRI - AHRC,16/03/2023,Research Grant Expenditure,Mobilising Cultural and Natural Assets,University of Essex,99914244,69516.31,Research Grant Expenditure
BEIS,UKRI - AHRC,16/03/2023,Research Grant Expenditure,Mobilising Cultural and Natural Assets,The University of Manchester,99914245,70837.09,Research Grant Expenditure
BEIS,UKRI - AHRC,16/03/2023,Research Grant Expenditure,Mobilising Cultural and Natural Assets,University of Bristol GRANT,99914246,72397.15,Research Grant Expenditure
BEIS,UKRI - AHRC,16/03/2023,Research Grant Expenditure,Mobilising Cultural and Natural Assets,University of Edinburgh,99914247,71043.59,Research Grant Expenditure
BEIS,UKRI - AHRC,16/03/2023,Research Grant Expenditure,Mobilising Cultural and Natural Assets,Institute of Development Studies,99914248,72857.44,Research Grant Expenditure
BEIS,UKRI - AHRC,16/03/2023,Research Grant Expenditure,Mobilising Cultural and Natural Assets,University of Plymouth,99914249,66997.58,Research Grant Expenditure
BEIS,UKRI - AHRC,16/03/2023,Research Grant Expenditure,HERA Joint Research Programme,Manchester Metropolitan University,99914250,47518.71,Research Grant Expenditure
BEIS,UKRI - AHRC,16/03/2023,Research Grant Expenditure,Mobilising Cultural and Natural Assets,University College London,99914251,72075.41,Research Grant Expenditure
BEIS,UKRI - AHRC,16/03/2023,Research Grant Expenditure,Mobilising Cultural and Natural Assets,University of Dundee,99914252,44535.75,Research Grant Expenditure
BEIS,UKRI - AHRC,16/03/2023,Research Grant Expenditure,Mobilising Cultural and Natural Assets,University of Liverpool,99914253,71238.36,Research Grant Expenditure
BEIS,UKRI - AHRC,16/03/2023,Research Grant Expenditure,Mobilising Cultural and Natural Assets,UNIVERSITY OF ULSTER,99914254,66811.37,Research Grant Expenditure
BEIS,UKRI - AHRC,16/03/2023,Research Grant Expenditure,Mobilising Cultural and Natural Assets,Northumbria University,99914255,66101.34,Research Grant Expenditure
BEIS,UKRI - AHRC,16/03/2023,Research Grant Expenditure,Mobilising Cultural and Natural Assets,Glasgow Caledonian University,99914256,62588.97,Research Grant Expenditure
BEIS,UKRI - AHRC,16/03/2023,Research Grant Expenditure,HERA Joint Research Programme,Sheffield Hallam University,99914257,50274.81,Research Grant Expenditure
BEIS,UKRI - AHRC,16/03/2023,Research Grant Expenditure,HERA Joint Research Programme,University of Huddersfield,99914258,39562.26,Research Grant Expenditure
BEIS,UKRI - AHRC,16/03/2023,Research Grant Expenditure,Mobilising Cultural and Natural Assets,Liverpool School of Tropical Medicine,99914259,70088.93,Research Grant Expenditure
BEIS,UKRI - AHRC,16/03/2023,Research Grant Expenditure,HERA Joint Research Programme,University of Edinburgh,99914260,44619.85,Research Grant Expenditure
BEIS,UKRI - AHRC,16/03/2023,Research Grant Expenditure,HERA Joint Research Programme,University of Birmingham GRANT,99914261,15189.93,Research Grant Expenditure
BEIS,UKRI - AHRC,16/03/2023,Research Grant Expenditure,Follow-on Fund,University of Nottingham,99914262,26304.52,Research Grant Expenditure
BEIS,UKRI - AHRC,16/03/2023,Research Grant Expenditure,Innovation Scholars,University of Sheffield,99914263,12356.57,Research Grant Expenditure
BEIS,UKRI - AHRC,16/03/2023,Research Grant Expenditure,Innovation Scholars,Manchester Metropolitan University,99914264,14372.49,Research Grant Expenditure
BEIS,UKRI - AHRC,16/03/2023,Research Grant Expenditure,International Other,"SOAS, University of London",99914265,25721.08,Research Grant Expenditure
BEIS,UKRI - AHRC,16/03/2023,Research Grant Expenditure,Follow-on Fund,University of the Arts London,99914266,20162.01,Research Grant Expenditure
BEIS,UKRI - AHRC,16/03/2023,Research Grant Expenditure,Follow-on Fund,University of Newcastle Upon Tyne,99914267,19906.82,Research Grant Expenditure
BEIS,UKRI - AHRC,16/03/2023,Research Grant Expenditure,Networks & Workshops,University of Brighton,99914268,3143.91,Research Grant Expenditure
BEIS,UKRI - AHRC,16/03/2023,Research Grant Expenditure,Follow-on Fund,The University of Manchester,99914269,25825.24,Research Grant Expenditure
BEIS,UKRI - AHRC,16/03/2023,Research Grant Expenditure,Networks & Workshops,University of Sheffield,99914270,6199.67,Research Grant Expenditure
BEIS,UKRI - AHRC,16/03/2023,Research Grant Expenditure,Networks & Workshops,University of Lincoln,99914271,3842.53,Research Grant Expenditure
BEIS,UKRI - AHRC,16/03/2023,Research Grant Expenditure,Impact Accelerator Accounts (IAA's),University College London,99914272,57450.00,Research Grant Expenditure
BEIS,UKRI - AHRC,16/03/2023,Research Grant Expenditure,Networks & Workshops,King's College London,99914273,4779.93,Research Grant Expenditure
BEIS,UKRI - AHRC,16/03/2023,Research Grant Expenditure,Impact Accelerator Accounts (IAA's),Lancaster University,99914274,54675.20,Research Grant Expenditure
BEIS,UKRI - AHRC,16/03/2023,Research Grant Expenditure,Impact Accelerator Accounts (IAA's),University of the West of England,99914275,55039.71,Research Grant Expenditure
BEIS,UKRI - AHRC,16/03/2023,Research Grant Expenditure,Impact Accelerator Accounts (IAA's),Cardiff University,99914276,37500.00,Research Grant Expenditure
BEIS,UKRI - AHRC,16/03/2023,Research Grant Expenditure,Impact Accelerator Accounts (IAA's),University of Cambridge,99914277,57497.60,Research Grant Expenditure
BEIS,UKRI - AHRC,16/03/2023,Research Grant Expenditure,Impact Accelerator Accounts (IAA's),Swansea University,99914278,53701.20,Research Grant Expenditure
BEIS,UKRI - AHRC,16/03/2023,Research Grant Expenditure,Impact Accelerator Accounts (IAA's),University of Sussex,99914279,37500.00,Research Grant Expenditure
BEIS,UKRI - AHRC,16/03/2023,Research Grant Expenditure,Impact Accelerator Accounts (IAA's),Museum of London Archaeology,99914280,37500.00,Research Grant Expenditure
BEIS,UKRI - AHRC,16/03/2023,Research Grant Expenditure,Impact Accelerator Accounts (IAA's),The University of Manchester,99914281,37500.00,Research Grant Expenditure
BEIS,UKRI - AHRC,16/03/2023,Research Grant Expenditure,Impact Accelerator Accounts (IAA's),King's College London,99914282,37500.00,Research Grant Expenditure
BEIS,UKRI - AHRC,16/03/2023,Research Grant Expenditure,Impact Accelerator Accounts (IAA's),University of Brighton,99914283,37500.00,Research Grant Expenditure
BEIS,UKRI - AHRC,16/03/2023,Research Grant Expenditure,Impact Accelerator Accounts (IAA's),University of Reading,99914284,37500.00,Research Grant Expenditure
BEIS,UKRI - AHRC,16/03/2023,Research Grant Expenditure,Impact Accelerator Accounts (IAA's),University of East Anglia,99914285,37500.00,Research Grant Expenditure
BEIS,UKRI - AHRC,16/03/2023,Research Grant Expenditure,Impact Accelerator Accounts (IAA's),University of Huddersfield,99914286,57485.20,Research Grant Expenditure
BEIS,UKRI - AHRC,16/03/2023,Research Grant Expenditure,Impact Accelerator Accounts (IAA's),Queen's University Belfast GRANT,99914287,37500.00,Research Grant Expenditure
BEIS,UKRI - AHRC,16/03/2023,Research Grant Expenditure,Impact Accelerator Accounts (IAA's),The Royal Central School of Speech and Drama,99914288,37500.00,Research Grant Expenditure
BEIS,UKRI - AHRC,16/03/2023,Research Grant Expenditure,Impact Accelerator Accounts (IAA's),University of Glasgow,99914289,37500.00,Research Grant Expenditure
BEIS,UKRI - AHRC,16/03/2023,Research Grant Expenditure,Impact Accelerator Accounts (IAA's),University of Birmingham GRANT,99914290,49605.20,Research Grant Expenditure
BEIS,UKRI - AHRC,16/03/2023,Research Grant Expenditure,Impact Accelerator Accounts (IAA's),Royal College of Art,99914291,37500.00,Research Grant Expenditure
BEIS,UKRI - AHRC,16/03/2023,Research Grant Expenditure,Impact Accelerator Accounts (IAA's),UNIVERSITY OF ULSTER,99914292,37500.00,Research Grant Expenditure
BEIS,UKRI - AHRC,16/03/2023,Research Grant Expenditure,Impact Accelerator Accounts (IAA's),Teesside University,99914293,37500.00,Research Grant Expenditure
BEIS,UKRI - AHRC,16/03/2023,Research Grant Expenditure,Impact Accelerator Accounts (IAA's),University of Southampton GRANT,99914294,37500.00,Research Grant Expenditure
BEIS,UKRI - AHRC,16/03/2023,Research Grant Expenditure,Impact Accelerator Accounts (IAA's),University of Hull,99914295,37500.00,Research Grant Expenditure
BEIS,UKRI - AHRC,16/03/2023,Research Grant Expenditure,Networks & Workshops,University of Leicester,99914296,13128.98,Research Grant Expenditure
BEIS,UKRI - AHRC,16/03/2023,Research Grant Expenditure,Impact Accelerator Accounts (IAA's),University of Exeter,99914297,37500.00,Research Grant Expenditure
BEIS,UKRI - AHRC,16/03/2023,Research Grant Expenditure,Networks & Workshops,University College London,99914298,9047.28,Research Grant Expenditure
BEIS,UKRI - AHRC,16/03/2023,Research Grant Expenditure,Impact Accelerator Accounts (IAA's),Bath Spa University,99914299,37500.00,Research Grant Expenditure
BEIS,UKRI - AHRC,16/03/2023,Research Grant Expenditure,Impact Accelerator Accounts (IAA's),University of Kent,99914300,37500.00,Research Grant Expenditure
BEIS,UKRI - AHRC,16/03/2023,Research Grant Expenditure,Impact Accelerator Accounts (IAA's),University for the Creative Arts,99914301,55865.60,Research Grant Expenditure
BEIS,UKRI - AHRC,16/03/2023,Research Grant Expenditure,Impact Accelerator Accounts (IAA's),University of Liverpool,99914302,37500.00,Research Grant Expenditure
BEIS,UKRI - AHRC,16/03/2023,Research Grant Expenditure,Follow-on Fund,Loughborough University,99914303,20016.69,Research Grant Expenditure
BEIS,UKRI - AHRC,16/03/2023,Research Grant Expenditure,Impact Accelerator Accounts (IAA's),University of Plymouth,99914304,37500.00,Research Grant Expenditure
BEIS,UKRI - AHRC,16/03/2023,Research Grant Expenditure,Impact Accelerator Accounts (IAA's),University of Bristol GRANT,99914305,37500.00,Research Grant Expenditure
BEIS,UKRI - AHRC,16/03/2023,Research Grant Expenditure,Storycraft fellowship (Bambo Soyinka),Bath Spa University,99914306,78343.94,Research Grant Expenditure
BEIS,UKRI - AHRC,16/03/2023,Research Grant Expenditure,Impact Accelerator Accounts (IAA's),University of Nottingham,99914307,37500.00,Research Grant Expenditure
BEIS,UKRI - AHRC,16/03/2023,Research Grant Expenditure,Impact Accelerator Accounts (IAA's),University of Hertfordshire,99914308,57383.20,Research Grant Expenditure
BEIS,UKRI - AHRC,16/03/2023,Research Grant Expenditure,Follow-on Fund,University of Birmingham GRANT,99914309,18956.93,Research Grant Expenditure
BEIS,UKRI - AHRC,16/03/2023,Research Grant Expenditure,AHRC - DFG Collaborative Research Grant,University of Brighton,99914310,27783.42,Research Grant Expenditure
BEIS,UKRI - AHRC,16/03/2023,Research Grant Expenditure,AHRC - DFG Collaborative Research Grant,University of Central Lancashire,99914311,22140.42,Research Grant Expenditure
BEIS,UKRI - AHRC,16/03/2023,Research Grant Expenditure,AHRC - DFG Collaborative Research Grant,University of Exeter,99914312,30690.22,Research Grant Expenditure
BEIS,UKRI - AHRC,16/03/2023,Research Grant Expenditure,AHRC - DFG Collaborative Research Grant,University of Bristol GRANT,99914313,22939.76,Research Grant Expenditure
BEIS,UKRI - AHRC,16/03/2023,Research Grant Expenditure,AHRC - DFG Collaborative Research Grant,University of Huddersfield,99914314,23499.36,Research Grant Expenditure
BEIS,UKRI - AHRC,16/03/2023,Research Grant Expenditure,AHRC - DFG Collaborative Research Grant,Bournemouth University,99914315,15621.41,Research Grant Expenditure
BEIS,UKRI - AHRC,16/03/2023,Research Grant Expenditure,AHRC - DFG Collaborative Research Grant,University of Glasgow,99914316,17668.03,Research Grant Expenditure
BEIS,UKRI - AHRC,16/03/2023,Research Grant Expenditure,AHRC - DFG Collaborative Research Grant,University of Newcastle Upon Tyne,99914317,18503.63,Research Grant Expenditure
BEIS,UKRI - AHRC,16/03/2023,Research Grant Expenditure,AHRC - DFG Collaborative Research Grant,University of Oxford,99914318,23475.01,Research Grant Expenditure
BEIS,UKRI - AHRC,16/03/2023,Research Grant Expenditure,AHRC - DFG Collaborative Research Grant,University of Birmingham GRANT,99914319,27026.50,Research Grant Expenditure
BEIS,UKRI - AHRC,16/03/2023,Research Grant Expenditure,AHRC - DFG Collaborative Research Grant,University of Leeds,99914320,18422.97,Research Grant Expenditure
BEIS,UKRI - AHRC,16/03/2023,Research Grant Expenditure,AHRC - DFG Collaborative Research Grant,University of Bristol GRANT,99914321,18204.14,Research Grant Expenditure
BEIS,UKRI - AHRC,16/03/2023,Research Grant Expenditure,AHRC - DFG Collaborative Research Grant,University of St Andrews,99914322,14431.29,Research Grant Expenditure
BEIS,UKRI - AHRC,16/03/2023,Research Grant Expenditure,International Other,University of East Anglia,99914323,21296.00,Research Grant Expenditure
BEIS,UKRI - AHRC,16/03/2023,Research Grant Expenditure,AHRC - DFG Collaborative Research Grant,University of St Andrews,99914324,23128.28,Research Grant Expenditure
BEIS,UKRI - AHRC,16/03/2023,Research Grant Expenditure,AHRC - DFG Collaborative Research Grant,University of Reading,99914325,22536.10,Research Grant Expenditure
BEIS,UKRI - AHRC,16/03/2023,Research Grant Expenditure,Follow-on Fund,University of the West of England,99914326,20149.85,Research Grant Expenditure
BEIS,UKRI - AHRC,16/03/2023,Research Grant Expenditure,AHRC - DFG Collaborative Research Grant,Sheffield Hallam University,99914327,27505.67,Research Grant Expenditure
BEIS,UKRI - AHRC,16/03/2023,Research Grant Expenditure,Public Policy,Northumbria University,99914328,106766.52,Research Grant Expenditure
BEIS,UKRI - AHRC,16/03/2023,Research Grant Expenditure,Research Grants,University of Bristol GRANT,99914329,72414.79,Research Grant Expenditure
BEIS,UKRI - AHRC,16/03/2023,Research Grant Expenditure,AHRC - DFG Collaborative Research Grant,"SOAS, University of London",99914330,16154.49,Research Grant Expenditure
BEIS,UKRI - AHRC,16/03/2023,Research Grant Expenditure,AHRC - DFG Collaborative Research Grant,University College London,99914331,28122.56,Research Grant Expenditure
BEIS,UKRI - AHRC,16/03/2023,Research Grant Expenditure,Networks & Workshops,University of Westminster,99914332,7765.02,Research Grant Expenditure
BEIS,UKRI - AHRC,16/03/2023,Research Grant Expenditure,Networks & Workshops,University of Westminster,99914332,6793.99,Research Grant Expenditure
BEIS,UKRI - AHRC,16/03/2023,Research Grant Expenditure,International Other,University of Sheffield,99914333,24867.06,Research Grant Expenditure
BEIS,UKRI - AHRC,16/03/2023,Research Grant Expenditure,Research Grants,University of Warwick,99914334,66217.10,Research Grant Expenditure
BEIS,UKRI - AHRC,16/03/2023,Research Grant Expenditure,International Other,Queen's University Belfast GRANT,99914335,21976.65,Research Grant Expenditure
BEIS,UKRI - AHRC,16/03/2023,Research Grant Expenditure,Modern Slavery and Human Rights (SPF),University of Exeter,99914336,53011.75,Research Grant Expenditure
BEIS,UKRI - AHRC,16/03/2023,Research Grant Expenditure,Modern Slavery and Human Rights (SPF),University of Portsmouth,99914337,38615.16,Research Grant Expenditure
BEIS,UKRI - AHRC,16/03/2023,Research Grant Expenditure,Modern Slavery and Human Rights (SPF),University of Essex,99914338,54196.15,Research Grant Expenditure
BEIS,UKRI - AHRC,16/03/2023,Research Grant Expenditure,Modern Slavery and Human Rights (SPF),University of Leicester,99914339,54104.44,Research Grant Expenditure
BEIS,UKRI - AHRC,16/03/2023,Research Grant Expenditure,Research Grants,Historic Royal Palaces,99914340,58748.52,Research Grant Expenditure
BEIS,UKRI - AHRC,16/03/2023,Research Grant Expenditure,Mobilising Cultural and Natural Assets,Lancaster University,99914341,36212.45,Research Grant Expenditure
BEIS,UKRI - AHRC,16/03/2023,Research Grant Expenditure,Networks & Workshops,University of Edinburgh,99914342,4921.31,Research Grant Expenditure
BEIS,UKRI - AHRC,16/03/2023,Research Grant Expenditure,Follow-on Fund,University of the West of England,99914343,20147.97,Research Grant Expenditure
BEIS,UKRI - AHRC,16/03/2023,Research Grant Expenditure,Networks & Workshops,University of Liverpool,99914344,4705.01,Research Grant Expenditure
BEIS,UKRI - AHRC,16/03/2023,Research Grant Expenditure,Networks & Workshops,Lancaster University,99914345,4597.94,Research Grant Expenditure
BEIS,UKRI - AHRC,16/03/2023,Research Grant Expenditure,AHRC - DFG Collaborative Research Grant,Cardiff University,99914346,22900.28,Research Grant Expenditure
BEIS,UKRI - AHRC,16/03/2023,Research Grant Expenditure,AHRC - DFG Collaborative Research Grant,University of Durham,99914347,26421.97,Research Grant Expenditure
BEIS,UKRI - AHRC,16/03/2023,Research Grant Expenditure,AHRC - DFG Collaborative Research Grant,University of Edinburgh,99914348,25966.22,Research Grant Expenditure
BEIS,UKRI - AHRC,16/03/2023,Research Grant Expenditure,AHRC - DFG Collaborative Research Grant,University of Cambridge,99914349,16515.74,Research Grant Expenditure
BEIS,UKRI - AHRC,16/03/2023,Research Grant Expenditure,AHRC - DFG Collaborative Research Grant,University of Edinburgh,99914350,26414.45,Research Grant Expenditure
BEIS,UKRI - AHRC,16/03/2023,Research Grant Expenditure,AHRC - DFG Collaborative Research Grant,University of Essex,99914351,28157.11,Research Grant Expenditure
BEIS,UKRI - AHRC,16/03/2023,Research Grant Expenditure,AHRC - DFG Collaborative Research Grant,University of the Highlands and Islands,99914352,25224.34,Research Grant Expenditure
BEIS,UKRI - AHRC,16/03/2023,Research Grant Expenditure,AHRC - DFG Collaborative Research Grant,University of Oxford,99914353,35567.16,Research Grant Expenditure
BEIS,UKRI - AHRC,16/03/2023,Research Grant Expenditure,AHRC - DFG Collaborative Research Grant,Teesside University,99914354,30508.78,Research Grant Expenditure
BEIS,UKRI - AHRC,16/03/2023,Research Grant Expenditure,AHRC - DFG Collaborative Research Grant,University of Oxford,99914355,21000.77,Research Grant Expenditure
BEIS,UKRI - AHRC,16/03/2023,Research Grant Expenditure,AHRC - DFG Collaborative Research Grant,University of Newcastle Upon Tyne,99914356,23629.00,Research Grant Expenditure
BEIS,UKRI - AHRC,16/03/2023,Research Grant Expenditure,AHRC - DFG Collaborative Research Grant,University of Liverpool,99914357,21951.80,Research Grant Expenditure
BEIS,UKRI - AHRC,16/03/2023,Research Grant Expenditure,AHRC - DFG Collaborative Research Grant,University of Warwick,99914358,35566.44,Research Grant Expenditure
BEIS,UKRI - AHRC,16/03/2023,Research Grant Expenditure,AHRC - DFG Collaborative Research Grant,University of Birmingham GRANT,99914359,25941.90,Research Grant Expenditure
BEIS,UKRI - AHRC,16/03/2023,Research Grant Expenditure,AHRC - DFG Collaborative Research Grant,University of Bristol GRANT,99914360,33941.17,Research Grant Expenditure
BEIS,UKRI - AHRC,16/03/2023,Research Grant Expenditure,AHRC - DFG Collaborative Research Grant,University of Exeter,99914361,23928.11,Research Grant Expenditure
BEIS,UKRI - AHRC,16/03/2023,Research Grant Expenditure,AHRC - DFG Collaborative Research Grant,University of Southampton GRANT,99914362,30089.83,Research Grant Expenditure
BEIS,UKRI - AHRC,16/03/2023,Research Grant Expenditure,AHRC - DFG Collaborative Research Grant,University of Stirling,99914363,27283.60,Research Grant Expenditure
BEIS,UKRI - AHRC,16/03/2023,Research Grant Expenditure,Networks & Workshops,London School of Economics and Political Science,99914364,7156.47,Research Grant Expenditure
BEIS,UKRI - AHRC,16/03/2023,Research Grant Expenditure,Research Grants,University of Wales Trinity St David,99914365,53886.16,Research Grant Expenditure
BEIS,UKRI - AHRC,16/03/2023,Research Grant Expenditure,Follow-on Fund,University of Stirling,99914366,20160.76,Research Grant Expenditure
BEIS,UKRI - AHRC,16/03/2023,Research Grant Expenditure,Follow-on Fund,University of Stirling,99914366,20160.75,Research Grant Expenditure
BEIS,UKRI - AHRC,16/03/2023,Research Grant Expenditure,Follow-on Fund,University of Stirling,99914366,20160.75,Research Grant Expenditure
BEIS,UKRI - AHRC,16/03/2023,Research Grant Expenditure,Research Grants,Birmingham City University,99914367,59030.73,Research Grant Expenditure
BEIS,UKRI - AHRC,16/03/2023,Research Grant Expenditure,Research Grants,University of Durham,99914368,64153.59,Research Grant Expenditure
BEIS,UKRI - AHRC,16/03/2023,Research Grant Expenditure,Networks & Workshops,London School of Economics and Political Science,99914369,12079.48,Research Grant Expenditure
BEIS,UKRI - AHRC,16/03/2023,Research Grant Expenditure,Networks & Workshops,International Institute For Environment And Development,99914370,13647.35,Research Grant Expenditure
BEIS,UKRI - AHRC,16/03/2023,Research Grant Expenditure,Networks & Workshops,University of Essex,99914371,12543.70,Research Grant Expenditure
BEIS,UKRI - AHRC,16/03/2023,Research Grant Expenditure,Networks & Workshops,University of the Arts London,99914372,13023.74,Research Grant Expenditure
BEIS,UKRI - AHRC,16/03/2023,Research Grant Expenditure,Networks & Workshops,University College London,99914373,12526.96,Research Grant Expenditure
BEIS,UKRI - AHRC,16/03/2023,Research Grant Expenditure,Research Grants,University of Bristol GRANT,99914374,46294.21,Research Grant Expenditure
BEIS,UKRI - AHRC,16/03/2023,Research Grant Expenditure,Research Grants,University of Bristol GRANT,99914374,66688.81,Research Grant Expenditure
BEIS,UKRI - AHRC,16/03/2023,Research Grant Expenditure,Networks & Workshops,De Montfort University,99914375,12035.86,Research Grant Expenditure
BEIS,UKRI - AHRC,16/03/2023,Research Grant Expenditure,Follow-on Fund,University of Bath,99914376,20157.77,Research Grant Expenditure
BEIS,UKRI - AHRC,16/03/2023,Research Grant Expenditure,Research Grants,University of London,99914377,53605.51,Research Grant Expenditure
BEIS,UKRI - AHRC,16/03/2023,Research Grant Expenditure,Networks & Workshops,University of the Arts London,99914378,4020.05,Research Grant Expenditure
BEIS,UKRI - AHRC,16/03/2023,Research Grant Expenditure,Research Grants,University College London,99914379,48387.58,Research Grant Expenditure
BEIS,UKRI - AHRC,16/03/2023,Research Grant Expenditure,Research Grants,University College London,99914379,48387.68,Research Grant Expenditure
BEIS,UKRI - AHRC,16/03/2023,Research Grant Expenditure,Networks & Workshops,University of Oxford,99914380,4222.18,Research Grant Expenditure
BEIS,UKRI - AHRC,16/03/2023,Research Grant Expenditure,Hidden Histories,University of Sussex,99914381,6599.19,Research Grant Expenditure
BEIS,UKRI - AHRC,16/03/2023,Research Grant Expenditure,Labex,University of Exeter,99914382,16737.27,Research Grant Expenditure
BEIS,UKRI - AHRC,16/03/2023,Research Grant Expenditure,Hidden Histories,University of Liverpool,99914383,6576.93,Research Grant Expenditure
BEIS,UKRI - AHRC,16/03/2023,Research Grant Expenditure,Investment in Place,University of Bradford,99914384,9994.40,Research Grant Expenditure
BEIS,UKRI - AHRC,16/03/2023,Research Grant Expenditure,Investment in Place,Glasgow School of Art,99914385,9985.98,Research Grant Expenditure
BEIS,UKRI - AHRC,16/03/2023,Research Grant Expenditure,Investment in Place,University of Exeter,99914386,9625.60,Research Grant Expenditure
BEIS,UKRI - AHRC,16/03/2023,Research Grant Expenditure,Hidden Histories,The University of Manchester,99914387,4829.58,Research Grant Expenditure
BEIS,UKRI - AHRC,16/03/2023,Research Grant Expenditure,Hidden Histories,UK Centre for Ecology and Hydrology (UKCEH),99914388,7662.83,Research Grant Expenditure
BEIS,UKRI - AHRC,16/03/2023,Research Grant Expenditure,Investment in Place,University of Edinburgh,99914389,10000.00,Research Grant Expenditure
BEIS,UKRI - AHRC,16/03/2023,Research Grant Expenditure,Investment in Place,The Open University,99914390,9949.89,Research Grant Expenditure
BEIS,UKRI - AHRC,16/03/2023,Research Grant Expenditure,Investment in Place,Coventry University,99914391,9911.67,Research Grant Expenditure
BEIS,UKRI - AHRC,16/03/2023,Research Grant Expenditure,Hidden Histories,University of Hull,99914392,6659.55,Research Grant Expenditure
BEIS,UKRI - AHRC,16/03/2023,Research Grant Expenditure,Investment in Place,University of Southampton GRANT,99914393,209580.00,Research Grant Expenditure
BEIS,UKRI - AHRC,16/03/2023,Research Grant Expenditure,Research Grants,University of the Arts London,99914394,25940.12,Research Grant Expenditure
BEIS,UKRI - AHRC,16/03/2023,Research Grant Expenditure,Research Grants,University of the Arts London,99914394,25940.13,Research Grant Expenditure
BEIS,UKRI - AHRC,16/03/2023,Research Grant Expenditure,Infrastructure Fund - Preliminary activity - RICHes (Science R&D),Manchester Metropolitan University,99916050,19355.52,Research Grant Expenditure
BEIS,UKRI - AHRC,16/03/2023,Research Grant Expenditure,World Class Labs (WCL),National Museum of Wales,99916051,-623.46,Research Grant Expenditure
BEIS,UKRI - AHRC,16/03/2023,Research Grant Expenditure,Public and Stakeholder Engagement,Kingston University,99916052,3962.36,Research Grant Expenditure
BEIS,UKRI - AHRC,16/03/2023,Research Grant Expenditure,Public and Stakeholder Engagement,University of Oxford,99916053,-2093.23,Research Grant Expenditure
BEIS,UKRI - AHRC,16/03/2023,Research Grant Expenditure,World Class Labs (WCL),Birkbeck College,99916054,14949.20,Research Grant Expenditure
BEIS,UKRI - AHRC,16/03/2023,Research Grant Expenditure,International Other,The British Library,99916055,-806.13,Research Grant Expenditure
BEIS,UKRI - AHRC,16/03/2023,Research Grant Expenditure,World Class Labs (WCL),University of Durham,99916056,9126.16,Research Grant Expenditure
BEIS,UKRI - AHRC,16/03/2023,Research Grant Expenditure,World Class Labs (WCL),University of Dundee,99916057,11293.94,Research Grant Expenditure
BEIS,UKRI - AHRC,16/03/2023,Research Grant Expenditure,International Other,Birmingham City University,99916058,-40381.57,Research Grant Expenditure
BEIS,UKRI - AHRC,16/03/2023,Research Grant Expenditure,International Other,De Montfort University,99916059,-2444.56,Research Grant Expenditure
BEIS,UKRI - AHRC,16/03/2023,Research Grant Expenditure,World Class Labs (WCL),University of Newcastle Upon Tyne,99916061,-0.39,Research Grant Expenditure
BEIS,UKRI - AHRC,16/03/2023,Research Grant Expenditure,Global Challenges Research Fund (GCRF),University of Leeds,99916062,29117.65,Research Grant Expenditure
BEIS,UKRI - AHRC,16/03/2023,Research Grant Expenditure,International Other,University of Leeds,99916063,70850.84,Research Grant Expenditure
BEIS,UKRI - AHRC,16/03/2023,Research Grant Expenditure,Networks & Workshops,University of Bradford,99916064,-7699.95,Research Grant Expenditure
BEIS,UKRI - AHRC,16/03/2023,Research Grant Expenditure,AHRC - DCMS International Heritage Partnership,University of the Arts London,99916065,53090.02,Research Grant Expenditure
BEIS,UKRI - AHRC,16/03/2023,Research Grant Expenditure,World Class Labs (WCL),University of Leeds,99916066,-6666.32,Research Grant Expenditure
BEIS,UKRI - AHRC,16/03/2023,Research Grant Expenditure,World Class Labs (WCL),University of Oxford,99916067,-1628.21,Research Grant Expenditure
BEIS,UKRI - AHRC,16/03/2023,Research Grant Expenditure,World Class Labs (WCL),University of Brighton,99916068,90328.66,Research Grant Expenditure
BEIS,UKRI - AHRC,16/03/2023,Research Grant Expenditure,World Class Labs (WCL),Aberystwyth University,99916069,44013.83,Research Grant Expenditure
BEIS,UKRI - AHRC,16/03/2023,Research Grant Expenditure,Follow-on Fund,University of Durham,99916070,39671.97,Research Grant Expenditure
BEIS,UKRI - AHRC,16/03/2023,Research Grant Expenditure,Follow-on Fund,University College London,99916071,29900.10,Research Grant Expenditure
BEIS,UKRI - AHRC,16/03/2023,Research Grant Expenditure,Follow-on Fund,University of Cambridge,99916072,1063.29,Research Grant Expenditure
BEIS,UKRI - AHRC,16/03/2023,Research Grant Expenditure,COVID-19 (AHRC funded),Bangor University,99916073,20806.68,Research Grant Expenditure
BEIS,UKRI - AHRC,16/03/2023,Research Grant Expenditure,COVID-19 (AHRC funded),University of Oxford,99916074,41210.51,Research Grant Expenditure
BEIS,UKRI - AHRC,16/03/2023,Research Grant Expenditure,COVID-19 (AHRC funded),Bangor University,99916075,84919.24,Research Grant Expenditure
BEIS,UKRI - AHRC,16/03/2023,Research Grant Expenditure,Follow-on Fund,University of the Arts London,99916076,19519.68,Research Grant Expenditure
BEIS,UKRI - AHRC,16/03/2023,Research Grant Expenditure,Follow-on Fund,Cardiff University,99916077,1203.13,Research Grant Expenditure
BEIS,UKRI - AHRC,16/03/2023,Research Grant Expenditure,Follow-on Fund,University of Leeds,99916078,24859.35,Research Grant Expenditure
BEIS,UKRI - AHRC,16/03/2023,Research Grant Expenditure,Networks & Workshops,Birkbeck College,99916079,8739.57,Research Grant Expenditure
BEIS,UKRI - AHRC,16/03/2023,Research Grant Expenditure,Networks & Workshops,Sheffield Hallam University,99916080,6566.56,Research Grant Expenditure
BEIS,UKRI - AHRC,16/03/2023,Research Grant Expenditure,Follow-on Fund,University of Portsmouth,99916081,8715.47,Research Grant Expenditure
BEIS,UKRI - AHRC,16/03/2023,Research Grant Expenditure,COVID-19,University of the West of England,99916082,30888.86,Research Grant Expenditure
BEIS,UKRI - AHRC,16/03/2023,Research Grant Expenditure,COVID-19,Royal College of Art,99916083,52421.73,Research Grant Expenditure
BEIS,UKRI - AHRC,16/03/2023,Research Grant Expenditure,COVID-19 (AHRC funded),Bournemouth University,99916084,-19026.14,Research Grant Expenditure
BEIS,UKRI - AHRC,16/03/2023,Research Grant Expenditure,COVID-19,University of Newcastle Upon Tyne,99916085,-3828.51,Research Grant Expenditure
BEIS,UKRI - AHRC,16/03/2023,Research Grant Expenditure,COVID-19 (AHRC funded),University of Bristol GRANT,99916086,-8065.38,Research Grant Expenditure
BEIS,UKRI - AHRC,16/03/2023,Research Grant Expenditure,COVID-19,Queen Mary University of London,99916087,78609.69,Research Grant Expenditure
BEIS,UKRI - AHRC,16/03/2023,Research Grant Expenditure,Networks & Workshops,University of Exeter,99916088,4441.37,Research Grant Expenditure
BEIS,UKRI - AHRC,16/03/2023,Research Grant Expenditure,Follow-on Fund,University of Oxford,99916089,-34.51,Research Grant Expenditure
BEIS,UKRI - AHRC,16/03/2023,Research Grant Expenditure,Modern Slavery and Human Rights (SPF),King's College London,99916090,-15918.93,Research Grant Expenditure
BEIS,UKRI - AHRC,16/03/2023,Research Grant Expenditure,Modern Slavery and Human Rights (SPF),Sheffield Hallam University,99916091,22860.25,Research Grant Expenditure
BEIS,UKRI - AHRC,16/03/2023,Research Grant Expenditure,Follow-on Fund,University of Nottingham,99916092,14313.27,Research Grant Expenditure
BEIS,UKRI - AHRC,16/03/2023,Research Grant Expenditure,World Class Labs (WCL),University of Reading,99916093,-56994.37,Research Grant Expenditure
BEIS,UKRI - AHRC,16/03/2023,Research Grant Expenditure,Follow-on Fund,University of Nottingham,99916094,-24235.36,Research Grant Expenditure
BEIS,UKRI - AHRC,16/03/2023,Research Grant Expenditure,World Class Labs (WCL),University of Edinburgh,99916095,-61739.64,Research Grant Expenditure
BEIS,UKRI - AHRC,16/03/2023,Research Grant Expenditure,Follow-on Fund,University of Oxford,99916096,19770.84,Research Grant Expenditure
BEIS,UKRI - AHRC,16/03/2023,Research Grant Expenditure,Follow-on Fund,University of Sheffield,99916097,17194.62,Research Grant Expenditure
BEIS,UKRI - AHRC,16/03/2023,Research Grant Expenditure,Global Challenges Research Fund (GCRF),University of Leicester,99916098,-4234.38,Research Grant Expenditure
BEIS,UKRI - AHRC,16/03/2023,Research Grant Expenditure,Follow-on Fund,University of Leeds,99916099,16693.04,Research Grant Expenditure
BEIS,UKRI - AHRC,16/03/2023,Research Grant Expenditure,Networks & Workshops,King's College London,99916100,5502.31,Research Grant Expenditure
BEIS,UKRI - AHRC,16/03/2023,Research Grant Expenditure,COVID-19,University of Exeter,99916101,48358.33,Research Grant Expenditure
BEIS,UKRI - AHRC,16/03/2023,Research Grant Expenditure,Global Challenges Research Fund (GCRF),Queen's University Belfast GRANT,99916102,-23530.74,Research Grant Expenditure
BEIS,UKRI - AHRC,16/03/2023,Research Grant Expenditure,Global Challenges Research Fund (GCRF),University of Durham,99916103,-4065.02,Research Grant Expenditure
BEIS,UKRI - AHRC,16/03/2023,Research Grant Expenditure,Networks & Workshops,University of Bristol GRANT,99916104,-5772.34,Research Grant Expenditure
BEIS,UKRI - AHRC,16/03/2023,Research Grant Expenditure,Follow-on Fund,Queen's University Belfast GRANT,99916105,-5823.32,Research Grant Expenditure
BEIS,UKRI - AHRC,16/03/2023,Research Grant Expenditure,Follow-on Fund,Aston University,99916106,20160.59,Research Grant Expenditure
BEIS,UKRI - AHRC,16/03/2023,Research Grant Expenditure,Networks & Workshops,University of Sussex,99916107,6665.32,Research Grant Expenditure
BEIS,UKRI - AHRC,16/03/2023,Research Grant Expenditure,Research Grants,University of York,99916108,16724.09,Research Grant Expenditure
BEIS,UKRI - AHRC,16/03/2023,Research Grant Expenditure,Funds for International Collaboration (FIC 20 US),University of Cambridge,99916109,-10349.25,Research Grant Expenditure
BEIS,UKRI - AHRC,16/03/2023,Research Grant Expenditure,Landscape Decisions (SPF),Keele University,99916110,-2229.98,Research Grant Expenditure
BEIS,UKRI - AHRC,16/03/2023,Research Grant Expenditure,Follow-on Fund,The University of Manchester,99916111,-224.73,Research Grant Expenditure
BEIS,UKRI - AHRC,16/03/2023,Research Grant Expenditure,Follow-on Fund,University of Reading,99916112,-3241.45,Research Grant Expenditure
BEIS,UKRI - AHRC,16/03/2023,Research Grant Expenditure,Global Challenges Research Fund (GCRF),Lancaster University,99916113,-263.44,Research Grant Expenditure
BEIS,UKRI - AHRC,16/03/2023,Research Grant Expenditure,Follow-on Fund,University of Leicester,99916114,-3865.96,Research Grant Expenditure
BEIS,UKRI - AHRC,16/03/2023,Research Grant Expenditure,Follow-on Fund,University of Leeds,99916115,-16993.61,Research Grant Expenditure
BEIS,UKRI - AHRC,16/03/2023,Research Grant Expenditure,Global Challenges Research Fund (GCRF),University of Cambridge,99916116,-2435.63,Research Grant Expenditure
BEIS,UKRI - AHRC,16/03/2023,Research Grant Expenditure,Global Challenges Research Fund (GCRF),University of Leeds,99916117,-368.24,Research Grant Expenditure
BEIS,UKRI - AHRC,16/03/2023,Research Grant Expenditure,Global Challenges Research Fund (GCRF),Lancaster University,99916118,-7272.27,Research Grant Expenditure
BEIS,UKRI - AHRC,16/03/2023,Research Grant Expenditure,Research Grants,Loughborough University,99916119,24006.46,Research Grant Expenditure
BEIS,UKRI - AHRC,16/03/2023,Research Grant Expenditure,Landscape Decisions (SPF),University of Central Lancashire,99916120,-5730.86,Research Grant Expenditure
BEIS,UKRI - AHRC,16/03/2023,Research Grant Expenditure,Landscape Decisions (SPF),University of Reading,99916121,-7856.98,Research Grant Expenditure
BEIS,UKRI - AHRC,16/03/2023,Research Grant Expenditure,Landscape Decisions (SPF),Sheffield Hallam University,99916122,-9347.60,Research Grant Expenditure
BEIS,UKRI - AHRC,16/03/2023,Research Grant Expenditure,Networks & Workshops,University of Leeds,99916123,-4651.79,Research Grant Expenditure
BEIS,UKRI - AHRC,16/03/2023,Research Grant Expenditure,Networks & Workshops,Bath Spa University,99916124,-7833.00,Research Grant Expenditure
BEIS,UKRI - AHRC,16/03/2023,Research Grant Expenditure,RCUK Global Challenges Research Fund (RCUK GCRF),University of Bristol GRANT,99916125,2410.66,Research Grant Expenditure
BEIS,UKRI - AHRC,16/03/2023,Research Grant Expenditure,Networks & Workshops,Oxford Brookes University,99916126,-5006.41,Research Grant Expenditure
BEIS,UKRI - AHRC,16/03/2023,Research Grant Expenditure,Research Grants,Loughborough University,99916127,16939.20,Research Grant Expenditure
BEIS,UKRI - AHRC,16/03/2023,Research Grant Expenditure,Follow-on Fund,University of Exeter,99916128,-7907.97,Research Grant Expenditure
BEIS,UKRI - AHRC,16/03/2023,Research Grant Expenditure,Research Grants,Cardiff University,99916129,51581.01,Research Grant Expenditure
BEIS,UKRI - AHRC,16/03/2023,Research Grant Expenditure,Networks & Workshops,The University of Manchester,99916130,-12009.08,Research Grant Expenditure
BEIS,UKRI - AHRC,16/03/2023,Research Grant Expenditure,Research Grants,University College London,99916131,12454.34,Research Grant Expenditure
BEIS,UKRI - AHRC,16/03/2023,Research Grant Expenditure,Research Grants,Lancaster University,99916132,35458.21,Research Grant Expenditure
BEIS,UKRI - AHRC,16/03/2023,Research Grant Expenditure,Global Challenges Research Fund (GCRF),King's College London,99916133,-1217.30,Research Grant Expenditure
BEIS,UKRI - AHRC,16/03/2023,Research Grant Expenditure,Research Grants,University of Oxford,99916134,23690.33,Research Grant Expenditure
BEIS,UKRI - AHRC,16/03/2023,Research Grant Expenditure,Networks & Workshops,Kingston University,99916135,-6733.55,Research Grant Expenditure
BEIS,UKRI - AHRC,16/03/2023,Research Grant Expenditure,Research Grants,University of the Arts London,99916136,30115.08,Research Grant Expenditure
BEIS,UKRI - AHRC,16/03/2023,Research Grant Expenditure,Research Grants,Oxford Brookes University,99916137,33664.48,Research Grant Expenditure
BEIS,UKRI - AHRC,16/03/2023,Research Grant Expenditure,Global Challenges Research Fund (GCRF),University of Liverpool,99916138,5671.09,Research Grant Expenditure
BEIS,UKRI - AHRC,16/03/2023,Research Grant Expenditure,Research Grants,Cardiff University,99916139,24457.18,Research Grant Expenditure
BEIS,UKRI - AHRC,16/03/2023,Research Grant Expenditure,Research Grants,University of Southampton GRANT,99916140,70687.47,Research Grant Expenditure
BEIS,UKRI - AHRC,16/03/2023,Research Grant Expenditure,Science and Heritage Programme,University College London,99916141,-192.53,Research Grant Expenditure
BEIS,UKRI - AHRC,16/03/2023,Research Grant Expenditure,Research Grants,Queen's University Belfast GRANT,99916142,43687.59,Research Grant Expenditure
BEIS,UKRI - AHRC,16/03/2023,Research Grant Expenditure,Research Grants,Loughborough University,99916143,47585.81,Research Grant Expenditure
BEIS,UKRI - AHRC,16/03/2023,Fellowships,Research Fellowships,University of Sheffield,99916148,21106.87,Fellowships
BEIS,UKRI - AHRC,16/03/2023,Fellowships,Research Fellowships,University of Leeds,99916149,33859.80,Fellowships
BEIS,UKRI - AHRC,16/03/2023,Fellowships,Public Policy,Institute of Development Studies,99916150,34790.75,Fellowships
BEIS,UKRI - AHRC,16/03/2023,Fellowships,Public Policy,University of Sheffield,99916151,22958.61,Fellowships
BEIS,UKRI - AHRC,16/03/2023,Fellowships,Research Fellowships,Bath Spa University,99916152,24339.36,Fellowships
BEIS,UKRI - AHRC,16/03/2023,Fellowships,Research Fellowships,University of Bristol GRANT,99916153,28755.68,Fellowships
BEIS,UKRI - AHRC,16/03/2023,Fellowships,Research Fellowships,The Open University,99916154,35291.03,Fellowships
BEIS,UKRI - AHRC,16/03/2023,Fellowships,Research Fellowships,University of Glasgow,99916155,26339.59,Fellowships
BEIS,UKRI - AHRC,16/03/2023,Fellowships,Research Fellowships,University of York,99916156,21753.10,Fellowships
BEIS,UKRI - AHRC,16/03/2023,Fellowships,Research Fellowships,University of Edinburgh,99916157,27393.59,Fellowships
BEIS,UKRI - AHRC,16/03/2023,Fellowships,Research Fellowships,Royal College of Art,99916158,30066.51,Fellowships
BEIS,UKRI - AHRC,16/03/2023,Fellowships,Mobilising Cultural and Natural Assets,University College London,99916159,166408.60,Fellowships
BEIS,UKRI - AHRC,16/03/2023,Fellowships,Research Fellowships,University of Brighton,99916160,39041.08,Fellowships
BEIS,UKRI - AHRC,16/03/2023,Fellowships,Research Fellowships,"SOAS, University of London",99916161,19381.12,Fellowships
BEIS,UKRI - AHRC,16/03/2023,Fellowships,Research Fellowships,"Royal Holloway, University of London",99916162,25141.92,Fellowships
BEIS,UKRI - AHRC,16/03/2023,Fellowships,Research Fellowships,National Museums of Scotland,99916163,12420.30,Fellowships
BEIS,UKRI - AHRC,16/03/2023,Fellowships,Research Fellowships,University of Bristol GRANT,99916164,22648.78,Fellowships
BEIS,UKRI - AHRC,16/03/2023,Fellowships,Research Fellowships,"Royal Holloway, University of London",99916165,25110.65,Fellowships
BEIS,UKRI - AHRC,16/03/2023,Fellowships,Research Fellowships,The Royal Central School of Speech and Drama,99916166,21403.76,Fellowships
BEIS,UKRI - AHRC,16/03/2023,Fellowships,Research Fellowships,University of Leeds,99916167,39845.63,Fellowships
BEIS,UKRI - AHRC,16/03/2023,Fellowships,Research Fellowships,University College London,99916168,29259.76,Fellowships
BEIS,UKRI - AHRC,16/03/2023,Fellowships,Research Fellowships,University of Leicester,99916169,39162.57,Fellowships
BEIS,UKRI - AHRC,16/03/2023,Fellowships,Research Fellowships,University of Liverpool,99916170,18142.07,Fellowships
BEIS,UKRI - AHRC,16/03/2023,Fellowships,Research Fellowships,University of Leeds,99916171,43361.28,Fellowships
BEIS,UKRI - AHRC,16/03/2023,Fellowships,Research Fellowships,University of Liverpool,99916172,20684.39,Fellowships
BEIS,UKRI - AHRC,16/03/2023,Fellowships,Research Fellowships,University of Liverpool,99916173,30104.61,Fellowships
BEIS,UKRI - AHRC,16/03/2023,Fellowships,Research Fellowships,University of Birmingham GRANT,99916175,28138.10,Fellowships
BEIS,UKRI - AHRC,16/03/2023,Fellowships,Research Fellowships,University of the West of England,99916176,25385.31,Fellowships
BEIS,UKRI - AHRC,16/03/2023,Fellowships,Research Fellowships,University of Leicester,99916177,26165.28,Fellowships
BEIS,UKRI - AHRC,16/03/2023,Fellowships,Research Fellowships,University of Edinburgh,99916178,39042.07,Fellowships
BEIS,UKRI - AHRC,16/03/2023,Fellowships,Research Fellowships,University of Leeds,99916179,35570.34,Fellowships
BEIS,UKRI - AHRC,16/03/2023,Fellowships,Research Fellowships,University of Bristol GRANT,99916180,38457.42,Fellowships
BEIS,UKRI - AHRC,16/03/2023,Fellowships,Research Fellowships,University of Bristol GRANT,99916181,26171.53,Fellowships
BEIS,UKRI - AHRC,16/03/2023,Fellowships,Research Fellowships,"Royal Holloway, University of London",99916182,27270.05,Fellowships
BEIS,UKRI - AHRC,16/03/2023,Fellowships,Research Fellowships,University of Warwick,99916183,21997.45,Fellowships
BEIS,UKRI - AHRC,16/03/2023,Fellowships,Research Fellowships,University of Warwick,99916183,21997.45,Fellowships
BEIS,UKRI - AHRC,16/03/2023,Fellowships,Research Fellowships,University of Warwick,99916183,22175.62,Fellowships
BEIS,UKRI - AHRC,16/03/2023,Fellowships,Research Fellowships,University of Warwick,99916183,22175.62,Fellowships
BEIS,UKRI - AHRC,16/03/2023,Fellowships,Research Fellowships,Queen's University Belfast GRANT,99916184,15143.44,Fellowships
BEIS,UKRI - AHRC,16/03/2023,Fellowships,Research Fellowships,University of Brighton,99916185,38375.95,Fellowships
BEIS,UKRI - AHRC,16/03/2023,Fellowships,Research Fellowships,University of Exeter,99916186,33874.30,Fellowships
BEIS,UKRI - AHRC,16/03/2023,Fellowships,Research Fellowships,University of Sheffield,99916187,21272.77,Fellowships
BEIS,UKRI - AHRC,16/03/2023,Fellowships,Research Fellowships,Nottingham Trent University,99916188,25258.46,Fellowships
BEIS,UKRI - AHRC,16/03/2023,Fellowships,Research Fellowships,University of York,99916189,21586.29,Fellowships
BEIS,UKRI - AHRC,16/03/2023,Fellowships,Research Fellowships,University of Lincoln,99916190,19673.13,Fellowships
BEIS,UKRI - AHRC,16/03/2023,Fellowships,Research Fellowships,University of Leeds,99916191,22159.79,Fellowships
BEIS,UKRI - AHRC,16/03/2023,Fellowships,Research Fellowships,University of Leeds,99916191,27097.52,Fellowships
BEIS,UKRI - AHRC,16/03/2023,Fellowships,Research Fellowships,University of Leeds,99916191,27097.53,Fellowships
BEIS,UKRI - AHRC,16/03/2023,Fellowships,Research Fellowships,University of Leeds,99916191,27097.53,Fellowships
BEIS,UKRI - AHRC,16/03/2023,Fellowships,Research Fellowships,Birmingham City University,99916192,21368.61,Fellowships
BEIS,UKRI - AHRC,16/03/2023,Fellowships,Research Fellowships,Birkbeck College,99916193,22629.72,Fellowships
BEIS,UKRI - AHRC,16/03/2023,Fellowships,Research Fellowships,Birkbeck College,99916193,22629.72,Fellowships
BEIS,UKRI - AHRC,16/03/2023,Fellowships,Research Fellowships,Queen Mary University of London,99916194,37278.67,Fellowships
BEIS,UKRI - AHRC,16/03/2023,Fellowships,Research Fellowships,University of East Anglia,99916195,23225.00,Fellowships
BEIS,UKRI - AHRC,16/03/2023,Fellowships,Research Fellowships,University of Leeds,99916196,43767.85,Fellowships
BEIS,UKRI - AHRC,16/03/2023,Fellowships,Research Fellowships,Northumbria University,99916197,23080.20,Fellowships
BEIS,UKRI - AHRC,16/03/2023,Fellowships,Research Fellowships,Northumbria University,99916198,20491.94,Fellowships
BEIS,UKRI - AHRC,16/03/2023,Fellowships,Commissioned Research,University of Newcastle Upon Tyne,99916199,100059.88,Fellowships
BEIS,UKRI - AHRC,16/03/2023,Fellowships,Commissioned Research,Aston University,99916200,42986.23,Fellowships
BEIS,UKRI - AHRC,16/03/2023,Fellowships,Research Fellowships,Bath Spa University,99916201,20556.72,Fellowships
BEIS,UKRI - AHRC,16/03/2023,Research Grant Expenditure,Investment in Place,University of Nottingham,99916395,9795.36,Research Grant Expenditure
BEIS,UKRI - AHRC,16/03/2023,Research Grant Expenditure,Labex,University of Leeds,99916396,22068.06,Research Grant Expenditure
BEIS,UKRI - AHRC,16/03/2023,Research Grant Expenditure,Research Grants,University of Glasgow,99916397,65903.03,Research Grant Expenditure
BEIS,UKRI - AHRC,16/03/2023,Research Grant Expenditure,Labex,Loughborough University,99916398,18080.16,Research Grant Expenditure
BEIS,UKRI - AHRC,16/03/2023,Research Grant Expenditure,Investment in Place,University of Sheffield,99916399,9935.20,Research Grant Expenditure
BEIS,UKRI - AHRC,16/03/2023,Research Grant Expenditure,Research Grants,University College London,99916400,32097.56,Research Grant Expenditure
BEIS,UKRI - AHRC,16/03/2023,Research Grant Expenditure,Research Grants,University College London,99916400,32097.55,Research Grant Expenditure
BEIS,UKRI - AHRC,16/03/2023,Research Grant Expenditure,Networks & Workshops,University of Bristol GRANT,99916401,4358.70,Research Grant Expenditure
BEIS,UKRI - AHRC,16/03/2023,Research Grant Expenditure,Investment in Place,University of Glasgow,99916402,35319.33,Research Grant Expenditure
BEIS,UKRI - AHRC,16/03/2023,Research Grant Expenditure,Research Grants,University of Oxford,99916403,31509.30,Research Grant Expenditure
BEIS,UKRI - AHRC,16/03/2023,Research Grant Expenditure,Research Grants,University of Oxford,99916403,31509.30,Research Grant Expenditure
BEIS,UKRI - AHRC,16/03/2023,Research Grant Expenditure,Research Grants,University of Cambridge,99916404,25068.04,Research Grant Expenditure
BEIS,UKRI - AHRC,16/03/2023,Research Grant Expenditure,Networks & Workshops,De Montfort University,99916405,4261.48,Research Grant Expenditure
BEIS,UKRI - AHRC,16/03/2023,Research Grant Expenditure,Digital Transformations,University of York,99916406,91660.00,Research Grant Expenditure
BEIS,UKRI - AHRC,16/03/2023,Research Grant Expenditure,Networks & Workshops,University of Glasgow,99916407,5584.38,Research Grant Expenditure
BEIS,UKRI - AHRC,16/03/2023,Research Grant Expenditure,Networks & Workshops,University of Glasgow,99916407,5584.39,Research Grant Expenditure
BEIS,UKRI - AHRC,16/03/2023,Research Grant Expenditure,Networks & Workshops,University of Glasgow,99916407,5584.39,Research Grant Expenditure
BEIS,UKRI - AHRC,16/03/2023,Research Grant Expenditure,Research Grants,University of Edinburgh,99916408,66901.28,Research Grant Expenditure
BEIS,UKRI - AHRC,16/03/2023,Research Grant Expenditure,Research Grants,University of Edinburgh,99916408,66901.15,Research Grant Expenditure
BEIS,UKRI - AHRC,16/03/2023,Research Grant Expenditure,Research Grants,University of Edinburgh,99916408,66901.15,Research Grant Expenditure
BEIS,UKRI - AHRC,16/03/2023,Research Grant Expenditure,Networks & Workshops,University of East London,99916409,4462.30,Research Grant Expenditure
BEIS,UKRI - AHRC,16/03/2023,Research Grant Expenditure,Networks & Workshops,University of the Arts London,99916410,8441.57,Research Grant Expenditure
BEIS,UKRI - AHRC,16/03/2023,Research Grant Expenditure,Networks & Workshops,University of Exeter,99916411,3766.88,Research Grant Expenditure
BEIS,UKRI - AHRC,16/03/2023,Research Grant Expenditure,Follow-on Fund,Leeds Beckett University,99916412,17577.60,Research Grant Expenditure
BEIS,UKRI - AHRC,16/03/2023,Research Grant Expenditure,Research Grants,Queen Mary University of London,99916413,26712.44,Research Grant Expenditure
BEIS,UKRI - AHRC,16/03/2023,Research Grant Expenditure,Research Grants,International Institute For Environment And Development,99916414,24142.35,Research Grant Expenditure
BEIS,UKRI - AHRC,16/03/2023,Research Grant Expenditure,Research Grants,"Royal Holloway, University of London",99916415,62024.62,Research Grant Expenditure
BEIS,UKRI - AHRC,16/03/2023,Research Grant Expenditure,Networks & Workshops,University of Portsmouth,99916416,4717.31,Research Grant Expenditure
BEIS,UKRI - AHRC,16/03/2023,Research Grant Expenditure,Funds for International Collaboration (FIC 20 US),University of Edinburgh,99916417,9475.02,Research Grant Expenditure
BEIS,UKRI - AHRC,16/03/2023,Research Grant Expenditure,Funds for International Collaboration (FIC 20 US),University of Oxford,99916418,25247.40,Research Grant Expenditure
BEIS,UKRI - AHRC,16/03/2023,Research Grant Expenditure,Funds for International Collaboration (FIC 20 US),"SOAS, University of London",99916419,15649.27,Research Grant Expenditure
BEIS,UKRI - AHRC,16/03/2023,Research Grant Expenditure,Funds for International Collaboration (FIC 20 US),University of Edinburgh,99916420,19842.84,Research Grant Expenditure
BEIS,UKRI - AHRC,16/03/2023,Research Grant Expenditure,Funds for International Collaboration (FIC 20 US),Birkbeck College,99916421,6707.08,Research Grant Expenditure
BEIS,UKRI - AHRC,16/03/2023,Research Grant Expenditure,Funds for International Collaboration (FIC 20 US),Brunel University London,99916422,24957.69,Research Grant Expenditure
BEIS,UKRI - AHRC,16/03/2023,Research Grant Expenditure,Funds for International Collaboration (FIC 20 US),Lancaster University,99916423,21954.10,Research Grant Expenditure
BEIS,UKRI - AHRC,16/03/2023,Research Grant Expenditure,Funds for International Collaboration (FIC 20 US),Cardiff University,99916424,19992.92,Research Grant Expenditure
BEIS,UKRI - AHRC,16/03/2023,Research Grant Expenditure,Funds for International Collaboration (FIC 20 US),University of Newcastle Upon Tyne,99916425,4289.60,Research Grant Expenditure
BEIS,UKRI - AHRC,16/03/2023,Research Grant Expenditure,Research Grants,The University of Manchester,99916426,76047.45,Research Grant Expenditure
BEIS,UKRI - AHRC,16/03/2023,Research Grant Expenditure,Networks & Workshops,University of Exeter,99916427,4397.29,Research Grant Expenditure
BEIS,UKRI - AHRC,16/03/2023,Research Grant Expenditure,Networks & Workshops,The University of Manchester,99916428,2854.31,Research Grant Expenditure
BEIS,UKRI - AHRC,16/03/2023,Research Grant Expenditure,Research Grants,University of Oxford,99916429,65462.80,Research Grant Expenditure
BEIS,UKRI - AHRC,16/03/2023,Research Grant Expenditure,Networks & Workshops,University of Central Lancashire,99916430,3038.10,Research Grant Expenditure
BEIS,UKRI - AHRC,16/03/2023,Research Grant Expenditure,Research Grants,"SOAS, University of London",99916431,62557.20,Research Grant Expenditure
BEIS,UKRI - AHRC,16/03/2023,Research Grant Expenditure,Research Grants,The University of Manchester,99916432,45126.38,Research Grant Expenditure
BEIS,UKRI - AHRC,16/03/2023,Research Grant Expenditure,Networks & Workshops,Imperial College London,99916433,3946.06,Research Grant Expenditure
BEIS,UKRI - AHRC,16/03/2023,Research Grant Expenditure,Research Grants,University of Southampton GRANT,99916434,67034.40,Research Grant Expenditure
BEIS,UKRI - AHRC,16/03/2023,Research Grant Expenditure,Networks & Workshops,Northumbria University,99916435,3024.29,Research Grant Expenditure
BEIS,UKRI - AHRC,16/03/2023,Research Grant Expenditure,Networks & Workshops,The University of Manchester,99916436,7016.16,Research Grant Expenditure
BEIS,UKRI - AHRC,16/03/2023,Research Grant Expenditure,Networks & Workshops,University of Westminster,99916437,5717.45,Research Grant Expenditure
BEIS,UKRI - AHRC,16/03/2023,Research Grant Expenditure,Networks & Workshops,University of Westminster,99916437,5717.45,Research Grant Expenditure
BEIS,UKRI - AHRC,16/03/2023,Research Grant Expenditure,Research Grants,Bournemouth University,99916438,54535.19,Research Grant Expenditure
BEIS,UKRI - AHRC,16/03/2023,Research Grant Expenditure,Research Grants,University of Oxford,99916439,50383.30,Research Grant Expenditure
BEIS,UKRI - AHRC,16/03/2023,Research Grant Expenditure,Research Grants,University of Derby,99916440,14143.22,Research Grant Expenditure
BEIS,UKRI - AHRC,16/03/2023,Research Grant Expenditure,Research Grants,University of Derby,99916440,14143.22,Research Grant Expenditure
BEIS,UKRI - AHRC,16/03/2023,Research Grant Expenditure,Networks & Workshops,University of Sussex,99916441,4193.49,Research Grant Expenditure
BEIS,UKRI - AHRC,16/03/2023,Research Grant Expenditure,Towards a National Collection (SPF),University College London,99916442,238516.60,Research Grant Expenditure
BEIS,UKRI - AHRC,16/03/2023,Research Grant Expenditure,Towards a National Collection (SPF),University of the Arts London,99916444,247406.20,Research Grant Expenditure
BEIS,UKRI - AHRC,16/03/2023,Research Grant Expenditure,Research Grants,University of Bradford,99916445,70255.22,Research Grant Expenditure
BEIS,UKRI - AHRC,16/03/2023,Research Grant Expenditure,Towards a National Collection (SPF),Science Museum Group,99916446,247201.60,Research Grant Expenditure
BEIS,UKRI - AHRC,16/03/2023,Research Grant Expenditure,Towards a National Collection (SPF),University of Glasgow,99916447,251383.66,Research Grant Expenditure
BEIS,UKRI - AHRC,16/03/2023,Research Grant Expenditure,Research Grants,Royal College of Art,99916448,41124.18,Research Grant Expenditure
BEIS,UKRI - AHRC,16/03/2023,Research Grant Expenditure,Research Grants,University of York,99916449,63266.59,Research Grant Expenditure
BEIS,UKRI - AHRC,16/03/2023,Research Grant Expenditure,Research Grants,University of York,99916449,63266.41,Research Grant Expenditure
BEIS,UKRI - AHRC,16/03/2023,Research Grant Expenditure,Research Grants,University of York,99916449,68932.25,Research Grant Expenditure
BEIS,UKRI - AHRC,16/03/2023,Research Grant Expenditure,Research Grants,University of Kent,99916450,91794.03,Research Grant Expenditure
BEIS,UKRI - AHRC,16/03/2023,Research Grant Expenditure,Research Grants,The University of Manchester,99916451,63443.66,Research Grant Expenditure
BEIS,UKRI - AHRC,16/03/2023,Research Grant Expenditure,Research Grants,University of Warwick,99916452,22376.38,Research Grant Expenditure
BEIS,UKRI - AHRC,16/03/2023,Research Grant Expenditure,Research Grants,University of Southampton GRANT,99916453,48347.06,Research Grant Expenditure
BEIS,UKRI - AHRC,16/03/2023,Research Grant Expenditure,Research Grants,UNIVERSITY OF ULSTER,99916454,37530.28,Research Grant Expenditure
BEIS,UKRI - AHRC,16/03/2023,Research Grant Expenditure,Research Grants,Northumbria University,99916455,60640.52,Research Grant Expenditure
BEIS,UKRI - AHRC,16/03/2023,Research Grant Expenditure,Research Grants,University of Oxford,99916456,66853.99,Research Grant Expenditure
BEIS,UKRI - AHRC,16/03/2023,Research Grant Expenditure,Networks & Workshops,Northumbria University,99916457,4030.77,Research Grant Expenditure
BEIS,UKRI - AHRC,16/03/2023,Research Grant Expenditure,Networks & Workshops,Anglia Ruskin University,99916458,3942.56,Research Grant Expenditure
BEIS,UKRI - AHRC,16/03/2023,Research Grant Expenditure,Funds for International Collaboration (FIC2-06 Ireland),University of Oxford,99916459,23543.15,Research Grant Expenditure
BEIS,UKRI - AHRC,16/03/2023,Research Grant Expenditure,Funds for International Collaboration (FIC2-06 Ireland),University of Glasgow,99916460,27085.07,Research Grant Expenditure
BEIS,UKRI - AHRC,16/03/2023,Research Grant Expenditure,Funds for International Collaboration (FIC2-06 Ireland),University of Edinburgh,99916461,21417.04,Research Grant Expenditure
BEIS,UKRI - AHRC,16/03/2023,Research Grant Expenditure,Funds for International Collaboration (FIC2-06 Ireland),Loughborough University,99916462,27099.48,Research Grant Expenditure
BEIS,UKRI - AHRC,16/03/2023,Research Grant Expenditure,Funds for International Collaboration (FIC2-06 Ireland),Queen's University Belfast GRANT,99916463,22435.27,Research Grant Expenditure
BEIS,UKRI - AHRC,16/03/2023,Research Grant Expenditure,Funds for International Collaboration (FIC2-06 Ireland),University of East Anglia,99916464,34958.12,Research Grant Expenditure
BEIS,UKRI - AHRC,16/03/2023,Research Grant Expenditure,Funds for International Collaboration (FIC2-06 Ireland),University of Sussex,99916465,32229.93,Research Grant Expenditure
BEIS,UKRI - AHRC,16/03/2023,Research Grant Expenditure,Funds for International Collaboration (FIC2-06 Ireland),University of Brighton,99916466,34766.53,Research Grant Expenditure
BEIS,UKRI - AHRC,16/03/2023,Research Grant Expenditure,Funds for International Collaboration (FIC2-06 Ireland),Cardiff University,99916467,31572.24,Research Grant Expenditure
BEIS,UKRI - AHRC,16/03/2023,Research Grant Expenditure,Funds for International Collaboration (FIC2-06 Ireland),University of Sheffield,99916468,33213.40,Research Grant Expenditure
BEIS,UKRI - AHRC,16/03/2023,Research Grant Expenditure,Research Grants,University College London,99916469,20163.36,Research Grant Expenditure
BEIS,UKRI - AHRC,16/03/2023,Research Grant Expenditure,Research Grants,King's College London,99916470,18644.88,Research Grant Expenditure
BEIS,UKRI - AHRC,16/03/2023,Research Grant Expenditure,Research Grants,University of Newcastle Upon Tyne,99916471,33165.49,Research Grant Expenditure
BEIS,UKRI - AHRC,16/03/2023,Research Grant Expenditure,Networks & Workshops,University of Hertfordshire,99916472,6065.80,Research Grant Expenditure
BEIS,UKRI - AHRC,16/03/2023,Research Grant Expenditure,Networks & Workshops,The Open University,99916473,5217.29,Research Grant Expenditure
BEIS,UKRI - AHRC,16/03/2023,Research Grant Expenditure,Research Grants,Cardiff University,99916474,59187.06,Research Grant Expenditure
BEIS,UKRI - AHRC,16/03/2023,Research Grant Expenditure,Networks & Workshops,Teesside University,99916475,7424.16,Research Grant Expenditure
BEIS,UKRI - AHRC,16/03/2023,Research Grant Expenditure,Research Grants,Roehampton University (University of Roehampton),99916476,23466.12,Research Grant Expenditure
BEIS,UKRI - AHRC,16/03/2023,Research Grant Expenditure,Networks & Workshops,University of Warwick,99916477,4570.94,Research Grant Expenditure
BEIS,UKRI - AHRC,16/03/2023,Research Grant Expenditure,JPI Cultural Heritage,Sheffield Hallam University,99916478,15793.08,Research Grant Expenditure
BEIS,UKRI - AHRC,16/03/2023,Research Grant Expenditure,JPI Cultural Heritage,University of the Highlands and Islands,99916479,12148.70,Research Grant Expenditure
BEIS,UKRI - AHRC,16/03/2023,Research Grant Expenditure,JPI Cultural Heritage,Falmouth University,99916480,17997.82,Research Grant Expenditure
BEIS,UKRI - AHRC,16/03/2023,Research Grant Expenditure,JPI Cultural Heritage,"SOAS, University of London",99916481,10288.98,Research Grant Expenditure
BEIS,UKRI - AHRC,16/03/2023,Research Grant Expenditure,Networks & Workshops,The Open University,99916482,3675.66,Research Grant Expenditure
BEIS,UKRI - AHRC,16/03/2023,Research Grant Expenditure,JPI Cultural Heritage,Kingston University,99916483,19515.99,Research Grant Expenditure
BEIS,UKRI - AHRC,16/03/2023,Research Grant Expenditure,Research Grants,King's College London,99916484,44970.33,Research Grant Expenditure
BEIS,UKRI - AHRC,16/03/2023,Research Grant Expenditure,Networks & Workshops,Manchester Metropolitan University,99916485,4543.97,Research Grant Expenditure
BEIS,UKRI - AHRC,16/03/2023,Research Grant Expenditure,Research Grants,University of York,99916486,54520.79,Research Grant Expenditure
BEIS,UKRI - AHRC,16/03/2023,Research Grant Expenditure,Research Grants,King's College London,99916487,21955.11,Research Grant Expenditure
BEIS,UKRI - AHRC,16/03/2023,Research Grant Expenditure,Research Grants,Northumbria University,99916488,42259.86,Research Grant Expenditure
BEIS,UKRI - AHRC,16/03/2023,Research Grant Expenditure,Research Grants,University of Cambridge,99916489,71974.61,Research Grant Expenditure
BEIS,UKRI - AHRC,16/03/2023,Research Grant Expenditure,Research Grants,University of Lincoln,99916490,39435.81,Research Grant Expenditure
BEIS,UKRI - AHRC,16/03/2023,Research Grant Expenditure,Research Grants,Northumbria University,99916491,64121.62,Research Grant Expenditure
BEIS,UKRI - AHRC,16/03/2023,Research Grant Expenditure,Research Grants,University College London,99916492,42511.90,Research Grant Expenditure
BEIS,UKRI - AHRC,16/03/2023,Research Grant Expenditure,Research Grants,Staffordshire University GRANT,99916493,8905.93,Research Grant Expenditure
BEIS,UKRI - AHRC,16/03/2023,Research Grant Expenditure,COVID-19,University College London,99916494,63321.40,Research Grant Expenditure
BEIS,UKRI - AHRC,16/03/2023,Research Grant Expenditure,Research Grants,University of London,99916495,61974.59,Research Grant Expenditure
BEIS,UKRI - AHRC,16/03/2023,Research Grant Expenditure,Research Grants,University of Sheffield,99916496,43691.43,Research Grant Expenditure
BEIS,UKRI - AHRC,16/03/2023,Research Grant Expenditure,Networks & Workshops,University of Newcastle Upon Tyne,99916497,3818.33,Research Grant Expenditure
BEIS,UKRI - AHRC,16/03/2023,Research Grant Expenditure,Research Grants,The University of Manchester,99916498,8512.79,Research Grant Expenditure
BEIS,UKRI - AHRC,16/03/2023,Research Grant Expenditure,Research Grants,Aberystwyth University,99916499,57805.69,Research Grant Expenditure
BEIS,UKRI - AHRC,16/03/2023,Research Grant Expenditure,Research Grants,University of Edinburgh,99916500,71128.03,Research Grant Expenditure
BEIS,UKRI - AHRC,16/03/2023,Research Grant Expenditure,Research Grants,University of the Arts London,99916501,20308.96,Research Grant Expenditure
BEIS,UKRI - AHRC,16/03/2023,Research Grant Expenditure,Research Grants,Queen's University Belfast GRANT,99916502,48072.22,Research Grant Expenditure
BEIS,UKRI - AHRC,16/03/2023,Research Grant Expenditure,Networks & Workshops,University of Birmingham GRANT,99916503,4604.41,Research Grant Expenditure
BEIS,UKRI - AHRC,16/03/2023,Research Grant Expenditure,Research Grants,University of Exeter,99916504,43444.72,Research Grant Expenditure
BEIS,UKRI - AHRC,16/03/2023,Research Grant Expenditure,Research Grants,"SOAS, University of London",99916505,49987.38,Research Grant Expenditure
BEIS,UKRI - AHRC,16/03/2023,Research Grant Expenditure,Research Grants,University of Aberdeen,99916506,43034.81,Research Grant Expenditure
BEIS,UKRI - AHRC,16/03/2023,Research Grant Expenditure,Networks & Workshops,The University of Manchester,99916507,4534.72,Research Grant Expenditure
BEIS,UKRI - AHRC,16/03/2023,Research Grant Expenditure,Research Grants,University of London,99916508,50817.83,Research Grant Expenditure
BEIS,UKRI - AHRC,16/03/2023,Research Grant Expenditure,Networks & Workshops,University of Brighton,99916509,4820.87,Research Grant Expenditure
BEIS,UKRI - AHRC,16/03/2023,Research Grant Expenditure,Networks & Workshops,University of York,99916510,3575.07,Research Grant Expenditure
BEIS,UKRI - AHRC,16/03/2023,Research Grant Expenditure,Funds for International Collaboration (FIC 20 US),Nottingham Trent University,99916511,17070.27,Research Grant Expenditure
BEIS,UKRI - AHRC,16/03/2023,Research Grant Expenditure,Funds for International Collaboration (FIC 20 US),"City, University of London",99916512,15235.06,Research Grant Expenditure
BEIS,UKRI - AHRC,16/03/2023,Research Grant Expenditure,Funds for International Collaboration (FIC 20 US),University of Reading,99916513,19506.16,Research Grant Expenditure
BEIS,UKRI - AHRC,16/03/2023,Research Grant Expenditure,Funds for International Collaboration (FIC 20 US),University of Exeter,99916514,23419.19,Research Grant Expenditure
BEIS,UKRI - AHRC,16/03/2023,Research Grant Expenditure,Funds for International Collaboration (FIC 20 US),Lancaster University,99916515,12051.71,Research Grant Expenditure
BEIS,UKRI - AHRC,16/03/2023,Research Grant Expenditure,Funds for International Collaboration (FIC 20 US),Science Museum Group,99916516,21779.51,Research Grant Expenditure
BEIS,UKRI - AHRC,16/03/2023,Research Grant Expenditure,Funds for International Collaboration (FIC 20 US),University of Cambridge,99916517,17509.11,Research Grant Expenditure
BEIS,UKRI - AHRC,16/03/2023,Research Grant Expenditure,Research Grants,Loughborough University,99916518,30396.52,Research Grant Expenditure
BEIS,UKRI - AHRC,16/03/2023,Research Grant Expenditure,Research Grants,Royal College of Art,99916519,33907.29,Research Grant Expenditure
BEIS,UKRI - AHRC,16/03/2023,Research Grant Expenditure,Research Grants,Royal College of Art,99916519,33907.26,Research Grant Expenditure
BEIS,UKRI - AHRC,16/03/2023,Research Grant Expenditure,Research Grants,The Open University,99916520,63169.78,Research Grant Expenditure
BEIS,UKRI - AHRC,16/03/2023,Research Grant Expenditure,Research Grants,University of Reading,99916521,65180.11,Research Grant Expenditure
BEIS,UKRI - AHRC,16/03/2023,Research Grant Expenditure,Research Grants,De Montfort University,99916522,19388.16,Research Grant Expenditure
BEIS,UKRI - AHRC,16/03/2023,Research Grant Expenditure,Networks & Workshops,University of St Andrews,99916523,2977.01,Research Grant Expenditure
BEIS,UKRI - AHRC,16/03/2023,Research Grant Expenditure,Networks & Workshops,University of St Andrews,99916523,2977.01,Research Grant Expenditure
BEIS,UKRI - AHRC,16/03/2023,Research Grant Expenditure,Networks & Workshops,University of St Andrews,99916523,2977.01,Research Grant Expenditure
BEIS,UKRI - AHRC,16/03/2023,Research Grant Expenditure,Research Grants,"SOAS, University of London",99916524,39078.33,Research Grant Expenditure
BEIS,UKRI - AHRC,16/03/2023,Research Grant Expenditure,Networks & Workshops,University of Kent,99916525,4508.16,Research Grant Expenditure
BEIS,UKRI - AHRC,16/03/2023,Research Grant Expenditure,Research Grants,Queen's University Belfast GRANT,99916526,60031.22,Research Grant Expenditure
BEIS,UKRI - AHRC,16/03/2023,Research Grant Expenditure,Networks & Workshops,The University of Manchester,99916527,4531.94,Research Grant Expenditure
BEIS,UKRI - AHRC,16/03/2023,Research Grant Expenditure,Follow-on Fund,Manchester Metropolitan University,99916528,20625.50,Research Grant Expenditure
BEIS,UKRI - AHRC,16/03/2023,Research Grant Expenditure,Research Grants,University of Cambridge,99916529,23941.31,Research Grant Expenditure
BEIS,UKRI - AHRC,16/03/2023,Research Grant Expenditure,Research Grants,The University of Manchester,99916530,20432.71,Research Grant Expenditure
BEIS,UKRI - AHRC,16/03/2023,Research Grant Expenditure,Networks & Workshops,University of Leicester,99916531,3424.63,Research Grant Expenditure
BEIS,UKRI - AHRC,16/03/2023,Research Grant Expenditure,Networks & Workshops,University of St Andrews,99916532,4146.83,Research Grant Expenditure
BEIS,UKRI - AHRC,16/03/2023,Research Grant Expenditure,Research Grants,University of Warwick,99916533,13556.80,Research Grant Expenditure
BEIS,UKRI - AHRC,16/03/2023,Research Grant Expenditure,Research Grants,University College London,99916534,65564.38,Research Grant Expenditure
BEIS,UKRI - AHRC,16/03/2023,Research Grant Expenditure,Research Grants,Northumbria University,99916535,70517.27,Research Grant Expenditure
BEIS,UKRI - AHRC,16/03/2023,Research Grant Expenditure,Research Grants,Oxford Brookes University,99916536,66974.55,Research Grant Expenditure
BEIS,UKRI - AHRC,16/03/2023,Research Grant Expenditure,Research Grants,University of Leeds,99916537,20164.04,Research Grant Expenditure
BEIS,UKRI - AHRC,16/03/2023,Research Grant Expenditure,Research Grants,University of Sussex,99916538,67203.22,Research Grant Expenditure
BEIS,UKRI - AHRC,16/03/2023,Research Grant Expenditure,Networks & Workshops,University of Southampton GRANT,99916539,4926.76,Research Grant Expenditure
BEIS,UKRI - AHRC,16/03/2023,Research Grant Expenditure,Research Grants,Lancaster University,99916540,74627.95,Research Grant Expenditure
BEIS,UKRI - AHRC,16/03/2023,Research Grant Expenditure,Research Grants,Northumbria University,99916541,55433.97,Research Grant Expenditure
BEIS,UKRI - AHRC,16/03/2023,Research Grant Expenditure,AHRC - DFG Collaborative Research Grant,University College London,99916542,70869.70,Research Grant Expenditure
BEIS,UKRI - AHRC,16/03/2023,Research Grant Expenditure,AHRC - DFG Collaborative Research Grant,University College London,99916543,70708.07,Research Grant Expenditure
BEIS,UKRI - AHRC,16/03/2023,Research Grant Expenditure,AHRC - DFG Collaborative Research Grant,University of Oxford,99916544,69987.90,Research Grant Expenditure
BEIS,UKRI - AHRC,16/03/2023,Research Grant Expenditure,Research Grants,"City, University of London",99916545,58820.61,Research Grant Expenditure
BEIS,UKRI - AHRC,16/03/2023,Research Grant Expenditure,AHRC - DFG Collaborative Research Grant,University of Dundee,99916546,70888.45,Research Grant Expenditure
BEIS,UKRI - AHRC,16/03/2023,Research Grant Expenditure,AHRC - DFG Collaborative Research Grant,University of the Arts London,99916547,70710.15,Research Grant Expenditure
BEIS,UKRI - AHRC,16/03/2023,Research Grant Expenditure,AHRC - DFG Collaborative Research Grant,"SOAS, University of London",99916548,71056.98,Research Grant Expenditure
BEIS,UKRI - AHRC,16/03/2023,Research Grant Expenditure,AHRC - DFG Collaborative Research Grant,University of Stirling,99916549,71059.53,Research Grant Expenditure
BEIS,UKRI - AHRC,16/03/2023,Research Grant Expenditure,AHRC - DFG Collaborative Research Grant,King's College London,99916550,67822.48,Research Grant Expenditure
BEIS,UKRI - AHRC,16/03/2023,Research Grant Expenditure,AHRC - DFG Collaborative Research Grant,University of Bristol GRANT,99916551,70565.09,Research Grant Expenditure
BEIS,UKRI - AHRC,16/03/2023,Research Grant Expenditure,AHRC - DFG Collaborative Research Grant,University College London,99916552,25981.17,Research Grant Expenditure
BEIS,UKRI - AHRC,16/03/2023,Research Grant Expenditure,AHRC - DFG Collaborative Research Grant,University of Edinburgh,99916553,69131.33,Research Grant Expenditure
BEIS,UKRI - AHRC,16/03/2023,Research Grant Expenditure,AHRC - DFG Collaborative Research Grant,University of Edinburgh,99916554,71180.58,Research Grant Expenditure
BEIS,UKRI - AHRC,16/03/2023,Research Grant Expenditure,AHRC - DFG Collaborative Research Grant,Nottingham Trent University,99916555,51038.55,Research Grant Expenditure
BEIS,UKRI - AHRC,16/03/2023,Research Grant Expenditure,AHRC - DFG Collaborative Research Grant,Loughborough University,99916556,67455.23,Research Grant Expenditure
BEIS,UKRI - AHRC,16/03/2023,Research Grant Expenditure,Research Grants,University of Exeter,99916557,55086.06,Research Grant Expenditure
BEIS,UKRI - AHRC,16/03/2023,Research Grant Expenditure,AHRC - DFG Collaborative Research Grant,University of Sheffield,99916558,69950.25,Research Grant Expenditure
BEIS,UKRI - AHRC,16/03/2023,Research Grant Expenditure,JPI Cultural Heritage,University of Durham,99916559,10916.44,Research Grant Expenditure
BEIS,UKRI - AHRC,16/03/2023,Research Grant Expenditure,AHRC - DFG Collaborative Research Grant,University College London,99916560,71035.30,Research Grant Expenditure
BEIS,UKRI - AHRC,16/03/2023,Research Grant Expenditure,Research Grants,Lancaster University,99916561,56910.38,Research Grant Expenditure
BEIS,UKRI - AHRC,16/03/2023,Research Grant Expenditure,Research Grants,University of Birmingham GRANT,99916562,65584.07,Research Grant Expenditure
BEIS,UKRI - AHRC,16/03/2023,Research Grant Expenditure,Research Grants,Queen Mary University of London,99916563,43409.91,Research Grant Expenditure
BEIS,UKRI - AHRC,16/03/2023,Research Grant Expenditure,Research Grants,The University of Manchester,99916564,69536.96,Research Grant Expenditure
BEIS,UKRI - AHRC,16/03/2023,Research Grant Expenditure,JPI Cultural Heritage,University of York,99916565,7436.43,Research Grant Expenditure
BEIS,UKRI - AHRC,16/03/2023,Research Grant Expenditure,Research Grants,National Museums of Scotland,99916566,67116.84,Research Grant Expenditure
BEIS,UKRI - AHRC,16/03/2023,Research Grant Expenditure,Networks & Workshops,University of Westminster,99916567,4545.59,Research Grant Expenditure
BEIS,UKRI - AHRC,16/03/2023,Research Grant Expenditure,Research Grants,Brunel University London,99916568,23207.94,Research Grant Expenditure
BEIS,UKRI - AHRC,16/03/2023,Research Grant Expenditure,Towards a National Collection (SPF),Historic Environment Scotland (GRANT),99916569,91781.24,Research Grant Expenditure
BEIS,UKRI - AHRC,16/03/2023,Research Grant Expenditure,Research Grants,University of Oxford,99916570,67936.46,Research Grant Expenditure
BEIS,UKRI - AHRC,16/03/2023,Research Grant Expenditure,Creative Economy,Loughborough University,99916571,69142.17,Research Grant Expenditure
BEIS,UKRI - AHRC,16/03/2023,Research Grant Expenditure,Research Grants,University of Cambridge,99916572,81454.90,Research Grant Expenditure
BEIS,UKRI - AHRC,16/03/2023,Research Grant Expenditure,Research Grants,University of Sheffield,99916573,47898.43,Research Grant Expenditure
BEIS,UKRI - AHRC,16/03/2023,Research Grant Expenditure,AHRC - DFG Collaborative Research Grant,University of Bristol GRANT,99916574,57035.19,Research Grant Expenditure
BEIS,UKRI - AHRC,16/03/2023,Research Grant Expenditure,Research Grants,The University of Manchester,99916575,66876.14,Research Grant Expenditure
BEIS,UKRI - AHRC,16/03/2023,Research Grant Expenditure,Networks & Workshops,University of Birmingham GRANT,99916576,4523.04,Research Grant Expenditure
BEIS,UKRI - AHRC,16/03/2023,Research Grant Expenditure,Modern Slavery and Human Rights (SPF),British Institute Of International And Comparative Law,99916577,675391.20,Research Grant Expenditure
BEIS,UKRI - AHRC,16/03/2023,Research Grant Expenditure,Research Grants,National Museums of Scotland,99916578,65722.79,Research Grant Expenditure
BEIS,UKRI - AHRC,16/03/2023,Research Grant Expenditure,Commissioned Research,University of Newcastle Upon Tyne,99916579,52005.00,Research Grant Expenditure
BEIS,UKRI - AHRC,16/03/2023,Research Grant Expenditure,Networks & Workshops,Coventry University,99916580,2992.11,Research Grant Expenditure
BEIS,UKRI - AHRC,16/03/2023,Research Grant Expenditure,Networks & Workshops,Coventry University,99916580,2992.10,Research Grant Expenditure
BEIS,UKRI - AHRC,16/03/2023,Research Grant Expenditure,Networks & Workshops,Coventry University,99916580,2992.10,Research Grant Expenditure
BEIS,UKRI - AHRC,16/03/2023,Research Grant Expenditure,Networks & Workshops,Coventry University,99916580,2992.10,Research Grant Expenditure
BEIS,UKRI - AHRC,16/03/2023,Research Grant Expenditure,Research Grants,University of Huddersfield,99916581,16792.93,Research Grant Expenditure
BEIS,UKRI - AHRC,16/03/2023,Research Grant Expenditure,Research Grants,University of Edinburgh,99916582,25349.45,Research Grant Expenditure
BEIS,UKRI - AHRC,16/03/2023,Research Grant Expenditure,Research Grants,University of Newcastle Upon Tyne,99916583,53526.50,Research Grant Expenditure
BEIS,UKRI - AHRC,16/03/2023,Research Grant Expenditure,Research Grants,University of Nottingham,99916584,43950.95,Research Grant Expenditure
BEIS,UKRI - AHRC,16/03/2023,Research Grant Expenditure,Research Grants,University of Salford,99916585,17497.25,Research Grant Expenditure
BEIS,UKRI - AHRC,16/03/2023,Research Grant Expenditure,Research Grants,University of Salford,99916585,17497.25,Research Grant Expenditure
BEIS,UKRI - AHRC,16/03/2023,Research Grant Expenditure,Research Grants,University of Salford,99916585,15911.68,Research Grant Expenditure
BEIS,UKRI - AHRC,16/03/2023,Research Grant Expenditure,RCUK Global Challenges Research Fund (RCUK GCRF),University of Exeter,99916586,118581.45,Research Grant Expenditure
BEIS,UKRI - AHRC,16/03/2023,Research Grant Expenditure,RCUK Global Challenges Research Fund (RCUK GCRF),University of Lincoln,99916587,118780.76,Research Grant Expenditure
BEIS,UKRI - AHRC,16/03/2023,Research Grant Expenditure,RCUK Global Challenges Research Fund (RCUK GCRF),The Open University,99916588,126733.67,Research Grant Expenditure
BEIS,UKRI - AHRC,16/03/2023,Research Grant Expenditure,RCUK Global Challenges Research Fund (RCUK GCRF),University of Birmingham GRANT,99916589,117193.76,Research Grant Expenditure
BEIS,UKRI - AHRC,16/03/2023,Research Grant Expenditure,RCUK Global Challenges Research Fund (RCUK GCRF),UNIVERSITY OF ULSTER,99916590,132545.11,Research Grant Expenditure
BEIS,UKRI - AHRC,16/03/2023,Research Grant Expenditure,RCUK Global Challenges Research Fund (RCUK GCRF),University of Bath,99916591,115530.44,Research Grant Expenditure
BEIS,UKRI - AHRC,16/03/2023,Research Grant Expenditure,RCUK Global Challenges Research Fund (RCUK GCRF),Aberystwyth University,99916592,117482.26,Research Grant Expenditure
BEIS,UKRI - AHRC,16/03/2023,Research Grant Expenditure,RCUK Global Challenges Research Fund (RCUK GCRF),Keele University,99916593,117447.75,Research Grant Expenditure
BEIS,UKRI - AHRC,16/03/2023,Research Grant Expenditure,RCUK Global Challenges Research Fund (RCUK GCRF),University of Glasgow,99916594,136908.83,Research Grant Expenditure
BEIS,UKRI - AHRC,16/03/2023,Research Grant Expenditure,RCUK Global Challenges Research Fund (RCUK GCRF),University of Bristol GRANT,99916595,116491.04,Research Grant Expenditure
BEIS,UKRI - AHRC,16/03/2023,Research Grant Expenditure,Research Grants,UNIVERSITY OF ULSTER,99916596,16696.48,Research Grant Expenditure
BEIS,UKRI - AHRC,16/03/2023,Research Grant Expenditure,RCUK Global Challenges Research Fund (RCUK GCRF),University of Birmingham GRANT,99916597,109098.00,Research Grant Expenditure
BEIS,UKRI - AHRC,16/03/2023,Research Grant Expenditure,Research Grants,University of Oxford,99916598,47599.79,Research Grant Expenditure
BEIS,UKRI - AHRC,16/03/2023,Research Grant Expenditure,Research Grants,The British Museum,99916599,18217.81,Research Grant Expenditure
BEIS,UKRI - AHRC,16/03/2023,Research Grant Expenditure,Research Grants,University of Glasgow,99916600,62616.26,Research Grant Expenditure
BEIS,UKRI - AHRC,16/03/2023,Research Grant Expenditure,Research Grants,Cardiff University,99916601,10340.91,Research Grant Expenditure
BEIS,UKRI - AHRC,16/03/2023,Research Grant Expenditure,Networks & Workshops,The University of Manchester,99916602,5133.68,Research Grant Expenditure
BEIS,UKRI - AHRC,16/03/2023,Research Grant Expenditure,Research Grants,University of Nottingham,99916603,71674.90,Research Grant Expenditure
BEIS,UKRI - AHRC,16/03/2023,Research Grant Expenditure,Research Grants,Cardiff University,99916604,15797.27,Research Grant Expenditure
BEIS,UKRI - AHRC,16/03/2023,Research Grant Expenditure,Research Grants,University of Hull,99916605,55309.94,Research Grant Expenditure
BEIS,UKRI - AHRC,16/03/2023,Research Grant Expenditure,Research Grants,University of Southampton GRANT,99916606,38908.48,Research Grant Expenditure
BEIS,UKRI - AHRC,16/03/2023,Research Grant Expenditure,Research Grants,University of Bristol GRANT,99916607,70505.00,Research Grant Expenditure
BEIS,UKRI - AHRC,16/03/2023,Research Grant Expenditure,Research Grants,The University of Manchester,99916608,63273.11,Research Grant Expenditure
BEIS,UKRI - AHRC,16/03/2023,Research Grant Expenditure,Research Grants,University of Stirling,99916609,69238.95,Research Grant Expenditure
BEIS,UKRI - AHRC,16/03/2023,Research Grant Expenditure,Research Grants,University of Durham,99916610,63640.56,Research Grant Expenditure
BEIS,UKRI - AHRC,16/03/2023,Research Grant Expenditure,Research Grants,University of Sheffield,99916611,66713.66,Research Grant Expenditure
BEIS,UKRI - AHRC,16/03/2023,Research Grant Expenditure,Research Grants,University of Leicester,99916612,43759.03,Research Grant Expenditure
BEIS,UKRI - AHRC,16/03/2023,Research Grant Expenditure,Research Grants,The British Museum,99916613,52094.25,Research Grant Expenditure
BEIS,UKRI - AHRC,16/03/2023,Research Grant Expenditure,Research Grants,University of Oxford,99916614,44826.32,Research Grant Expenditure
BEIS,UKRI - AHRC,16/03/2023,Research Grant Expenditure,Research Grants,University of York,99916615,46942.24,Research Grant Expenditure
BEIS,UKRI - AHRC,16/03/2023,Research Grant Expenditure,Research Grants,University of Leeds,99916616,49983.06,Research Grant Expenditure
BEIS,UKRI - AHRC,16/03/2023,Research Grant Expenditure,Cultural Values Project,University of Leeds,99916617,103279.44,Research Grant Expenditure
BEIS,UKRI - AHRC,16/03/2023,Research Grant Expenditure,Living with Machines (SPF),The Alan Turing Institute,99916618,410162.18,Research Grant Expenditure
BEIS,UKRI - AHRC,16/03/2023,Research Grant Expenditure,Research Grants,University of Southampton GRANT,99916619,56033.21,Research Grant Expenditure
BEIS,UKRI - AHRC,16/03/2023,Research Grant Expenditure,Research Grants,University of Cambridge,99916620,53459.05,Research Grant Expenditure
BEIS,UKRI - AHRC,16/03/2023,Research Grant Expenditure,Research Grants,University of Oxford,99916621,46900.20,Research Grant Expenditure
BEIS,UKRI - AHRC,16/03/2023,Research Grant Expenditure,RCUK Global Challenges Research Fund (RCUK GCRF),London School of Economics and Political Science,99916622,769179.60,Research Grant Expenditure
BEIS,UKRI - AHRC,16/03/2023,Research Grant Expenditure,Industrial Strategy Challenge Fund (ISCF) - Creative Clusters,University of the West of England,99916623,583287.75,Research Grant Expenditure
BEIS,UKRI - AHRC,16/03/2023,Research Grant Expenditure,Industrial Strategy Challenge Fund (ISCF) - Creative Clusters,Abertay University,99916624,395665.12,Research Grant Expenditure
BEIS,UKRI - AHRC,16/03/2023,Research Grant Expenditure,Industrial Strategy Challenge Fund (ISCF) - Creative Clusters,UNIVERSITY OF ULSTER,99916625,586603.73,Research Grant Expenditure
BEIS,UKRI - AHRC,16/03/2023,Research Grant Expenditure,Industrial Strategy Challenge Fund (ISCF) - Creative Clusters,University of York,99916626,585559.93,Research Grant Expenditure
BEIS,UKRI - AHRC,16/03/2023,Research Grant Expenditure,Industrial Strategy Challenge Fund (ISCF) - Creative Clusters,University of Leeds,99916627,681116.38,Research Grant Expenditure
BEIS,UKRI - AHRC,16/03/2023,Research Grant Expenditure,Industrial Strategy Challenge Fund (ISCF) - Creative Clusters,University of the Arts London,99916628,482352.66,Research Grant Expenditure
BEIS,UKRI - AHRC,16/03/2023,Research Grant Expenditure,Industrial Strategy Challenge Fund (ISCF) - Creative Clusters,Cardiff University,99916629,578406.25,Research Grant Expenditure
BEIS,UKRI - AHRC,16/03/2023,Research Grant Expenditure,Industrial Strategy Challenge Fund (ISCF) - Creative Clusters,University of Edinburgh,99916630,607165.97,Research Grant Expenditure
BEIS,UKRI - AHRC,16/03/2023,Research Grant Expenditure,Industrial Strategy Challenge Fund (ISCF) - Creative Clusters,"Royal Holloway, University of London",99916631,666854.36,Research Grant Expenditure
BEIS,UKRI - AHRC,16/03/2023,Research Grant Expenditure,Research Grants,University of Oxford,99916632,32427.30,Research Grant Expenditure
BEIS,UKRI - AHRC,16/03/2023,Research Grant Expenditure,Industrial Strategy Challenge Fund (ISCF) - Creative Clusters,NESTA,99916633,297657.47,Research Grant Expenditure
BEIS,UKRI - AHRC,16/03/2023,Research Grant Expenditure,Research Grants,University of Stirling,99916634,48823.34,Research Grant Expenditure
BEIS,UKRI - AHRC,16/03/2023,Fellowships,Research Fellowships,Newman University,99916638,10558.36,Fellowships
BEIS,UKRI - AHRC,16/03/2023,Fellowships,Research Fellowships,Middlesex University,99916639,23820.53,Fellowships
BEIS,UKRI - AHRC,16/03/2023,Fellowships,Research Fellowships,University of Glasgow,99916640,22567.98,Fellowships
BEIS,UKRI - AHRC,16/03/2023,Fellowships,Research Fellowships,University of Edinburgh,99916641,21623.93,Fellowships
BEIS,UKRI - AHRC,16/03/2023,Fellowships,Research Fellowships,Bangor University,99916642,28483.16,Fellowships
BEIS,UKRI - AHRC,16/03/2023,Fellowships,Research Fellowships,University of Newcastle Upon Tyne,99916643,18851.24,Fellowships
BEIS,UKRI - AHRC,16/03/2023,Fellowships,Research Fellowships,Edge Hill University College,99916644,20673.59,Fellowships
BEIS,UKRI - AHRC,16/03/2023,Fellowships,Research Fellowships,University of Sheffield,99916645,9823.09,Fellowships
BEIS,UKRI - AHRC,16/03/2023,Fellowships,Research Fellowships,University of Birmingham GRANT,99916646,6704.12,Fellowships
BEIS,UKRI - AHRC,16/03/2023,Fellowships,Research Fellowships,Queen Mary University of London,99916647,25405.18,Fellowships
BEIS,UKRI - AHRC,16/03/2023,Fellowships,Research Fellowships,University of Durham,99916648,25341.05,Fellowships
BEIS,UKRI - AHRC,16/03/2023,Fellowships,Research Fellowships,University of Surrey,99916649,30051.83,Fellowships
BEIS,UKRI - AHRC,16/03/2023,Fellowships,Research Fellowships,University of Cambridge,99916650,18546.32,Fellowships
BEIS,UKRI - AHRC,16/03/2023,Fellowships,NPIF Research Talent (RCUK Innovation Fellowships),University College London,99916651,29531.44,Fellowships
BEIS,UKRI - AHRC,16/03/2023,Fellowships,NPIF Research Talent (RCUK Innovation Fellowships),University of Bristol GRANT,99916652,15862.35,Fellowships
BEIS,UKRI - AHRC,16/03/2023,Fellowships,Research Fellowships,University of Newcastle Upon Tyne,99916653,27495.64,Fellowships
BEIS,UKRI - AHRC,16/03/2023,Other Programme Costs,Infrastructure Fund - Preliminary activity - RICHes (Science R&D),ICF Consulting Services Ltd,99917896,10320.00,Other Programme Costs
BEIS,UKRI - AHRC,16/03/2023,Research Grant Expenditure,Digital Economy,UKRI - Engineering & Physical Sciences Research Council,99923298,4058.77,Research Grant Expenditure
BEIS,UKRI - AHRC,16/03/2023,T&S UK - Accommodation,HERA JRP Project,Unspecified,99923808,11.23,T&S UK - Accommodation
BEIS,UKRI - AHRC,16/03/2023,T&S UK - Other Charges,HERA JRP Project,Unspecified,99923808,3.63,T&S UK - Other Charges
BEIS,UKRI - AHRC,16/03/2023,T&S UK - Public Transport,HERA JRP Project,Unspecified,99923808,8.12,T&S UK - Public Transport
BEIS,UKRI - AHRC,16/03/2023,T&S UK - Subsistence,HERA JRP Project,Unspecified,99923808,32.20,T&S UK - Subsistence
BEIS,UKRI - AHRC,16/03/2023,T&S UK - Other Charges,Strategy and Evidence,Unspecified,99923809,20.00,T&S UK - Other Charges
BEIS,UKRI - AHRC,16/03/2023,T&S UK - Public Transport,Strategy and Evidence,Unspecified,99923809,2.00,T&S UK - Public Transport
BEIS,UKRI - AHRC,16/03/2023,T&S UK - Public Transport,Strategy and Evidence,Unspecified,99923809,28.78,T&S UK - Public Transport
BEIS,UKRI - AHRC,16/03/2023,T&S UK - Public Transport,Strategy and Evidence,Unspecified,99923809,5.96,T&S UK - Public Transport
BEIS,UKRI - AHRC,16/03/2023,T&S UK - Subsistence,Strategy and Evidence,Unspecified,99923809,2.89,T&S UK - Subsistence
BEIS,UKRI - AHRC,16/03/2023,T&S UK - Subsistence,Strategy and Evidence,Unspecified,99923809,5.75,T&S UK - Subsistence
BEIS,UKRI - AHRC,16/03/2023,T&S UK - Subsistence,Strategy and Evidence,Unspecified,99923809,19.44,T&S UK - Subsistence
BEIS,UKRI - AHRC,16/03/2023,Research Grant Expenditure,ED & I Caucus,UKRI - Economic & Social Research Council,99924486,62500.00,Research Grant Expenditure
BEIS,UKRI - AHRC,16/03/2023,Non-staff travel and subsistance,Executive Office,Unspecified,99924583,154.35,Non-staff travel and subsistance
BEIS,UKRI - AHRC,16/03/2023,Non-staff travel and subsistance,Executive Office,Unspecified,99924584,195.50,Non-staff travel and subsistance
BEIS,UKRI - AHRC,16/03/2023,Fees (Including College Members),Executive Office,Unspecified,99924585,500.00,Fees (Including College Members)
BEIS,UKRI - AHRC,16/03/2023,Non-staff travel and subsistance,Executive Office,Unspecified,99924586,138.40,Non-staff travel and subsistance
BEIS,UKRI - AHRC,16/03/2023,Fees (Including College Members),Executive Office,Unspecified,99924587,500.00,Fees (Including College Members)
BEIS,UKRI - AHRC,16/03/2023,Fees (Including College Members),Executive Office,Unspecified,99924588,500.00,Fees (Including College Members)
BEIS,UKRI - AHRC,16/03/2023,Fees (Including College Members),Executive Office,Unspecified,99924589,500.00,Fees (Including College Members)
BEIS,UKRI - AHRC,16/03/2023,Fees (Including College Members),Executive Office,Unspecified,99924590,500.00,Fees (Including College Members)
BEIS,UKRI - AHRC,16/03/2023,Fees (Including College Members),Executive Office,Unspecified,99924591,500.00,Fees (Including College Members)
BEIS,UKRI - AHRC,16/03/2023,Fees (Including College Members),Executive Office,Unspecified,99924592,500.00,Fees (Including College Members)
BEIS,UKRI - AHRC,16/03/2023,Fees (Including College Members),Executive Office,Unspecified,99924593,500.00,Fees (Including College Members)
BEIS,UKRI - AHRC,16/03/2023,Non-staff travel and subsistance,Executive Office,Unspecified,99924594,93.50,Non-staff travel and subsistance
BEIS,UKRI - AHRC,16/03/2023,Fees (Including College Members),Executive Office,Unspecified,99924595,500.00,Fees (Including College Members)
BEIS,UKRI - AHRC,16/03/2023,Fees (Including College Members),Executive Office,Unspecified,99924596,500.00,Fees (Including College Members)
BEIS,UKRI - AHRC,17/03/2023,T&S UK - Other Charges,Operations,Unspecified,99908638,250.00,T&S UK - Other Charges
BEIS,UKRI - AHRC,17/03/2023,Research Grant Expenditure,AHRC - DCMS International Heritage Partnership,Marondera University of Agricultural Sciences and Technology,99914232,24695.93,Research Grant Expenditure
BEIS,UKRI - AHRC,17/03/2023,Research Grant Expenditure,World Class Labs (WCL),The National Archives,99916060,11002.76,Research Grant Expenditure
BEIS,UKRI - AHRC,17/03/2023,Research Grant Expenditure,Towards a National Collection (SPF),Historic Buildings and Monuments Commission for England T/A Historic England,99916443,246563.63,Research Grant Expenditure
BEIS,UKRI - AHRC,17/03/2023,Conferences & Seminars,AHRC - Creative Industries,Calder Conference Ltd,99921788,1348.00,Conferences & Seminars
BEIS,UKRI - AHRC,17/03/2023,Other Programme Costs,TSB Knowledge Transfer Partnerships,Technology Strategy Board (Innovate UK),99924996,78912.92,Other Programme Costs
BEIS,UKRI - AHRC,20/03/2023,Other Programme Costs,Public Engagement,Manchester Metropolitan University,99917717,39990.81,Other Programme Costs
BEIS,UKRI - AHRC,20/03/2023,Research Consumables,Clore Leadership Programme,Clore Leadership Programme,99925122,5520.00,Research Consumables
BEIS,UKRI - AHRC,20/03/2023,Research Consumables,Clore Leadership Programme,Clore Leadership Programme,99925122,11280.00,Research Consumables
BEIS,UKRI - AHRC,20/03/2023,Unspecified,Infrastructure Fund - CoSTAR,Alexander Mann Solutions Ltd,99925295,3465.30,Legal & Professional Services
BEIS,UKRI - AHRC,20/03/2023,Fees (Including College Members),Operations,Unspecified,99926429,340.00,Fees (Including College Members)
BEIS,UKRI - AHRC,20/03/2023,Non-staff travel and subsistance,Infrastruture Roadmap,Unspecified,99926436,53.70,Non-staff travel and subsistance
BEIS,UKRI - AHRC,20/03/2023,T&S UK - Subsistence,Operations,Unspecified,99926537,9.99,T&S UK - Subsistence
BEIS,UKRI - AHRC,20/03/2023,T&S Overseas - Other Charges,International Partnership and Engagement,Unspecified,99926540,11.70,T&S Overseas - Other Charges
BEIS,UKRI - AHRC,20/03/2023,T&S Overseas - Public Transport,International Partnership and Engagement,Unspecified,99926540,8.18,T&S Overseas - Public Transport
BEIS,UKRI - AHRC,20/03/2023,T&S Overseas - Subsistence,International Partnership and Engagement,Unspecified,99926540,27.19,T&S Overseas - Subsistence
BEIS,UKRI - AHRC,20/03/2023,T&S Overseas - Subsistence,International Partnership and Engagement,Unspecified,99926540,15.00,T&S Overseas - Subsistence
BEIS,UKRI - AHRC,21/03/2023,Non-staff travel and subsistance,Infrastruture Roadmap,Unspecified,99926825,82.00,Non-staff travel and subsistance
BEIS,UKRI - AHRC,21/03/2023,Fees (Including College Members),Operations,Unspecified,99926854,170.00,Fees (Including College Members)
BEIS,UKRI - AHRC,21/03/2023,T&S UK - Public Transport,AHRC - Creative Industries,Unspecified,99926971,22.30,T&S UK - Public Transport
BEIS,UKRI - AHRC,21/03/2023,T&S UK - Subsistence,AHRC - Creative Industries,Unspecified,99926971,8.30,T&S UK - Subsistence
BEIS,UKRI - AHRC,21/03/2023,T&S UK - Subsistence,AHRC - Creative Industries,Unspecified,99926971,14.85,T&S UK - Subsistence
BEIS,UKRI - AHRC,21/03/2023,GPC Clearing - AHRC,Balance Sheet,Unspecified,99926973,-78.05,GPC Clearing - AHRC
BEIS,UKRI - AHRC,21/03/2023,T&S UK - Subsistence,Operations,Unspecified,99926973,78.05,T&S UK - Subsistence
BEIS,UKRI - AHRC,21/03/2023,T&S UK - Subsistence,Operations,Unspecified,99926973,11.66,T&S UK - Subsistence
BEIS,UKRI - AHRC,22/03/2023,Fees (Including College Members),Operations,Unspecified,99928389,340.00,Fees (Including College Members)
BEIS,UKRI - AHRC,22/03/2023,Fees (Including College Members),Operations,Unspecified,99928390,170.00,Fees (Including College Members)
BEIS,UKRI - AHRC,22/03/2023,Fees (Including College Members),Operations,Unspecified,99928391,460.00,Fees (Including College Members)
BEIS,UKRI - AHRC,23/03/2023,Health & Safety (inc. Medicals & Opticians),AI&Design,Unspecified,99915896,22.00,Health & Safety (inc. Medicals & Opticians)
BEIS,UKRI - AHRC,23/03/2023,Conferences & Seminars,Strategy and Evidence,Calder Conference Ltd,99926783,2196.00,Conferences & Seminars
BEIS,UKRI - AHRC,23/03/2023,T&S UK - Other Charges,AI&Design,Unspecified,99927645,102.97,T&S UK - Other Charges
BEIS,UKRI - AHRC,24/03/2023,Other Programme Costs,Clore Leadership Programme,Clore Leadership Programme,99929370,50445.00,Other Programme Costs
BEIS,UKRI - AHRC,24/03/2023,Fees (Including College Members),Operations,Unspecified,99929373,170.00,Fees (Including College Members)
BEIS,UKRI - AHRC,24/03/2023,T&S UK - Other Charges,International Development and Area Studies,Unspecified,99929505,4.10,T&S UK - Other Charges
BEIS,UKRI - AHRC,24/03/2023,T&S UK - Subsistence,International Development and Area Studies,Unspecified,99929505,9.20,T&S UK - Subsistence
BEIS,UKRI - AHRC,27/03/2023,Other Programme Costs,Commissioned Research,UKRI - Economic & Social Research Council,99930022,127467.34,Other Programme Costs
BEIS,UKRI - AHRC,27/03/2023,UK - Professional Memberships & Subscriptions,SMT,The Association of Research Managers and Administrators (UK),99930088,1940.00,UK - Professional Memberships & Subscriptions
BEIS,UKRI - AHRC,27/03/2023,Unspecified,Infrastructure Fund - CoSTAR,Alexander Mann Solutions Ltd,99930820,3465.30,Legal & Professional Services
BEIS,UKRI - AHRC,27/03/2023,T&S UK - Subsistence,Executive Office,Unspecified,99931091,11.50,T&S UK - Subsistence
BEIS,UKRI - AHRC,27/03/2023,T&S UK - Subsistence,Executive Office,Unspecified,99931092,12.48,T&S UK - Subsistence
BEIS,UKRI - AHRC,27/03/2023,T&S UK - Public Transport,Executive Office,Unspecified,99931093,21.00,T&S UK - Public Transport
BEIS,UKRI - AHRC,27/03/2023,T&S UK - Subsistence,Executive Office,Unspecified,99931094,22.00,T&S UK - Subsistence
BEIS,UKRI - AHRC,27/03/2023,T&S UK - Subsistence,Executive Office,Unspecified,99931095,23.50,T&S UK - Subsistence
BEIS,UKRI - AHRC,27/03/2023,T&S UK - Subsistence,Executive Office,Unspecified,99931096,5.39,T&S UK - Subsistence
BEIS,UKRI - AHRC,27/03/2023,T&S UK - Subsistence,Executive Office,Unspecified,99931097,5.50,T&S UK - Subsistence
BEIS,UKRI - AHRC,27/03/2023,T&S UK - Subsistence,Executive Office,Unspecified,99931098,7.50,T&S UK - Subsistence
BEIS,UKRI - AHRC,27/03/2023,Education Fees & Study Materials,SMT,Unspecified,99931099,12.99,Education Fees & Study Materials
BEIS,UKRI - AHRC,27/03/2023,T&S UK - Subsistence,SMT,Unspecified,99931099,16.40,T&S UK - Subsistence
BEIS,UKRI - AHRC,28/03/2023,Fees (Including College Members),Operations,Unspecified,99930406,170.00,Fees (Including College Members)
BEIS,UKRI - AHRC,28/03/2023,Fees (Including College Members),Operations,Unspecified,99930407,340.00,Fees (Including College Members)
BEIS,UKRI - AHRC,28/03/2023,Fees (Including College Members),Operations,Unspecified,99930408,230.00,Fees (Including College Members)
BEIS,UKRI - AHRC,28/03/2023,Fees (Including College Members),Operations,Unspecified,99930409,340.00,Fees (Including College Members)
BEIS,UKRI - AHRC,28/03/2023,Fees (Including College Members),Operations,Unspecified,99930410,170.00,Fees (Including College Members)
BEIS,UKRI - AHRC,28/03/2023,Fees (Including College Members),Operations,Unspecified,99930411,340.00,Fees (Including College Members)
BEIS,UKRI - AHRC,28/03/2023,Fees (Including College Members),Operations,Unspecified,99930412,170.00,Fees (Including College Members)
BEIS,UKRI - AHRC,28/03/2023,T&S UK - Flights,Infrastruture Roadmap,Unspecified,99930581,718.14,T&S UK - Flights
BEIS,UKRI - AHRC,28/03/2023,T&S UK - Public Transport,Infrastruture Roadmap,Unspecified,99930581,85.41,T&S UK - Public Transport
BEIS,UKRI - AHRC,28/03/2023,T&S UK - Public Transport,Infrastruture Roadmap,Unspecified,99930581,80.50,T&S UK - Public Transport
BEIS,UKRI - AHRC,28/03/2023,T&S UK - Subsistence,Infrastruture Roadmap,Unspecified,99930581,31.24,T&S UK - Subsistence
BEIS,UKRI - AHRC,28/03/2023,T&S UK - Subsistence,Infrastruture Roadmap,Unspecified,99930581,13.00,T&S UK - Subsistence
BEIS,UKRI - AHRC,28/03/2023,T&S UK - Subsistence,Infrastruture Roadmap,Unspecified,99930581,22.24,T&S UK - Subsistence
BEIS,UKRI - AHRC,28/03/2023,T&S UK - Other Charges,Operations,Unspecified,99930582,29.99,T&S UK - Other Charges
BEIS,UKRI - AHRC,28/03/2023,Non-staff travel and subsistance,Skills Strategy,Unspecified,99931767,35.50,Non-staff travel and subsistance
BEIS,UKRI - AHRC,28/03/2023,Non-staff travel and subsistance,Skills Strategy,Unspecified,99931769,113.85,Non-staff travel and subsistance
BEIS,UKRI - AHRC,28/03/2023,Non-staff travel and subsistance,Skills Strategy,Unspecified,99931770,359.79,Non-staff travel and subsistance
BEIS,UKRI - AHRC,28/03/2023,Non-staff travel and subsistance,Skills Strategy,Unspecified,99931771,215.18,Non-staff travel and subsistance
BEIS,UKRI - AHRC,28/03/2023,Staff Training,SMT,Provek Ltd,99932213,914.40,Staff Training
BEIS,UKRI - AHRC,29/03/2023,International Subscriptions,JPI Cultural Heritage,Unspecified,99929851,183464.00,International Subscriptions
BEIS,UKRI - AHRC,29/03/2023,Fellowships,Public Policy,UKRI - Economic & Social Research Council,99930601,16830.82,Fellowships
BEIS,UKRI - AHRC,29/03/2023,Fellowships,Public Policy,UKRI - Economic & Social Research Council,99930601,10042.13,Fellowships
BEIS,UKRI - AHRC,29/03/2023,Fellowships,Public Policy,UKRI - Economic & Social Research Council,99930601,13442.62,Fellowships
BEIS,UKRI - AHRC,29/03/2023,Research Grant Expenditure,Commissioned Research,UKRI - Economic & Social Research Council,99930602,8859.68,Research Grant Expenditure
BEIS,UKRI - AHRC,29/03/2023,Research Grant Expenditure,Urban Living,UKRI - Economic & Social Research Council,99930603,461.27,Research Grant Expenditure
BEIS,UKRI - AHRC,29/03/2023,Conferences & Seminars,Public Engagement,Institute for Government,99931762,7200.00,Conferences & Seminars
BEIS,UKRI - AHRC,29/03/2023,Conferences & Seminars,Skills Strategy,Institute for Government,99931802,36573.60,Conferences & Seminars
BEIS,UKRI - AHRC,30/03/2023,Staff Training,Programme Management Office,PMO Learning Ltd,99895661,1794.00,Staff Training
BEIS,UKRI - AHRC,30/03/2023,Research Grant Expenditure,Design: Strategic Initiatives,THE DESIGN MUSEUM,99922330,87500.00,Research Grant Expenditure
BEIS,UKRI - AHRC,30/03/2023,Research Grant Expenditure,Design: Strategic Initiatives,THE DESIGN MUSEUM,99922359,500000.00,Research Grant Expenditure
BEIS,UKRI - AHRC,30/03/2023,T&S UK - Subsistence,Infrastruture Roadmap,Unspecified,99925208,7.50,T&S UK - Subsistence
BEIS,UKRI - AHRC,30/03/2023,T&S UK - Subsistence,Infrastruture Roadmap,Unspecified,99925208,54.25,T&S UK - Subsistence
BEIS,UKRI - AHRC,30/03/2023,Hospitality,Public Engagement,Benugo Ltd,99930222,2202.00,Hospitality
BEIS,UKRI - AHRC,30/03/2023,Research Grant Expenditure,Public Engagement,Unspecified,99932988,15000.00,Research Grant Expenditure
BEIS,UKRI - AHRC,30/03/2023,Non-staff travel and subsistance,Skills Strategy,Unspecified,99933028,197.52,Non-staff travel and subsistance
BEIS,UKRI - AHRC,30/03/2023,Non-staff travel and subsistance,Skills Strategy,Unspecified,99933029,146.29,Non-staff travel and subsistance
BEIS,UKRI - AHRC,30/03/2023,Non-staff travel and subsistance,Skills Strategy,Unspecified,99933030,119.30,Non-staff travel and subsistance
BEIS,UKRI - AHRC,30/03/2023,Non-staff travel and subsistance,Skills Strategy,Unspecified,99933031,34.40,Non-staff travel and subsistance
BEIS,UKRI - AHRC,30/03/2023,Health & Safety (inc. Medicals & Opticians),Public and Stakeholder Engagement,Unspecified,99933190,35.00,Health & Safety (inc. Medicals & Opticians)
BEIS,UKRI - AHRC,31/03/2023,Staff Training,Engagement with the Innovation Scholarship programme,Cortex-Training Ltd,99932903,829.20,Staff Training
BEIS,UKRI - AHRC,31/03/2023,Fees (Including College Members),Public Engagement,Unspecified,99934238,595.00,Fees (Including College Members)
BEIS,UKRI - AHRC,31/03/2023,Non-staff travel and subsistance,Skills Strategy,Unspecified,99934239,62.69,Non-staff travel and subsistance
BEIS,UKRI - AHRC,31/03/2023,Non-staff travel and subsistance,Skills Strategy,Unspecified,99934240,105.75,Non-staff travel and subsistance
BEIS,UKRI - AHRC,31/03/2023,Fees (Including College Members),Operations,Unspecified,99934530,340.00,Fees (Including College Members)
BEIS,UKRI - BBSRC,01/03/2023,Consultancy Services,CE - CPS,CAMBRIDGE POLICY CONSULTANTS LTD,99889197,17028.00,Consultancy Services
BEIS,UKRI - BBSRC,01/03/2023,Unspecified,Innovation and Skills Group,Bioindustry Association (BIA),99893281,1386.00,Legal & Professional Services
BEIS,UKRI - BBSRC,01/03/2023,Conferences & Seminars,Science Group,Cranfield University,99904915,7500.00,Conferences & Seminars
BEIS,UKRI - BBSRC,01/03/2023,Conferences & Seminars,Innovation and Skills Group,Calder Conference Ltd,99905665,1534.00,Conferences & Seminars
BEIS,UKRI - BBSRC,02/03/2023,Research Institutes - Capital Grants: Minor Works,World Class Labs,Rothamsted Research Ltd,99906040,1181.60,Research Institutes - Capital Grants: Minor Works
BEIS,UKRI - BBSRC,02/03/2023,Other Programme Costs,Innovation and Skills Group CDSU,NNFCC Ltd,99906074,4990.72,Other Programme Costs
BEIS,UKRI - BBSRC,02/03/2023,Other Programme Costs,Innovation and Skills Group CDSU,NNFCC Ltd,99906076,4248.00,Other Programme Costs
BEIS,UKRI - BBSRC,02/03/2023,Other Programme Costs,Innovation and Skills Group CDSU,NNFCC Ltd,99906085,2073.60,Other Programme Costs
BEIS,UKRI - BBSRC,02/03/2023,Unspecified,CE - CPS,The Society of Biology / The Royal Society of Biology,99906112,9453.63,Legal & Professional Services
BEIS,UKRI - BBSRC,02/03/2023,T&S UK - Parking Tolls Congestion Charges,CE - CPS,Unspecified,99906599,5.00,T&S UK - Parking Tolls Congestion Charges
BEIS,UKRI - BBSRC,02/03/2023,T&S UK - Subsistence,CE - CPS,Unspecified,99906599,7.40,T&S UK - Subsistence
BEIS,UKRI - BBSRC,02/03/2023,T&S UK - Mileage,CE - CPS,Unspecified,99906600,76.50,T&S UK - Mileage
BEIS,UKRI - BBSRC,03/03/2023,Non-staff travel and subsistance,Science Group – Admin Function,Unspecified,99907273,245.35,Non-staff travel and subsistance
BEIS,UKRI - BBSRC,03/03/2023,Unspecified,Science Group – Admin Function,Unspecified,99907274,170.00,Council & Committee Honoraria
BEIS,UKRI - BBSRC,03/03/2023,Unspecified,Science Group – Admin Function,Unspecified,99907275,340.00,Council & Committee Honoraria
BEIS,UKRI - BBSRC,03/03/2023,Unspecified,Science Group – Admin Function,Unspecified,99907276,340.00,Council & Committee Honoraria
BEIS,UKRI - BBSRC,03/03/2023,Unspecified,Science Group – Admin Function,Unspecified,99907277,340.00,Council & Committee Honoraria
BEIS,UKRI - BBSRC,03/03/2023,Unspecified,Science Group – Admin Function,Unspecified,99907278,340.00,Council & Committee Honoraria
BEIS,UKRI - BBSRC,03/03/2023,Unspecified,Science Group – Admin Function,Unspecified,99907279,340.00,Council & Committee Honoraria
BEIS,UKRI - BBSRC,03/03/2023,Unspecified,Science Group – Admin Function,Unspecified,99907280,460.00,Council & Committee Honoraria
BEIS,UKRI - BBSRC,03/03/2023,Unspecified,Science Group – Admin Function,Unspecified,99907281,340.00,Council & Committee Honoraria
BEIS,UKRI - BBSRC,03/03/2023,Unspecified,Science Group – Admin Function,Unspecified,99907282,340.00,Council & Committee Honoraria
BEIS,UKRI - BBSRC,03/03/2023,Non-staff travel and subsistance,Science Group – Admin Function,Unspecified,99907283,340.00,Non-staff travel and subsistance
BEIS,UKRI - BBSRC,03/03/2023,T&S UK - Public Transport,CE - Chief Executive,Unspecified,99908419,17.54,T&S UK - Public Transport
BEIS,UKRI - BBSRC,03/03/2023,T&S UK - Subsistence,CE - Chief Executive,Unspecified,99908419,9.45,T&S UK - Subsistence
BEIS,UKRI - BBSRC,03/03/2023,T&S UK - Mileage,Innovation and Skills Group CDSU,Unspecified,99908421,38.25,T&S UK - Mileage
BEIS,UKRI - BBSRC,03/03/2023,T&S UK - Public Transport,Innovation and Skills Group,Unspecified,99908422,19.93,T&S UK - Public Transport
BEIS,UKRI - BBSRC,06/03/2023,Research Institutes - Capital Grants: Minor Works,Estates - Projects,Rothamsted Enterprises Ltd,99892389,222838.19,Research Institutes - Capital Grants: Minor Works
BEIS,UKRI - BBSRC,06/03/2023,T&S UK - Vehicle Hire,CE - Chief Executive,Enterprise Rent-A-Car UK Ltd,99904908,15.69,T&S UK - Vehicle Hire
BEIS,UKRI - BBSRC,06/03/2023,T&S UK - Vehicle Hire,CE - Chief Executive,Enterprise Rent-A-Car UK Ltd,99904908,78.44,T&S UK - Vehicle Hire
BEIS,UKRI - BBSRC,06/03/2023,T&S UK - Vehicle Hire,FG - Estates,Enterprise Rent-A-Car UK Ltd,99904908,16.14,T&S UK - Vehicle Hire
BEIS,UKRI - BBSRC,06/03/2023,T&S UK - Vehicle Hire,FG - Estates,Enterprise Rent-A-Car UK Ltd,99904908,80.68,T&S UK - Vehicle Hire
BEIS,UKRI - BBSRC,06/03/2023,Research Institutes - Capital Grants: Minor Works,World Class Labs,The Pirbright Institute,99908235,3520.34,Research Institutes - Capital Grants: Minor Works
BEIS,UKRI - BBSRC,06/03/2023,Unspecified,Innovation and Skills Group,Technopolis Ltd,99908517,81144.00,Legal & Professional Services
BEIS,UKRI - BBSRC,06/03/2023,Research Institutes - Capital Grants: Minor Works,Estates - Projects,Rothamsted Enterprises Ltd,99908541,-222838.19,Research Institutes - Capital Grants: Minor Works
BEIS,UKRI - BBSRC,06/03/2023,Dep't of Environ Food & Rural Affairs (DEFRA),Research: Strategic National Capability,The Pirbright Institute,99908582,42387.00,Dep't of Environ Food & Rural Affairs (DEFRA)
BEIS,UKRI - BBSRC,06/03/2023,Dep't of Environ Food & Rural Affairs (DEFRA),Research: Strategic National Capability,The Pirbright Institute,99908583,6813.00,Dep't of Environ Food & Rural Affairs (DEFRA)
BEIS,UKRI - BBSRC,06/03/2023,Research Grant Expenditure,SPF W1 EMBL EBI,EMBL (European Molecular Biology Laboratory),99912163,600.00,Research Grant Expenditure
BEIS,UKRI - BBSRC,06/03/2023,T&S UK - Public Transport,Innovation and Skills Group,Unspecified,99912234,114.30,T&S UK - Public Transport
BEIS,UKRI - BBSRC,06/03/2023,T&S UK - Public Transport,CE - CPS,Unspecified,99912235,44.00,T&S UK - Public Transport
BEIS,UKRI - BBSRC,06/03/2023,T&S UK - Public Transport,CE - CPS,Unspecified,99912235,15.00,T&S UK - Public Transport
BEIS,UKRI - BBSRC,06/03/2023,T&S UK - Subsistence,CE - CPS,Unspecified,99912235,3.79,T&S UK - Subsistence
BEIS,UKRI - BBSRC,06/03/2023,T&S UK - Subsistence,CE - CPS,Unspecified,99912235,24.29,T&S UK - Subsistence
BEIS,UKRI - BBSRC,06/03/2023,T&S UK - Other Charges,Innovation and Skills Group,Unspecified,99912236,14.99,T&S UK - Other Charges
BEIS,UKRI - BBSRC,07/03/2023,Unspecified,FG - Estates,CUSHMAN & WAKEFIELD DEBENHAM TIE LEUNG LTD,99879736,30200.83,Legal & Professional Services
BEIS,UKRI - BBSRC,07/03/2023,Unspecified,FG - Estates,CUSHMAN & WAKEFIELD DEBENHAM TIE LEUNG LTD,99879736,0.01,Legal & Professional Services
BEIS,UKRI - BBSRC,07/03/2023,Research Grant Expenditure,Impact & Knowledge Exchange,UKRI - Engineering & Physical Sciences Research Council,99908733,128144.75,Research Grant Expenditure
BEIS,UKRI - BBSRC,07/03/2023,Research Grant Expenditure,Science Group,UKRI - Engineering & Physical Sciences Research Council,99908734,100000.00,Research Grant Expenditure
BEIS,UKRI - BBSRC,07/03/2023,T&S UK - Other Charges,Science Group – Admin Function,Unspecified,99909244,5.18,T&S UK - Other Charges
BEIS,UKRI - BBSRC,07/03/2023,T&S UK - Subsistence,Science Group – Admin Function,Unspecified,99909244,6.87,T&S UK - Subsistence
BEIS,UKRI - BBSRC,07/03/2023,T&S UK - Subsistence,Science Group – Admin Function,Unspecified,99909244,11.25,T&S UK - Subsistence
BEIS,UKRI - BBSRC,07/03/2023,Research Grant Expenditure,SPF W1 EMBL EBI,EMBL (European Molecular Biology Laboratory),99913238,970.46,Research Grant Expenditure
BEIS,UKRI - BBSRC,07/03/2023,Conferences & Seminars,Science Group,Calder Conference Ltd,99913257,5333.02,Conferences & Seminars
BEIS,UKRI - BBSRC,08/03/2023,Conferences & Seminars,Science Group,British Society of Animal Science,99897572,434.00,Conferences & Seminars
BEIS,UKRI - BBSRC,08/03/2023,Research Grant Expenditure,Impact & Knowledge Exchange,Aberystwyth University,99906272,98041.50,Research Grant Expenditure
BEIS,UKRI - BBSRC,08/03/2023,Research Institutes - Capital Grants: Minor Works,Rothamsted Research,Rothamsted Research Ltd,99907991,-811.97,Research Institutes - Capital Grants: Minor Works
BEIS,UKRI - BBSRC,08/03/2023,Research Institutes - Capital Grants: Minor Works,Estates - Projects,Rothamsted Enterprises Ltd,99908555,27.02,Research Institutes - Capital Grants: Minor Works
BEIS,UKRI - BBSRC,08/03/2023,Research Institutes - Capital Grants: Minor Works,Estates - Projects,Rothamsted Enterprises Ltd,99908555,149277.98,Research Institutes - Capital Grants: Minor Works
BEIS,UKRI - BBSRC,08/03/2023,Research Institutes - Capital Grants: Minor Works,World Class Labs,Rothamsted Research Ltd,99908995,150917.40,Research Institutes - Capital Grants: Minor Works
BEIS,UKRI - BBSRC,08/03/2023,Research Institutes - Capital Grants: Minor Works,Mid-Range Equipment,The Pirbright Institute,99913820,66000.00,Research Institutes - Capital Grants: Minor Works
BEIS,UKRI - BBSRC,08/03/2023,Research Grant Expenditure,SPF W1 EMBL EBI,EMBL (European Molecular Biology Laboratory),99913864,163744.82,Research Grant Expenditure
BEIS,UKRI - BBSRC,08/03/2023,Conferences & Seminars,Innovation and Skills Group,KNOWLEDGE TRANSFER NETWORK LTD,99915763,2250.00,Conferences & Seminars
BEIS,UKRI - BBSRC,08/03/2023,T&S Overseas - Accommodation,CE - IRU,Unspecified,99915865,308.50,T&S Overseas - Accommodation
BEIS,UKRI - BBSRC,09/03/2023,Research Grant Expenditure,Impact & Knowledge Exchange,Rothamsted Enterprises Ltd,99897570,222838.19,Research Grant Expenditure
BEIS,UKRI - BBSRC,09/03/2023,Research Grant Expenditure,SPF W1 EMBL EBI,EMBL (European Molecular Biology Laboratory),99916022,600.00,Research Grant Expenditure
BEIS,UKRI - BBSRC,09/03/2023,T&S UK - Vehicle Hire,CIMG - Director,Enterprise Rent-A-Car UK Ltd,99916237,76.16,T&S UK - Vehicle Hire
BEIS,UKRI - BBSRC,09/03/2023,T&S UK - Vehicle Hire,CIMG - Director,Enterprise Rent-A-Car UK Ltd,99916237,15.23,T&S UK - Vehicle Hire
BEIS,UKRI - BBSRC,09/03/2023,Conferences & Seminars,Innovation and Skills Group,Lux Events Ltd,99916663,1440.00,Conferences & Seminars
BEIS,UKRI - BBSRC,09/03/2023,Research Grant Expenditure,Impact & Knowledge Exchange,Rothamsted Enterprises Ltd,99916765,-222838.19,Research Grant Expenditure
BEIS,UKRI - BBSRC,09/03/2023,T&S Overseas - Accommodation,CE - CPS,Corporate Travel Management (North) Ltd,99916768,2.00,T&S Overseas - Accommodation
BEIS,UKRI - BBSRC,09/03/2023,T&S Overseas - Accommodation,CE - CPS,Corporate Travel Management (North) Ltd,99916768,224.23,T&S Overseas - Accommodation
BEIS,UKRI - BBSRC,09/03/2023,T&S Overseas - Accommodation,CE - CPS,Corporate Travel Management (North) Ltd,99916768,0.40,T&S Overseas - Accommodation
BEIS,UKRI - BBSRC,09/03/2023,T&S Overseas - Accommodation,European Initiatives,Corporate Travel Management (North) Ltd,99916768,0.80,T&S Overseas - Accommodation
BEIS,UKRI - BBSRC,09/03/2023,T&S Overseas - Accommodation,European Initiatives,Corporate Travel Management (North) Ltd,99916768,253.22,T&S Overseas - Accommodation
BEIS,UKRI - BBSRC,09/03/2023,T&S Overseas - Accommodation,European Initiatives,Corporate Travel Management (North) Ltd,99916768,0.16,T&S Overseas - Accommodation
BEIS,UKRI - BBSRC,09/03/2023,T&S Overseas - Accommodation,JBOS - Staff,Corporate Travel Management (North) Ltd,99916768,141.54,T&S Overseas - Accommodation
BEIS,UKRI - BBSRC,09/03/2023,T&S Overseas - Accommodation,Science Group,Corporate Travel Management (North) Ltd,99916768,0.80,T&S Overseas - Accommodation
BEIS,UKRI - BBSRC,09/03/2023,T&S Overseas - Accommodation,Science Group,Corporate Travel Management (North) Ltd,99916768,298.36,T&S Overseas - Accommodation
BEIS,UKRI - BBSRC,09/03/2023,T&S Overseas - Accommodation,Science Group,Corporate Travel Management (North) Ltd,99916768,0.16,T&S Overseas - Accommodation
BEIS,UKRI - BBSRC,09/03/2023,T&S Overseas - Accommodation,Science Group – Admin Function,Corporate Travel Management (North) Ltd,99916768,0.80,T&S Overseas - Accommodation
BEIS,UKRI - BBSRC,09/03/2023,T&S Overseas - Accommodation,Science Group – Admin Function,Corporate Travel Management (North) Ltd,99916768,211.16,T&S Overseas - Accommodation
BEIS,UKRI - BBSRC,09/03/2023,T&S Overseas - Accommodation,Science Group – Admin Function,Corporate Travel Management (North) Ltd,99916768,103.61,T&S Overseas - Accommodation
BEIS,UKRI - BBSRC,09/03/2023,T&S Overseas - Accommodation,Science Group – Admin Function,Corporate Travel Management (North) Ltd,99916768,0.16,T&S Overseas - Accommodation
BEIS,UKRI - BBSRC,09/03/2023,T&S Overseas - Flights,CE - IRU,Corporate Travel Management (North) Ltd,99916768,2.50,T&S Overseas - Flights
BEIS,UKRI - BBSRC,09/03/2023,T&S Overseas - Flights,CE - IRU,Corporate Travel Management (North) Ltd,99916768,341.48,T&S Overseas - Flights
BEIS,UKRI - BBSRC,09/03/2023,T&S Overseas - Flights,CE - IRU,Corporate Travel Management (North) Ltd,99916768,2.50,T&S Overseas - Flights
BEIS,UKRI - BBSRC,09/03/2023,T&S Overseas - Flights,CE - IRU,Corporate Travel Management (North) Ltd,99916768,170.48,T&S Overseas - Flights
BEIS,UKRI - BBSRC,09/03/2023,T&S UK - Accommodation,CE - CPS,Corporate Travel Management (North) Ltd,99916768,0.80,T&S UK - Accommodation
BEIS,UKRI - BBSRC,09/03/2023,T&S UK - Accommodation,CE - CPS,Corporate Travel Management (North) Ltd,99916768,0.16,T&S UK - Accommodation
BEIS,UKRI - BBSRC,09/03/2023,T&S UK - Accommodation,CE - Chief Executive,Corporate Travel Management (North) Ltd,99916768,0.80,T&S UK - Accommodation
BEIS,UKRI - BBSRC,09/03/2023,T&S UK - Accommodation,CE - Chief Executive,Corporate Travel Management (North) Ltd,99916768,111.60,T&S UK - Accommodation
BEIS,UKRI - BBSRC,09/03/2023,T&S UK - Accommodation,CE - Chief Executive,Corporate Travel Management (North) Ltd,99916768,0.16,T&S UK - Accommodation
BEIS,UKRI - BBSRC,09/03/2023,T&S UK - Accommodation,CIMG - Director,Corporate Travel Management (North) Ltd,99916768,0.80,T&S UK - Accommodation
BEIS,UKRI - BBSRC,09/03/2023,T&S UK - Accommodation,CIMG - Director,Corporate Travel Management (North) Ltd,99916768,93.59,T&S UK - Accommodation
BEIS,UKRI - BBSRC,09/03/2023,T&S UK - Accommodation,CIMG - Director,Corporate Travel Management (North) Ltd,99916768,0.16,T&S UK - Accommodation
BEIS,UKRI - BBSRC,09/03/2023,T&S UK - Accommodation,FG - Estates,Corporate Travel Management (North) Ltd,99916768,0.80,T&S UK - Accommodation
BEIS,UKRI - BBSRC,09/03/2023,T&S UK - Accommodation,FG - Estates,Corporate Travel Management (North) Ltd,99916768,111.60,T&S UK - Accommodation
BEIS,UKRI - BBSRC,09/03/2023,T&S UK - Accommodation,FG - Estates,Corporate Travel Management (North) Ltd,99916768,1.60,T&S UK - Accommodation
BEIS,UKRI - BBSRC,09/03/2023,T&S UK - Accommodation,FG - Estates,Corporate Travel Management (North) Ltd,99916768,0.48,T&S UK - Accommodation
BEIS,UKRI - BBSRC,09/03/2023,T&S UK - Accommodation,Innovation and Skills Group,Corporate Travel Management (North) Ltd,99916768,0.80,T&S UK - Accommodation
BEIS,UKRI - BBSRC,09/03/2023,T&S UK - Accommodation,Innovation and Skills Group,Corporate Travel Management (North) Ltd,99916768,171.00,T&S UK - Accommodation
BEIS,UKRI - BBSRC,09/03/2023,T&S UK - Accommodation,Innovation and Skills Group,Corporate Travel Management (North) Ltd,99916768,0.80,T&S UK - Accommodation
BEIS,UKRI - BBSRC,09/03/2023,T&S UK - Accommodation,Innovation and Skills Group,Corporate Travel Management (North) Ltd,99916768,113.05,T&S UK - Accommodation
BEIS,UKRI - BBSRC,09/03/2023,T&S UK - Accommodation,Innovation and Skills Group,Corporate Travel Management (North) Ltd,99916768,0.80,T&S UK - Accommodation
BEIS,UKRI - BBSRC,09/03/2023,T&S UK - Accommodation,Innovation and Skills Group,Corporate Travel Management (North) Ltd,99916768,95.00,T&S UK - Accommodation
BEIS,UKRI - BBSRC,09/03/2023,T&S UK - Accommodation,Innovation and Skills Group,Corporate Travel Management (North) Ltd,99916768,0.80,T&S UK - Accommodation
BEIS,UKRI - BBSRC,09/03/2023,T&S UK - Accommodation,Innovation and Skills Group,Corporate Travel Management (North) Ltd,99916768,95.00,T&S UK - Accommodation
BEIS,UKRI - BBSRC,09/03/2023,T&S UK - Accommodation,Innovation and Skills Group,Corporate Travel Management (North) Ltd,99916768,0.16,T&S UK - Accommodation
BEIS,UKRI - BBSRC,09/03/2023,T&S UK - Accommodation,Innovation and Skills Group,Corporate Travel Management (North) Ltd,99916768,0.48,T&S UK - Accommodation
BEIS,UKRI - BBSRC,09/03/2023,T&S UK - Accommodation,Science Group,Corporate Travel Management (North) Ltd,99916768,0.80,T&S UK - Accommodation
BEIS,UKRI - BBSRC,09/03/2023,T&S UK - Accommodation,Science Group,Corporate Travel Management (North) Ltd,99916768,0.80,T&S UK - Accommodation
BEIS,UKRI - BBSRC,09/03/2023,T&S UK - Accommodation,Science Group,Corporate Travel Management (North) Ltd,99916768,0.80,T&S UK - Accommodation
BEIS,UKRI - BBSRC,09/03/2023,T&S UK - Accommodation,Science Group,Corporate Travel Management (North) Ltd,99916768,100.00,T&S UK - Accommodation
BEIS,UKRI - BBSRC,09/03/2023,T&S UK - Accommodation,Science Group,Corporate Travel Management (North) Ltd,99916768,0.16,T&S UK - Accommodation
BEIS,UKRI - BBSRC,09/03/2023,T&S UK - Accommodation,Science Group,Corporate Travel Management (North) Ltd,99916768,0.32,T&S UK - Accommodation
BEIS,UKRI - BBSRC,09/03/2023,T&S UK - Accommodation,Science Group – Admin Function,Corporate Travel Management (North) Ltd,99916768,2.00,T&S UK - Accommodation
BEIS,UKRI - BBSRC,09/03/2023,T&S UK - Accommodation,Science Group – Admin Function,Corporate Travel Management (North) Ltd,99916768,90.00,T&S UK - Accommodation
BEIS,UKRI - BBSRC,09/03/2023,T&S UK - Accommodation,Science Group – Admin Function,Corporate Travel Management (North) Ltd,99916768,0.40,T&S UK - Accommodation
BEIS,UKRI - BBSRC,09/03/2023,T&S UK - Public Transport,CE - CPS,Corporate Travel Management (North) Ltd,99916768,-73.60,T&S UK - Public Transport
BEIS,UKRI - BBSRC,09/03/2023,T&S UK - Public Transport,CE - Chief Executive,Corporate Travel Management (North) Ltd,99916768,0.25,T&S UK - Public Transport
BEIS,UKRI - BBSRC,09/03/2023,T&S UK - Public Transport,CE - Chief Executive,Corporate Travel Management (North) Ltd,99916768,31.60,T&S UK - Public Transport
BEIS,UKRI - BBSRC,09/03/2023,T&S UK - Public Transport,CE - Chief Executive,Corporate Travel Management (North) Ltd,99916768,0.25,T&S UK - Public Transport
BEIS,UKRI - BBSRC,09/03/2023,T&S UK - Public Transport,CE - Chief Executive,Corporate Travel Management (North) Ltd,99916768,122.50,T&S UK - Public Transport
BEIS,UKRI - BBSRC,09/03/2023,T&S UK - Public Transport,CE - Chief Executive,Corporate Travel Management (North) Ltd,99916768,0.25,T&S UK - Public Transport
BEIS,UKRI - BBSRC,09/03/2023,T&S UK - Public Transport,CE - Chief Executive,Corporate Travel Management (North) Ltd,99916768,45.40,T&S UK - Public Transport
BEIS,UKRI - BBSRC,09/03/2023,T&S UK - Public Transport,CE - IRU,Corporate Travel Management (North) Ltd,99916768,0.25,T&S UK - Public Transport
BEIS,UKRI - BBSRC,09/03/2023,T&S UK - Public Transport,CE - IRU,Corporate Travel Management (North) Ltd,99916768,141.60,T&S UK - Public Transport
BEIS,UKRI - BBSRC,09/03/2023,T&S UK - Public Transport,CE - IRU,Corporate Travel Management (North) Ltd,99916768,0.25,T&S UK - Public Transport
BEIS,UKRI - BBSRC,09/03/2023,T&S UK - Public Transport,CE - IRU,Corporate Travel Management (North) Ltd,99916768,131.40,T&S UK - Public Transport
BEIS,UKRI - BBSRC,09/03/2023,T&S UK - Public Transport,CE - IRU,Corporate Travel Management (North) Ltd,99916768,0.25,T&S UK - Public Transport
BEIS,UKRI - BBSRC,09/03/2023,T&S UK - Public Transport,CE - IRU,Corporate Travel Management (North) Ltd,99916768,60.00,T&S UK - Public Transport
BEIS,UKRI - BBSRC,09/03/2023,T&S UK - Public Transport,CE - IRU,Corporate Travel Management (North) Ltd,99916768,0.50,T&S UK - Public Transport
BEIS,UKRI - BBSRC,09/03/2023,T&S UK - Public Transport,CE - IRU,Corporate Travel Management (North) Ltd,99916768,329.80,T&S UK - Public Transport
BEIS,UKRI - BBSRC,09/03/2023,T&S UK - Public Transport,CIMG - Director,Corporate Travel Management (North) Ltd,99916768,0.50,T&S UK - Public Transport
BEIS,UKRI - BBSRC,09/03/2023,T&S UK - Public Transport,CIMG - Director,Corporate Travel Management (North) Ltd,99916768,188.60,T&S UK - Public Transport
BEIS,UKRI - BBSRC,09/03/2023,T&S UK - Public Transport,CIMG - Director,Corporate Travel Management (North) Ltd,99916768,0.25,T&S UK - Public Transport
BEIS,UKRI - BBSRC,09/03/2023,T&S UK - Public Transport,CIMG - Director,Corporate Travel Management (North) Ltd,99916768,61.10,T&S UK - Public Transport
BEIS,UKRI - BBSRC,09/03/2023,T&S UK - Public Transport,CIMG - Director,Corporate Travel Management (North) Ltd,99916768,0.25,T&S UK - Public Transport
BEIS,UKRI - BBSRC,09/03/2023,T&S UK - Public Transport,CIMG - Director,Corporate Travel Management (North) Ltd,99916768,52.10,T&S UK - Public Transport
BEIS,UKRI - BBSRC,09/03/2023,T&S UK - Public Transport,CIMG - Director,Corporate Travel Management (North) Ltd,99916768,0.25,T&S UK - Public Transport
BEIS,UKRI - BBSRC,09/03/2023,T&S UK - Public Transport,CIMG - Director,Corporate Travel Management (North) Ltd,99916768,130.20,T&S UK - Public Transport
BEIS,UKRI - BBSRC,09/03/2023,T&S UK - Public Transport,Innovation and Skills Group,Corporate Travel Management (North) Ltd,99916768,0.25,T&S UK - Public Transport
BEIS,UKRI - BBSRC,09/03/2023,T&S UK - Public Transport,Innovation and Skills Group,Corporate Travel Management (North) Ltd,99916768,43.00,T&S UK - Public Transport
BEIS,UKRI - BBSRC,09/03/2023,T&S UK - Public Transport,Innovation and Skills Group,Corporate Travel Management (North) Ltd,99916768,0.25,T&S UK - Public Transport
BEIS,UKRI - BBSRC,09/03/2023,T&S UK - Public Transport,Innovation and Skills Group,Corporate Travel Management (North) Ltd,99916768,13.40,T&S UK - Public Transport
BEIS,UKRI - BBSRC,09/03/2023,T&S UK - Public Transport,Innovation and Skills Group,Corporate Travel Management (North) Ltd,99916768,0.25,T&S UK - Public Transport
BEIS,UKRI - BBSRC,09/03/2023,T&S UK - Public Transport,Innovation and Skills Group,Corporate Travel Management (North) Ltd,99916768,26.20,T&S UK - Public Transport
BEIS,UKRI - BBSRC,09/03/2023,T&S UK - Public Transport,Innovation and Skills Group,Corporate Travel Management (North) Ltd,99916768,0.25,T&S UK - Public Transport
BEIS,UKRI - BBSRC,09/03/2023,T&S UK - Public Transport,Innovation and Skills Group,Corporate Travel Management (North) Ltd,99916768,26.20,T&S UK - Public Transport
BEIS,UKRI - BBSRC,09/03/2023,T&S UK - Public Transport,Innovation and Skills Group,Corporate Travel Management (North) Ltd,99916768,0.25,T&S UK - Public Transport
BEIS,UKRI - BBSRC,09/03/2023,T&S UK - Public Transport,Innovation and Skills Group,Corporate Travel Management (North) Ltd,99916768,26.20,T&S UK - Public Transport
BEIS,UKRI - BBSRC,09/03/2023,T&S UK - Public Transport,Innovation and Skills Group,Corporate Travel Management (North) Ltd,99916768,10.00,T&S UK - Public Transport
BEIS,UKRI - BBSRC,09/03/2023,T&S UK - Public Transport,Innovation and Skills Group,Corporate Travel Management (North) Ltd,99916768,-103.20,T&S UK - Public Transport
BEIS,UKRI - BBSRC,09/03/2023,T&S UK - Public Transport,Innovation and Skills Group,Corporate Travel Management (North) Ltd,99916768,5.00,T&S UK - Public Transport
BEIS,UKRI - BBSRC,09/03/2023,T&S UK - Public Transport,Innovation and Skills Group,Corporate Travel Management (North) Ltd,99916768,-73.60,T&S UK - Public Transport
BEIS,UKRI - BBSRC,09/03/2023,T&S UK - Public Transport,Innovation and Skills Group,Corporate Travel Management (North) Ltd,99916768,0.25,T&S UK - Public Transport
BEIS,UKRI - BBSRC,09/03/2023,T&S UK - Public Transport,Innovation and Skills Group,Corporate Travel Management (North) Ltd,99916768,244.80,T&S UK - Public Transport
BEIS,UKRI - BBSRC,09/03/2023,T&S UK - Public Transport,Innovation and Skills Group,Corporate Travel Management (North) Ltd,99916768,0.25,T&S UK - Public Transport
BEIS,UKRI - BBSRC,09/03/2023,T&S UK - Public Transport,Innovation and Skills Group,Corporate Travel Management (North) Ltd,99916768,53.10,T&S UK - Public Transport
BEIS,UKRI - BBSRC,09/03/2023,T&S UK - Public Transport,Innovation and Skills Group,Corporate Travel Management (North) Ltd,99916768,0.25,T&S UK - Public Transport
BEIS,UKRI - BBSRC,09/03/2023,T&S UK - Public Transport,Innovation and Skills Group,Corporate Travel Management (North) Ltd,99916768,173.60,T&S UK - Public Transport
BEIS,UKRI - BBSRC,09/03/2023,T&S UK - Public Transport,Innovation and Skills Group,Corporate Travel Management (North) Ltd,99916768,0.25,T&S UK - Public Transport
BEIS,UKRI - BBSRC,09/03/2023,T&S UK - Public Transport,Innovation and Skills Group,Corporate Travel Management (North) Ltd,99916768,157.20,T&S UK - Public Transport
BEIS,UKRI - BBSRC,09/03/2023,T&S UK - Public Transport,Innovation and Skills Group,Corporate Travel Management (North) Ltd,99916768,0.25,T&S UK - Public Transport
BEIS,UKRI - BBSRC,09/03/2023,T&S UK - Public Transport,Innovation and Skills Group,Corporate Travel Management (North) Ltd,99916768,175.10,T&S UK - Public Transport
BEIS,UKRI - BBSRC,09/03/2023,T&S UK - Public Transport,Innovation and Skills Group,Corporate Travel Management (North) Ltd,99916768,0.25,T&S UK - Public Transport
BEIS,UKRI - BBSRC,09/03/2023,T&S UK - Public Transport,Innovation and Skills Group,Corporate Travel Management (North) Ltd,99916768,21.75,T&S UK - Public Transport
BEIS,UKRI - BBSRC,09/03/2023,T&S UK - Public Transport,Innovation and Skills Group,Corporate Travel Management (North) Ltd,99916768,0.25,T&S UK - Public Transport
BEIS,UKRI - BBSRC,09/03/2023,T&S UK - Public Transport,Innovation and Skills Group,Corporate Travel Management (North) Ltd,99916768,82.80,T&S UK - Public Transport
BEIS,UKRI - BBSRC,09/03/2023,T&S UK - Public Transport,Innovation and Skills Group,Corporate Travel Management (North) Ltd,99916768,0.50,T&S UK - Public Transport
BEIS,UKRI - BBSRC,09/03/2023,T&S UK - Public Transport,Innovation and Skills Group,Corporate Travel Management (North) Ltd,99916768,106.10,T&S UK - Public Transport
BEIS,UKRI - BBSRC,09/03/2023,T&S UK - Public Transport,Innovation and Skills Group,Corporate Travel Management (North) Ltd,99916768,78.60,T&S UK - Public Transport
BEIS,UKRI - BBSRC,09/03/2023,T&S UK - Public Transport,Innovation and Skills Group,Corporate Travel Management (North) Ltd,99916768,0.25,T&S UK - Public Transport
BEIS,UKRI - BBSRC,09/03/2023,T&S UK - Public Transport,Innovation and Skills Group,Corporate Travel Management (North) Ltd,99916768,106.30,T&S UK - Public Transport
BEIS,UKRI - BBSRC,09/03/2023,T&S UK - Public Transport,Innovation and Skills Group,Corporate Travel Management (North) Ltd,99916768,0.25,T&S UK - Public Transport
BEIS,UKRI - BBSRC,09/03/2023,T&S UK - Public Transport,Innovation and Skills Group,Corporate Travel Management (North) Ltd,99916768,193.80,T&S UK - Public Transport
BEIS,UKRI - BBSRC,09/03/2023,T&S UK - Public Transport,Innovation and Skills Group,Corporate Travel Management (North) Ltd,99916768,0.25,T&S UK - Public Transport
BEIS,UKRI - BBSRC,09/03/2023,T&S UK - Public Transport,Innovation and Skills Group,Corporate Travel Management (North) Ltd,99916768,185.55,T&S UK - Public Transport
BEIS,UKRI - BBSRC,09/03/2023,T&S UK - Public Transport,Innovation and Skills Group,Corporate Travel Management (North) Ltd,99916768,0.25,T&S UK - Public Transport
BEIS,UKRI - BBSRC,09/03/2023,T&S UK - Public Transport,Innovation and Skills Group,Corporate Travel Management (North) Ltd,99916768,210.70,T&S UK - Public Transport
BEIS,UKRI - BBSRC,09/03/2023,T&S UK - Public Transport,Innovation and Skills Group,Corporate Travel Management (North) Ltd,99916768,0.50,T&S UK - Public Transport
BEIS,UKRI - BBSRC,09/03/2023,T&S UK - Public Transport,Innovation and Skills Group,Corporate Travel Management (North) Ltd,99916768,26.30,T&S UK - Public Transport
BEIS,UKRI - BBSRC,09/03/2023,T&S UK - Public Transport,Innovation and Skills Group,Corporate Travel Management (North) Ltd,99916768,12.50,T&S UK - Public Transport
BEIS,UKRI - BBSRC,09/03/2023,T&S UK - Public Transport,Innovation and Skills Group,Corporate Travel Management (North) Ltd,99916768,0.25,T&S UK - Public Transport
BEIS,UKRI - BBSRC,09/03/2023,T&S UK - Public Transport,Innovation and Skills Group,Corporate Travel Management (North) Ltd,99916768,48.20,T&S UK - Public Transport
BEIS,UKRI - BBSRC,09/03/2023,T&S UK - Public Transport,Innovation and Skills Group,Corporate Travel Management (North) Ltd,99916768,0.25,T&S UK - Public Transport
BEIS,UKRI - BBSRC,09/03/2023,T&S UK - Public Transport,Innovation and Skills Group,Corporate Travel Management (North) Ltd,99916768,63.10,T&S UK - Public Transport
BEIS,UKRI - BBSRC,09/03/2023,T&S UK - Public Transport,Innovation and Skills Group,Corporate Travel Management (North) Ltd,99916768,0.25,T&S UK - Public Transport
BEIS,UKRI - BBSRC,09/03/2023,T&S UK - Public Transport,Innovation and Skills Group,Corporate Travel Management (North) Ltd,99916768,7.25,T&S UK - Public Transport
BEIS,UKRI - BBSRC,09/03/2023,T&S UK - Public Transport,Innovation and Skills Group,Corporate Travel Management (North) Ltd,99916768,0.25,T&S UK - Public Transport
BEIS,UKRI - BBSRC,09/03/2023,T&S UK - Public Transport,Innovation and Skills Group,Corporate Travel Management (North) Ltd,99916768,30.50,T&S UK - Public Transport
BEIS,UKRI - BBSRC,09/03/2023,T&S UK - Public Transport,Science Group,Corporate Travel Management (North) Ltd,99916768,0.25,T&S UK - Public Transport
BEIS,UKRI - BBSRC,09/03/2023,T&S UK - Public Transport,Science Group,Corporate Travel Management (North) Ltd,99916768,244.80,T&S UK - Public Transport
BEIS,UKRI - BBSRC,09/03/2023,T&S UK - Public Transport,Science Group,Corporate Travel Management (North) Ltd,99916768,0.13,T&S UK - Public Transport
BEIS,UKRI - BBSRC,09/03/2023,T&S UK - Public Transport,Science Group,Corporate Travel Management (North) Ltd,99916768,158.40,T&S UK - Public Transport
BEIS,UKRI - BBSRC,09/03/2023,T&S UK - Public Transport,Science Group,Corporate Travel Management (North) Ltd,99916768,0.12,T&S UK - Public Transport
BEIS,UKRI - BBSRC,09/03/2023,T&S UK - Public Transport,Science Group,Corporate Travel Management (North) Ltd,99916768,158.40,T&S UK - Public Transport
BEIS,UKRI - BBSRC,09/03/2023,T&S UK - Public Transport,Science Group,Corporate Travel Management (North) Ltd,99916768,5.00,T&S UK - Public Transport
BEIS,UKRI - BBSRC,09/03/2023,T&S UK - Public Transport,Science Group,Corporate Travel Management (North) Ltd,99916768,-73.60,T&S UK - Public Transport
BEIS,UKRI - BBSRC,09/03/2023,T&S UK - Public Transport,Science Group,Corporate Travel Management (North) Ltd,99916768,5.00,T&S UK - Public Transport
BEIS,UKRI - BBSRC,09/03/2023,T&S UK - Public Transport,Science Group,Corporate Travel Management (North) Ltd,99916768,-9.40,T&S UK - Public Transport
BEIS,UKRI - BBSRC,09/03/2023,T&S UK - Public Transport,Science Group,Corporate Travel Management (North) Ltd,99916768,5.00,T&S UK - Public Transport
BEIS,UKRI - BBSRC,09/03/2023,T&S UK - Public Transport,Science Group,Corporate Travel Management (North) Ltd,99916768,-9.40,T&S UK - Public Transport
BEIS,UKRI - BBSRC,09/03/2023,T&S UK - Public Transport,Science Group,Corporate Travel Management (North) Ltd,99916768,0.25,T&S UK - Public Transport
BEIS,UKRI - BBSRC,09/03/2023,T&S UK - Public Transport,Science Group,Corporate Travel Management (North) Ltd,99916768,66.60,T&S UK - Public Transport
BEIS,UKRI - BBSRC,09/03/2023,T&S UK - Public Transport,Science Group,Corporate Travel Management (North) Ltd,99916768,0.25,T&S UK - Public Transport
BEIS,UKRI - BBSRC,09/03/2023,T&S UK - Public Transport,Science Group,Corporate Travel Management (North) Ltd,99916768,73.60,T&S UK - Public Transport
BEIS,UKRI - BBSRC,09/03/2023,T&S UK - Public Transport,Science Group,Corporate Travel Management (North) Ltd,99916768,0.25,T&S UK - Public Transport
BEIS,UKRI - BBSRC,09/03/2023,T&S UK - Public Transport,Science Group,Corporate Travel Management (North) Ltd,99916768,195.00,T&S UK - Public Transport
BEIS,UKRI - BBSRC,09/03/2023,T&S UK - Public Transport,Science Group,Corporate Travel Management (North) Ltd,99916768,0.25,T&S UK - Public Transport
BEIS,UKRI - BBSRC,09/03/2023,T&S UK - Public Transport,Science Group,Corporate Travel Management (North) Ltd,99916768,276.20,T&S UK - Public Transport
BEIS,UKRI - BBSRC,09/03/2023,T&S UK - Public Transport,Science Group,Corporate Travel Management (North) Ltd,99916768,0.25,T&S UK - Public Transport
BEIS,UKRI - BBSRC,09/03/2023,T&S UK - Public Transport,Science Group,Corporate Travel Management (North) Ltd,99916768,52.20,T&S UK - Public Transport
BEIS,UKRI - BBSRC,09/03/2023,T&S UK - Public Transport,Science Group,Corporate Travel Management (North) Ltd,99916768,0.25,T&S UK - Public Transport
BEIS,UKRI - BBSRC,09/03/2023,T&S UK - Public Transport,Science Group,Corporate Travel Management (North) Ltd,99916768,133.20,T&S UK - Public Transport
BEIS,UKRI - BBSRC,09/03/2023,T&S UK - Public Transport,Science Group,Corporate Travel Management (North) Ltd,99916768,0.25,T&S UK - Public Transport
BEIS,UKRI - BBSRC,09/03/2023,T&S UK - Public Transport,Science Group,Corporate Travel Management (North) Ltd,99916768,179.90,T&S UK - Public Transport
BEIS,UKRI - BBSRC,09/03/2023,T&S UK - Public Transport,Science Group,Corporate Travel Management (North) Ltd,99916768,0.25,T&S UK - Public Transport
BEIS,UKRI - BBSRC,09/03/2023,T&S UK - Public Transport,Science Group,Corporate Travel Management (North) Ltd,99916768,210.70,T&S UK - Public Transport
BEIS,UKRI - BBSRC,09/03/2023,T&S UK - Public Transport,Science Group,Corporate Travel Management (North) Ltd,99916768,0.25,T&S UK - Public Transport
BEIS,UKRI - BBSRC,09/03/2023,T&S UK - Public Transport,Science Group,Corporate Travel Management (North) Ltd,99916768,96.10,T&S UK - Public Transport
BEIS,UKRI - BBSRC,09/03/2023,T&S UK - Public Transport,Science Group,Corporate Travel Management (North) Ltd,99916768,0.25,T&S UK - Public Transport
BEIS,UKRI - BBSRC,09/03/2023,T&S UK - Public Transport,Science Group,Corporate Travel Management (North) Ltd,99916768,103.75,T&S UK - Public Transport
BEIS,UKRI - BBSRC,09/03/2023,T&S UK - Public Transport,Science Group,Corporate Travel Management (North) Ltd,99916768,0.25,T&S UK - Public Transport
BEIS,UKRI - BBSRC,09/03/2023,T&S UK - Public Transport,Science Group,Corporate Travel Management (North) Ltd,99916768,193.80,T&S UK - Public Transport
BEIS,UKRI - BBSRC,09/03/2023,T&S UK - Public Transport,Science Group,Corporate Travel Management (North) Ltd,99916768,0.25,T&S UK - Public Transport
BEIS,UKRI - BBSRC,09/03/2023,T&S UK - Public Transport,Science Group,Corporate Travel Management (North) Ltd,99916768,68.10,T&S UK - Public Transport
BEIS,UKRI - BBSRC,09/03/2023,T&S UK - Public Transport,Science Group,Corporate Travel Management (North) Ltd,99916768,0.13,T&S UK - Public Transport
BEIS,UKRI - BBSRC,09/03/2023,T&S UK - Public Transport,Science Group,Corporate Travel Management (North) Ltd,99916768,40.50,T&S UK - Public Transport
BEIS,UKRI - BBSRC,09/03/2023,T&S UK - Public Transport,Science Group,Corporate Travel Management (North) Ltd,99916768,0.25,T&S UK - Public Transport
BEIS,UKRI - BBSRC,09/03/2023,T&S UK - Public Transport,Science Group,Corporate Travel Management (North) Ltd,99916768,124.80,T&S UK - Public Transport
BEIS,UKRI - BBSRC,09/03/2023,T&S UK - Public Transport,Science Group,Corporate Travel Management (North) Ltd,99916768,0.25,T&S UK - Public Transport
BEIS,UKRI - BBSRC,09/03/2023,T&S UK - Public Transport,Science Group,Corporate Travel Management (North) Ltd,99916768,70.50,T&S UK - Public Transport
BEIS,UKRI - BBSRC,09/03/2023,T&S UK - Public Transport,Science Group,Corporate Travel Management (North) Ltd,99916768,0.12,T&S UK - Public Transport
BEIS,UKRI - BBSRC,09/03/2023,T&S UK - Public Transport,Science Group,Corporate Travel Management (North) Ltd,99916768,40.50,T&S UK - Public Transport
BEIS,UKRI - BBSRC,09/03/2023,T&S UK - Public Transport,Science Group,Corporate Travel Management (North) Ltd,99916768,0.25,T&S UK - Public Transport
BEIS,UKRI - BBSRC,09/03/2023,T&S UK - Public Transport,Science Group,Corporate Travel Management (North) Ltd,99916768,210.70,T&S UK - Public Transport
BEIS,UKRI - BBSRC,09/03/2023,T&S UK - Public Transport,Science Group,Corporate Travel Management (North) Ltd,99916768,0.25,T&S UK - Public Transport
BEIS,UKRI - BBSRC,09/03/2023,T&S UK - Public Transport,Science Group,Corporate Travel Management (North) Ltd,99916768,181.70,T&S UK - Public Transport
BEIS,UKRI - BBSRC,09/03/2023,T&S UK - Public Transport,Science Group,Corporate Travel Management (North) Ltd,99916768,0.25,T&S UK - Public Transport
BEIS,UKRI - BBSRC,09/03/2023,T&S UK - Public Transport,Science Group,Corporate Travel Management (North) Ltd,99916768,205.50,T&S UK - Public Transport
BEIS,UKRI - BBSRC,09/03/2023,T&S UK - Public Transport,Science Group,Corporate Travel Management (North) Ltd,99916768,0.25,T&S UK - Public Transport
BEIS,UKRI - BBSRC,09/03/2023,T&S UK - Public Transport,Science Group,Corporate Travel Management (North) Ltd,99916768,6.60,T&S UK - Public Transport
BEIS,UKRI - BBSRC,09/03/2023,T&S UK - Public Transport,Science Group,Corporate Travel Management (North) Ltd,99916768,0.25,T&S UK - Public Transport
BEIS,UKRI - BBSRC,09/03/2023,T&S UK - Public Transport,Science Group,Corporate Travel Management (North) Ltd,99916768,64.30,T&S UK - Public Transport
BEIS,UKRI - BBSRC,09/03/2023,T&S UK - Public Transport,Science Group – Admin Function,Corporate Travel Management (North) Ltd,99916768,0.25,T&S UK - Public Transport
BEIS,UKRI - BBSRC,09/03/2023,T&S UK - Public Transport,Science Group – Admin Function,Corporate Travel Management (North) Ltd,99916768,105.80,T&S UK - Public Transport
BEIS,UKRI - BBSRC,09/03/2023,T&S UK - Vehicle Hire,Innovation and Skills Group,Corporate Travel Management (North) Ltd,99916768,2.50,T&S UK - Vehicle Hire
BEIS,UKRI - BBSRC,09/03/2023,T&S UK - Vehicle Hire,Innovation and Skills Group,Corporate Travel Management (North) Ltd,99916768,33.52,T&S UK - Vehicle Hire
BEIS,UKRI - BBSRC,09/03/2023,T&S UK - Vehicle Hire,Innovation and Skills Group,Corporate Travel Management (North) Ltd,99916768,0.50,T&S UK - Vehicle Hire
BEIS,UKRI - BBSRC,09/03/2023,T&S UK - Vehicle Hire,Science Group,Corporate Travel Management (North) Ltd,99916768,2.50,T&S UK - Vehicle Hire
BEIS,UKRI - BBSRC,09/03/2023,T&S UK - Vehicle Hire,Science Group,Corporate Travel Management (North) Ltd,99916768,13.56,T&S UK - Vehicle Hire
BEIS,UKRI - BBSRC,09/03/2023,T&S UK - Vehicle Hire,Science Group,Corporate Travel Management (North) Ltd,99916768,0.50,T&S UK - Vehicle Hire
BEIS,UKRI - BBSRC,09/03/2023,T&S UK - Other Charges,Innovation and Skills Group,Unspecified,99917458,3.40,T&S UK - Other Charges
BEIS,UKRI - BBSRC,10/03/2023,Research Institutes - Capital Grants: Minor Works,World Class Labs,Babraham Institute,99915986,103230.00,Research Institutes - Capital Grants: Minor Works
BEIS,UKRI - BBSRC,10/03/2023,Research Institutes - Capital Grants: Minor Works,World Class Labs,Babraham Institute,99915988,42660.35,Research Institutes - Capital Grants: Minor Works
BEIS,UKRI - BBSRC,10/03/2023,Research Institutes - Capital Grants: Minor Works,World Class Labs,Rothamsted Research Ltd,99916282,43448.95,Research Institutes - Capital Grants: Minor Works
BEIS,UKRI - BBSRC,10/03/2023,Research Grant Expenditure,SPF W1 EMBL EBI,EMBL (European Molecular Biology Laboratory),99916899,93750.12,Research Grant Expenditure
BEIS,UKRI - BBSRC,10/03/2023,Research Institutes - Capital Grants: Minor Works,Mid-Range Equipment,Rothamsted Research Ltd,99917938,12703.61,Research Institutes - Capital Grants: Minor Works
BEIS,UKRI - BBSRC,10/03/2023,T&S UK - Other Charges,Innovation and Skills Group,Unspecified,99918147,6.50,T&S UK - Other Charges
BEIS,UKRI - BBSRC,10/03/2023,T&S UK - Public Transport,Innovation and Skills Group,Unspecified,99918147,43.70,T&S UK - Public Transport
BEIS,UKRI - BBSRC,10/03/2023,T&S UK - Subsistence,Innovation and Skills Group,Unspecified,99918147,14.53,T&S UK - Subsistence
BEIS,UKRI - BBSRC,10/03/2023,T&S UK - Other Charges,CE - IRU,Unspecified,99918150,7.81,T&S UK - Other Charges
BEIS,UKRI - BBSRC,10/03/2023,T&S UK - Public Transport,CE - IRU,Unspecified,99918150,25.55,T&S UK - Public Transport
BEIS,UKRI - BBSRC,10/03/2023,T&S UK - Public Transport,CE - IRU,Unspecified,99918150,11.92,T&S UK - Public Transport
BEIS,UKRI - BBSRC,10/03/2023,T&S UK - Subsistence,CE - IRU,Unspecified,99918150,67.72,T&S UK - Subsistence
